Workbook

Sheet FedFunds_Master
B4: ="CQG "&RTD("cqg.rtd",,"ContractData",K6,"LongDescription") -> CQG Fed Funds 30 Day (Globex), Apr 23 | M4: CQG Fed Funds Forward Curves | AB4: =RTD("cqg.rtd", ,"SystemInfo", "Linetime") -> 45002.51808
K6: =RTD("cqg.rtd", ,"ContractData",ZQE!Q2, "Symbol") -> ZQEJ23 | L6: =RTD("cqg.rtd", ,"ContractData",ZQE!Q3, "Symbol") -> ZQEK23 | M6: =RTD("cqg.rtd", ,"ContractData",ZQE!Q4, "Symbol") -> ZQEM23 | N6: =RTD("cqg.rtd", ,"ContractData",ZQE!Q5, "Symbol") -> ZQEN23 | O6: =RTD("cqg.rtd", ,"ContractData",ZQE!Q6, "Symbol") -> ZQEQ23 | P6: =RTD("cqg.rtd", ,"ContractData",ZQE!Q7, "Symbol") -> ZQEU23 | Q6: =RTD("cqg.rtd", ,"ContractData",ZQE!Q8, "Symbol") -> ZQEV23 | R6: =RTD("cqg.rtd", ,"ContractData",ZQE!Q9, "Symbol") -> ZQEX23 | S6: =RTD("cqg.rtd", ,"ContractData",ZQE!Q10, "Symbol") -> ZQEZ23 | T6: =RTD("cqg.rtd", ,"ContractData",ZQE!Q11, "Symbol") -> ZQEF24 | U6: =RTD("cqg.rtd", ,"ContractData",ZQE!Q12, "Symbol") -> ZQEG24 | V6: =RTD("cqg.rtd", ,"ContractData",ZQE!Q13, "Symbol") -> ZQEH24 | W6: =RTD("cqg.rtd", ,"ContractData",ZQE!Q14, "Symbol") -> ZQEJ24 | X6: =RTD("cqg.rtd", ,"ContractData",ZQE!Q15, "Symbol") -> ZQEK24 | Y6: =RTD("cqg.rtd", ,"ContractData",ZQE!Q16, "Symbol") -> ZQEM24 | Z6: =RTD("cqg.rtd", ,"ContractData",ZQE!Q17, "Symbol") -> ZQEN24 | AA6: =RTD("cqg.rtd", ,"ContractData",ZQE!Q18, "Symbol") -> ZQEQ24 | AB6: =RTD("cqg.rtd", ,"ContractData",ZQE!Q18, "Symbol") -> ZQEQ24 | AC6: =RTD("cqg.rtd", ,"ContractData",ZQE!Q20, "Symbol") -> ZQEV24 | AD6: =RTD("cqg.rtd", ,"ContractData",ZQE!Q21, "Symbol") -> ZQEX24 | AI6: =LEFT(RIGHT(K6,3),1) -> J | AJ6: =LEFT(RIGHT(L6,3),1) -> K | AK6: =LEFT(RIGHT(M6,3),1) -> M | AL6: N | AM6: Q | AN6: U | AO6: V | AP6: X | AQ6: Z | AR6: F | AS6: G | AT6: H | AU6: J | AV6: K | AW6: =LEFT(RIGHT(Y6,3),1) -> M | AX6: =LEFT(RIGHT(Z6,3),1) -> N | AY6: =LEFT(RIGHT(AA6,3),1) -> Q | AZ6: =LEFT(RIGHT(AB6,3),1) -> Q | BA6: =LEFT(RIGHT(AC6,3),1) -> V | BB6: =LEFT(RIGHT(AD6,3),1) -> X
B7: Ask | C7: =RTD("cqg.rtd", ,"ContractData",K6, "MT_LastAskVolume") -> 1575 | E7: =RTD("cqg.rtd", ,"ContractData",K6, "Ask",,"T") -> 95.25 | G7: Last Trade | K7: =IF(AI6="F","JAN",IF(AI6="G","FEB",IF(AI6="H","MAR",IF(AI6="J","APR",IF(AI6="K","MAY",IF(AI6="M","JUN",IF(AI6="N","JUL",IF(AI6="Q","AUG",IF(AI6="U","SEP",IF(AI6="V","OCT",IF(AI6="X","NOV",IF(AI6="Z","DEC",))))))))))))&" "&RIGHT(K6,2) -> APR 23 | L7: MAY 23 | M7: JUN 23 | N7: JUL 23 | O7: AUG 23 | P7: SEP 23 | Q7: OCT 23 | R7: NOV 23 | S7: DEC 23 | T7: JAN 24 | U7: FEB 24 | V7: MAR 24 | W7: APR 24 | X7: MAY 24 | Y7: =IF(AW6="F","JAN",IF(AW6="G","FEB",IF(AW6="H","MAR",IF(AW6="J","APR",IF(AW6="K","MAY",IF(AW6="M","JUN",IF(AW6="N","JUL",IF(AW6="Q","AUG",IF(AW6="U","SEP",IF(AW6="V","OCT",IF(AW6="X","NOV",IF(AW6="Z","DEC",))))))))))))&" "&RIGHT(Y6,2) -> JUN 24 | Z7: JUL 24 | AA7: AUG 24 | AB7: AUG 24 | AC7: OCT 24 | AD7: NOV 24
K8: =IF(RTD("cqg.rtd",,"ContractData",K6,"Ask",,"T")="","",TEXT(RTD("cqg.rtd",,"ContractData",K6,"Ask",,"T"),"#.0000")&" "&"A") -> 95.2500 A | L8: =IF(RTD("cqg.rtd",,"ContractData",L6,"Ask",,"T")="","",TEXT(RTD("cqg.rtd",,"ContractData",L6,"Ask",,"T"),"#.000")&" "&"A") -> 95.165 A | M8: =IF(RTD("cqg.rtd",,"ContractData",M6,"Ask",,"T")="","",TEXT(RTD("cqg.rtd",,"ContractData",M6,"Ask",,"T"),"#.000")&" "&"A") -> 95.240 A | N8: =IF(RTD("cqg.rtd",,"ContractData",N6,"Ask",,"T")="","",TEXT(RTD("cqg.rtd",,"ContractData",N6,"Ask",,"T"),"#.000")&" "&"A") -> 95.370 A | O8: =IF(RTD("cqg.rtd",,"ContractData",O6,"Ask",,"T")="","",TEXT(RTD("cqg.rtd",,"ContractData",O6,"Ask",,"T"),"#.000")&" "&"A") -> 95.605 A | P8: =IF(RTD("cqg.rtd",,"ContractData",P6,"Ask",,"T")="","",TEXT(RTD("cqg.rtd",,"ContractData",P6,"Ask",,"T"),"#.000")&" "&"A") -> 95.670 A | Q8: =IF(RTD("cqg.rtd",,"ContractData",Q6,"Ask",,"T")="","",TEXT(RTD("cqg.rtd",,"ContractData",Q6,"Ask",,"T"),"#.000")&" "&"A") -> 95.790 A | R8: =IF(RTD("cqg.rtd",,"ContractData",R6,"Ask",,"T")="","",TEXT(RTD("cqg.rtd",,"ContractData",R6,"Ask",,"T"),"#.000")&" "&"A") -> 95.930 A | S8: =IF(RTD("cqg.rtd",,"ContractData",S6,"Ask",,"T")="","",TEXT(RTD("cqg.rtd",,"ContractData",S6,"Ask",,"T"),"#.000")&" "&"A") -> 95.985 A | T8: =IF(RTD("cqg.rtd",,"ContractData",T6,"Ask",,"T")="","",TEXT(RTD("cqg.rtd",,"ContractData",T6,"Ask",,"T"),"#.000")&" "&"A") -> 96.040 A | U8: =IF(RTD("cqg.rtd",,"ContractData",U6,"Ask",,"T")="","",TEXT(RTD("cqg.rtd",,"ContractData",U6,"Ask",,"T"),"#.000")&" "&"A") -> 96.135 A | V8: =IF(RTD("cqg.rtd",,"ContractData",V6,"Ask",,"T")="","",TEXT(RTD("cqg.rtd",,"ContractData",V6,"Ask",,"T"),"#.000")&" "&"A") -> 96.175 A | W8: =IF(RTD("cqg.rtd",,"ContractData",W6,"Ask",,"T")="","",TEXT(RTD("cqg.rtd",,"ContractData",W6,"Ask",,"T"),"#.000")&" "&"A") -> 96.260 A | X8: =IF(RTD("cqg.rtd",,"ContractData",X6,"Ask",,"T")="","",TEXT(RTD("cqg.rtd",,"ContractData",X6,"Ask",,"T"),"#.000")&" "&"A") -> 96.410 A | Y8: =IF(RTD("cqg.rtd",,"ContractData",Y6,"Ask",,"T")="","",TEXT(RTD("cqg.rtd",,"ContractData",Y6,"Ask",,"T"),"#.000")&" "&"A") -> 96.500 A | Z8: =IF(RTD("cqg.rtd",,"ContractData",Z6,"Ask",,"T")="","",TEXT(RTD("cqg.rtd",,"ContractData",Z6,"Ask",,"T"),"#.000")&" "&"A") -> 96.560 A | AA8: =IF(RTD("cqg.rtd",,"ContractData",AA6,"Ask",,"T")="","",TEXT(RTD("cqg.rtd",,"ContractData",AA6,"Ask",,"T"),"#.000")&" "&"A") -> 96.905 A | AB8: =IF(RTD("cqg.rtd",,"ContractData",AB6,"Ask",,"T")="","",TEXT(RTD("cqg.rtd",,"ContractData",AB6,"Ask",,"T"),"#.000")&" "&"A") -> 96.905 A | AC8: =IF(RTD("cqg.rtd",,"ContractData",AC6,"Ask",,"T")="","",TEXT(RTD("cqg.rtd",,"ContractData",AC6,"Ask",,"T"),"#.000")&" "&"A") -> 97.075 A | AD8: =IF(RTD("cqg.rtd",,"ContractData",AD6,"Ask",,"T")="","",TEXT(RTD("cqg.rtd",,"ContractData",AD6,"Ask",,"T"),"#.000")&" "&"A") -> 97.240 A
B9: Bid | C9: =RTD("cqg.rtd", ,"ContractData",K6, "MT_LastBidVolume") -> 94 | E9: =RTD("cqg.rtd", ,"ContractData",K6, "Bid",,"T") -> 95.245 | G9: =RTD("cqg.rtd", ,"ContractData",K6,"LastTradeorSettle",,"T") -> 95.245 | I9: =IF(G13>0,"+"&TEXT(RTD("cqg.rtd",,"ContractData",K6,"NetLastTradeToday",,"T"),"#.0000"),TEXT(G13,"#.0000")) -> +.0150 | K9: =IF(RTD("cqg.rtd",,"ContractData",K6,"Bid",,"T")="","",TEXT(RTD("cqg.rtd",,"ContractData",K6,"Bid",,"T"),"#.0000")&" "&"B") -> 95.2450 B | L9: =IF(RTD("cqg.rtd",,"ContractData",L6,"Bid",,"T")="","",TEXT(RTD("cqg.rtd",,"ContractData",L6,"Bid",,"T"),"#.000")&" "&"B") -> 95.160 B | M9: =IF(RTD("cqg.rtd",,"ContractData",M6,"Bid",,"T")="","",TEXT(RTD("cqg.rtd",,"ContractData",M6,"Bid",,"T"),"#.000")&" "&"B") -> 95.235 B | N9: =IF(RTD("cqg.rtd",,"ContractData",N6,"Bid",,"T")="","",TEXT(RTD("cqg.rtd",,"ContractData",N6,"Bid",,"T"),"#.000")&" "&"B") -> 95.360 B | O9: =IF(RTD("cqg.rtd",,"ContractData",O6,"Bid",,"T")="","",TEXT(RTD("cqg.rtd",,"ContractData",O6,"Bid",,"T"),"#.000")&" "&"B") -> 95.600 B | P9: =IF(RTD("cqg.rtd",,"ContractData",P6,"Bid",,"T")="","",TEXT(RTD("cqg.rtd",,"ContractData",P6,"Bid",,"T"),"#.000")&" "&"B") -> 95.665 B | Q9: =IF(RTD("cqg.rtd",,"ContractData",Q6,"Bid",,"T")="","",TEXT(RTD("cqg.rtd",,"ContractData",Q6,"Bid",,"T"),"#.000")&" "&"B") -> 95.785 B | R9: =IF(RTD("cqg.rtd",,"ContractData",R6,"Bid",,"T")="","",TEXT(RTD("cqg.rtd",,"ContractData",R6,"Bid",,"T"),"#.000")&" "&"B") -> 95.925 B | S9: =IF(RTD("cqg.rtd",,"ContractData",S6,"Bid",,"T")="","",TEXT(RTD("cqg.rtd",,"ContractData",S6,"Bid",,"T"),"#.000")&" "&"B") -> 95.980 B | T9: =IF(RTD("cqg.rtd",,"ContractData",T6,"Bid",,"T")="","",TEXT(RTD("cqg.rtd",,"ContractData",T6,"Bid",,"T"),"#.000")&" "&"B") -> 96.035 B | U9: =IF(RTD("cqg.rtd",,"ContractData",U6,"Bid",,"T")="","",TEXT(RTD("cqg.rtd",,"ContractData",U6,"Bid",,"T"),"#.000")&" "&"B") -> 96.125 B | V9: =IF(RTD("cqg.rtd",,"ContractData",V6,"Bid",,"T")="","",TEXT(RTD("cqg.rtd",,"ContractData",V6,"Bid",,"T"),"#.000")&" "&"B") -> 96.165 B | W9: =IF(RTD("cqg.rtd",,"ContractData",W6,"Bid",,"T")="","",TEXT(RTD("cqg.rtd",,"ContractData",W6,"Bid",,"T"),"#.000")&" "&"B") -> 96.250 B | X9: =IF(RTD("cqg.rtd",,"ContractData",X6,"Bid",,"T")="","",TEXT(RTD("cqg.rtd",,"ContractData",X6,"Bid",,"T"),"#.000")&" "&"B") -> 96.400 B | Y9: =IF(RTD("cqg.rtd",,"ContractData",Y6,"Bid",,"T")="","",TEXT(RTD("cqg.rtd",,"ContractData",Y6,"Bid",,"T"),"#.000")&" "&"B") -> 96.480 B | Z9: =IF(RTD("cqg.rtd",,"ContractData",Z6,"Bid",,"T")="","",TEXT(RTD("cqg.rtd",,"ContractData",Z6,"Bid",,"T"),"#.000")&" "&"B") -> 96.535 B | AA9: =IF(RTD("cqg.rtd",,"ContractData",AA6,"Bid",,"T")="","",TEXT(RTD("cqg.rtd",,"ContractData",AA6,"Bid",,"T"),"#.000")&" "&"B") -> 96.510 B | AB9: =IF(RTD("cqg.rtd",,"ContractData",AB6,"Bid",,"T")="","",TEXT(RTD("cqg.rtd",,"ContractData",AB6,"Bid",,"T"),"#.000")&" "&"B") -> 96.510 B | AC9: =IF(RTD("cqg.rtd",,"ContractData",AC6,"Bid",,"T")="","",TEXT(RTD("cqg.rtd",,"ContractData",AC6,"Bid",,"T"),"#.000")&" "&"B") -> 96.495 B | AD9: =IF(RTD("cqg.rtd",,"ContractData",AD6,"Bid",,"T")="","",TEXT(RTD("cqg.rtd",,"ContractData",AD6,"Bid",,"T"),"#.000")&" "&"B") -> 96.515 B
K10: =IF(RTD("cqg.rtd", ,"ContractData",K6,"LastTradeorSettle",,"T")="","",TEXT(RTD("cqg.rtd", ,"ContractData",K6,"LastTradeorSettle",,"T"),"#.0000")&" "&"L") -> 95.2450 L | L10: =IF(RTD("cqg.rtd", ,"ContractData",L6,"LastTradeorSettle",,"T")="","",TEXT(RTD("cqg.rtd", ,"ContractData",L6,"LastTradeorSettle",,"T"),"#.000")&" "&"L") -> 95.165 L | M10: =IF(RTD("cqg.rtd", ,"ContractData",M6,"LastTradeorSettle",,"T")="","",TEXT(RTD("cqg.rtd", ,"ContractData",M6,"LastTradeorSettle",,"T"),"#.000")&" "&"L") -> 95.240 L | N10: =IF(RTD("cqg.rtd", ,"ContractData",N6,"LastTradeorSettle",,"T")="","",TEXT(RTD("cqg.rtd", ,"ContractData",N6,"LastTradeorSettle",,"T"),"#.000")&" "&"L") -> 95.365 L | O10: =IF(RTD("cqg.rtd", ,"ContractData",O6,"LastTradeorSettle",,"T")="","",TEXT(RTD("cqg.rtd", ,"ContractData",O6,"LastTradeorSettle",,"T"),"#.000")&" "&"L") -> 95.600 L | P10: =IF(RTD("cqg.rtd", ,"ContractData",P6,"LastTradeorSettle",,"T")="","",TEXT(RTD("cqg.rtd", ,"ContractData",P6,"LastTradeorSettle",,"T"),"#.000")&" "&"L") -> 95.665 L | Q10: =IF(RTD("cqg.rtd", ,"ContractData",Q6,"LastTradeorSettle",,"T")="","",TEXT(RTD("cqg.rtd", ,"ContractData",Q6,"LastTradeorSettle",,"T"),"#.000")&" "&"L") -> 95.785 L | R10: =IF(RTD("cqg.rtd", ,"ContractData",R6,"LastTradeorSettle",,"T")="","",TEXT(RTD("cqg.rtd", ,"ContractData",R6,"LastTradeorSettle",,"T"),"#.000")&" "&"L") -> 95.925 L | S10: =IF(RTD("cqg.rtd", ,"ContractData",S6,"LastTradeorSettle",,"T")="","",TEXT(RTD("cqg.rtd", ,"ContractData",S6,"LastTradeorSettle",,"T"),"#.000")&" "&"L") -> 95.980 L | T10: =IF(RTD("cqg.rtd", ,"ContractData",T6,"LastTradeorSettle",,"T")="","",TEXT(RTD("cqg.rtd", ,"ContractData",T6,"LastTradeorSettle",,"T"),"#.000")&" "&"L") -> 96.035 L | U10: =IF(RTD("cqg.rtd", ,"ContractData",U6,"LastTradeorSettle",,"T")="","",TEXT(RTD("cqg.rtd", ,"ContractData",U6,"LastTradeorSettle",,"T"),"#.000")&" "&"L") -> 96.130 L | V10: =IF(RTD("cqg.rtd", ,"ContractData",V6,"LastTradeorSettle",,"T")="","",TEXT(RTD("cqg.rtd", ,"ContractData",V6,"LastTradeorSettle",,"T"),"#.000")&" "&"L") -> 96.180 L | W10: =IF(RTD("cqg.rtd", ,"ContractData",W6,"LastTradeorSettle",,"T")="","",TEXT(RTD("cqg.rtd", ,"ContractData",W6,"LastTradeorSettle",,"T"),"#.000")&" "&"L") -> 96.250 L | X10: =IF(RTD("cqg.rtd", ,"ContractData",X6,"LastTradeorSettle",,"T")="","",TEXT(RTD("cqg.rtd", ,"ContractData",X6,"LastTradeorSettle",,"T"),"#.000")&" "&"L") -> 96.430 L | Y10: =IF(RTD("cqg.rtd", ,"ContractData",Y6,"LastTradeorSettle",,"T")="","",TEXT(RTD("cqg.rtd", ,"ContractData",Y6,"LastTradeorSettle",,"T"),"#.000")&" "&"L") -> 96.480 L | Z10: =IF(RTD("cqg.rtd", ,"ContractData",Z6,"LastTradeorSettle",,"T")="","",TEXT(RTD("cqg.rtd", ,"ContractData",Z6,"LastTradeorSettle",,"T"),"#.000")&" "&"L") -> 96.425 L | AA10: =IF(RTD("cqg.rtd", ,"ContractData",AA6,"LastTradeorSettle",,"T")="","",TEXT(RTD("cqg.rtd", ,"ContractData",AA6,"LastTradeorSettle",,"T"),"#.000")&" "&"L") ->  | AB10: =IF(RTD("cqg.rtd", ,"ContractData",AB6,"LastTradeorSettle",,"T")="","",TEXT(RTD("cqg.rtd", ,"ContractData",AB6,"LastTradeorSettle",,"T"),"#.000")&" "&"L") ->  | AC10: =IF(RTD("cqg.rtd", ,"ContractData",AC6,"LastTradeorSettle",,"T")="","",TEXT(RTD("cqg.rtd", ,"ContractData",AC6,"LastTradeorSettle",,"T"),"#.000")&" "&"L") ->  | AD10: =IF(RTD("cqg.rtd", ,"ContractData",AD6,"LastTradeorSettle",,"T")="","",TEXT(RTD("cqg.rtd", ,"ContractData",AD6,"LastTradeorSettle",,"T"),"#.000")&" "&"L") -> 
B11: Enter First Contract Symbol: | E11: ZQEJ23 | G11: =ZQE!D21 -> 97 | H11: =ZQE!E21 -> 94
B12: Symbols | C12: Open | D12: High | E12: Low | F12: Last | G12: Net | H12: Net | I12: Volume
A13: =RTD("cqg.rtd",,"ContractData",K6, "Symbol") -> ZQEJ23 | B13: =RIGHT(RTD("cqg.rtd",,"ContractData",A13, "LongDescription"),7) -> Apr 23 | C13: =RTD("cqg.rtd", ,"ContractData",A13, "Open",,"T") -> 95.23 | D13: =RTD("cqg.rtd", ,"ContractData",A13, "High",,"T") -> 95.265 | E13: =RTD("cqg.rtd", ,"ContractData",A13, "Low",,"T") -> 95.2 | F13: =RTD("cqg.rtd", ,"ContractData",A13, "LastTradeorSettle",,"T") -> 95.245 | G13: =RTD("cqg.rtd",,"ContractData",A13,"NetLastTradeToday",,"T") -> 0.015 | H13: =RTD("cqg.rtd",,"ContractData",A13,"NetLastTradeToday",,"T") -> 0.015 | I13: =RTD("cqg.rtd", ,"ContractData",A13, "T_CVol") -> 127995
A14: =RTD("cqg.rtd",,"ContractData",L6, "Symbol") -> ZQEK23 | B14: =RIGHT(RTD("cqg.rtd",,"ContractData",A14, "LongDescription"),7) -> May 23 | C14: =RTD("cqg.rtd", ,"ContractData",A14, "Open",,"T") -> 95.095 | D14: =RTD("cqg.rtd", ,"ContractData",A14, "High",,"T") -> 95.19 | E14: =RTD("cqg.rtd", ,"ContractData",A14, "Low",,"T") -> 95.04 | F14: =RTD("cqg.rtd", ,"ContractData",A14, "LastTradeorSettle",,"T") -> 95.165 | G14: =RTD("cqg.rtd",,"ContractData",A14,"NetLastTradeToday",,"T") -> 0.08 | H14: =RTD("cqg.rtd",,"ContractData",A14,"NetLastTradeToday",,"T") -> 0.08 | I14: =RTD("cqg.rtd", ,"ContractData",A14, "T_CVol") -> 123759
A15: =RTD("cqg.rtd",,"ContractData",M6, "Symbol") -> ZQEM23 | B15: =RIGHT(RTD("cqg.rtd",,"ContractData",A15, "LongDescription"),7) -> Jun 23 | C15: =RTD("cqg.rtd", ,"ContractData",A15, "Open",,"T") -> 95.12 | D15: =RTD("cqg.rtd", ,"ContractData",A15, "High",,"T") -> 95.27 | E15: =RTD("cqg.rtd", ,"ContractData",A15, "Low",,"T") -> 95.06 | F15: =RTD("cqg.rtd", ,"ContractData",A15, "LastTradeorSettle",,"T") -> 95.24 | G15: =RTD("cqg.rtd",,"ContractData",A15,"NetLastTradeToday",,"T") -> 0.125 | H15: =RTD("cqg.rtd",,"ContractData",A15,"NetLastTradeToday",,"T") -> 0.125 | I15: =RTD("cqg.rtd", ,"ContractData",A15, "T_CVol") -> 27098
A16: =RTD("cqg.rtd",,"ContractData",N6, "Symbol") -> ZQEN23 | B16: =RIGHT(RTD("cqg.rtd",,"ContractData",A16, "LongDescription"),7) -> Jul 23 | C16: =RTD("cqg.rtd", ,"ContractData",A16, "Open",,"T") -> 95.21 | D16: =RTD("cqg.rtd", ,"ContractData",A16, "High",,"T") -> 95.41 | E16: =RTD("cqg.rtd", ,"ContractData",A16, "Low",,"T") -> 95.14 | F16: =RTD("cqg.rtd", ,"ContractData",A16, "LastTradeorSettle",,"T") -> 95.365 | G16: =RTD("cqg.rtd",,"ContractData",A16,"NetLastTradeToday",,"T") -> 0.16 | H16: =RTD("cqg.rtd",,"ContractData",A16,"NetLastTradeToday",,"T") -> 0.16 | I16: =RTD("cqg.rtd", ,"ContractData",A16, "T_CVol") -> 55763
A17: =RTD("cqg.rtd",,"ContractData",O6, "Symbol") -> ZQEQ23 | B17: =RIGHT(RTD("cqg.rtd",,"ContractData",A17, "LongDescription"),7) -> Aug 23 | C17: =RTD("cqg.rtd", ,"ContractData",A17, "Open",,"T") -> 95.435 | D17: =RTD("cqg.rtd", ,"ContractData",A17, "High",,"T") -> 95.67 | E17: =RTD("cqg.rtd", ,"ContractData",A17, "Low",,"T") -> 95.325 | F17: =RTD("cqg.rtd", ,"ContractData",A17, "LastTradeorSettle",,"T") -> 95.6 | G17: =RTD("cqg.rtd",,"ContractData",A17,"NetLastTradeToday",,"T") -> 0.19 | H17: =RTD("cqg.rtd",,"ContractData",A17,"NetLastTradeToday",,"T") -> 0.19 | I17: =RTD("cqg.rtd", ,"ContractData",A17, "T_CVol") -> 56690
A18: =RTD("cqg.rtd",,"ContractData",P6, "Symbol") -> ZQEU23 | B18: =RIGHT(RTD("cqg.rtd",,"ContractData",A18, "LongDescription"),7) -> Sep 23 | C18: =RTD("cqg.rtd", ,"ContractData",A18, "Open",,"T") -> 95.485 | D18: =RTD("cqg.rtd", ,"ContractData",A18, "High",,"T") -> 95.735 | E18: =RTD("cqg.rtd", ,"ContractData",A18, "Low",,"T") -> 95.375 | F18: =RTD("cqg.rtd", ,"ContractData",A18, "LastTradeorSettle",,"T") -> 95.665 | G18: =RTD("cqg.rtd",,"ContractData",A18,"NetLastTradeToday",,"T") -> 0.185 | H18: =RTD("cqg.rtd",,"ContractData",A18,"NetLastTradeToday",,"T") -> 0.185 | I18: =RTD("cqg.rtd", ,"ContractData",A18, "T_CVol") -> 9398
A19: =RTD("cqg.rtd",,"ContractData",Q6, "Symbol") -> ZQEV23 | B19: =RIGHT(RTD("cqg.rtd",,"ContractData",A19, "LongDescription"),7) -> Oct 23 | C19: =RTD("cqg.rtd", ,"ContractData",A19, "Open",,"T") -> 95.58 | D19: =RTD("cqg.rtd", ,"ContractData",A19, "High",,"T") -> 95.87 | E19: =RTD("cqg.rtd", ,"ContractData",A19, "Low",,"T") -> 95.475 | F19: =RTD("cqg.rtd", ,"ContractData",A19, "LastTradeorSettle",,"T") -> 95.785 | G19: =RTD("cqg.rtd",,"ContractData",A19,"NetLastTradeToday",,"T") -> 0.185 | H19: =RTD("cqg.rtd",,"ContractData",A19,"NetLastTradeToday",,"T") -> 0.185 | I19: =RTD("cqg.rtd", ,"ContractData",A19, "T_CVol") -> 15500
A20: =RTD("cqg.rtd",,"ContractData",R6, "Symbol") -> ZQEX23 | B20: =RIGHT(RTD("cqg.rtd",,"ContractData",A20, "LongDescription"),7) -> Nov 23 | C20: =RTD("cqg.rtd", ,"ContractData",A20, "Open",,"T") -> 95.705 | D20: =RTD("cqg.rtd", ,"ContractData",A20, "High",,"T") -> 96.015 | E20: =RTD("cqg.rtd", ,"ContractData",A20, "Low",,"T") -> 95.585 | F20: =RTD("cqg.rtd", ,"ContractData",A20, "LastTradeorSettle",,"T") -> 95.925 | G20: =RTD("cqg.rtd",,"ContractData",A20,"NetLastTradeToday",,"T") -> 0.19 | H20: =RTD("cqg.rtd",,"ContractData",A20,"NetLastTradeToday",,"T") -> 0.19 | I20: =RTD("cqg.rtd", ,"ContractData",A20, "T_CVol") -> 9291
A21: =RTD("cqg.rtd",,"ContractData",S6, "Symbol") -> ZQEZ23 | B21: =RIGHT(RTD("cqg.rtd",,"ContractData",A21, "LongDescription"),7) -> Dec 23 | C21: =RTD("cqg.rtd", ,"ContractData",A21, "Open",,"T") -> 95.73 | D21: =RTD("cqg.rtd", ,"ContractData",A21, "High",,"T") -> 96.065 | E21: =RTD("cqg.rtd", ,"ContractData",A21, "Low",,"T") -> 95.63 | F21: =RTD("cqg.rtd", ,"ContractData",A21, "LastTradeorSettle",,"T") -> 95.98 | G21: =RTD("cqg.rtd",,"ContractData",A21,"NetLastTradeToday",,"T") -> 0.195 | H21: =RTD("cqg.rtd",,"ContractData",A21,"NetLastTradeToday",,"T") -> 0.195 | I21: =RTD("cqg.rtd", ,"ContractData",A21, "T_CVol") -> 5556
A22: =RTD("cqg.rtd",,"ContractData",T6, "Symbol") -> ZQEF24 | B22: =RIGHT(RTD("cqg.rtd",,"ContractData",A22, "LongDescription"),7) -> Jan 24 | C22: =RTD("cqg.rtd", ,"ContractData",A22, "Open",,"T") -> 95.775 | D22: =RTD("cqg.rtd", ,"ContractData",A22, "High",,"T") -> 96.115 | E22: =RTD("cqg.rtd", ,"ContractData",A22, "Low",,"T") -> 95.675 | F22: =RTD("cqg.rtd", ,"ContractData",A22, "LastTradeorSettle",,"T") -> 96.035 | G22: =RTD("cqg.rtd",,"ContractData",A22,"NetLastTradeToday",,"T") -> 0.195 | H22: =RTD("cqg.rtd",,"ContractData",A22,"NetLastTradeToday",,"T") -> 0.195 | I22: =RTD("cqg.rtd", ,"ContractData",A22, "T_CVol") -> 16917
A23: =RTD("cqg.rtd",,"ContractData",U6, "Symbol") -> ZQEG24 | B23: =RIGHT(RTD("cqg.rtd",,"ContractData",A23, "LongDescription"),7) -> Feb 24 | C23: =RTD("cqg.rtd", ,"ContractData",A23, "Open",,"T") -> 95.88 | D23: =RTD("cqg.rtd", ,"ContractData",A23, "High",,"T") -> 96.195 | E23: =RTD("cqg.rtd", ,"ContractData",A23, "Low",,"T") -> 95.835 | F23: =RTD("cqg.rtd", ,"ContractData",A23, "LastTradeorSettle",,"T") -> 96.13 | G23: =RTD("cqg.rtd",,"ContractData",A23,"NetLastTradeToday",,"T") -> 0.185 | H23: =RTD("cqg.rtd",,"ContractData",A23,"NetLastTradeToday",,"T") -> 0.185 | I23: =RTD("cqg.rtd", ,"ContractData",A23, "T_CVol") -> 4608
A24: =RTD("cqg.rtd",,"ContractData",V6, "Symbol") -> ZQEH24 | B24: =RIGHT(RTD("cqg.rtd",,"ContractData",A24, "LongDescription"),7) -> Mar 24 | C24: =RTD("cqg.rtd", ,"ContractData",A24, "Open",,"T") -> 95.93 | D24: =RTD("cqg.rtd", ,"ContractData",A24, "High",,"T") -> 96.225 | E24: =RTD("cqg.rtd", ,"ContractData",A24, "Low",,"T") -> 95.93 | F24: =RTD("cqg.rtd", ,"ContractData",A24, "LastTradeorSettle",,"T") -> 96.18 | G24: =RTD("cqg.rtd",,"ContractData",A24,"NetLastTradeToday",,"T") -> 0.195 | H24: =RTD("cqg.rtd",,"ContractData",A24,"NetLastTradeToday",,"T") -> 0.195 | I24: =RTD("cqg.rtd", ,"ContractData",A24, "T_CVol") -> 424
B25: Calendar Spread: | D25: 1-Month | G25: =ZQE!U28 -> 0.3 | H25: =ZQE!V28 -> -0.3
B26: =D25&" Calendar Spreads" -> 1-Month Calendar Spreads | K26: =RIGHT(RTD("cqg.rtd",,"ContractData",ZQE!U35, "LongDescription"),15) -> Apr 23, May 23 | L26: =RIGHT(RTD("cqg.rtd",,"ContractData",ZQE!U36, "LongDescription"),15) -> May 23, Jun 23 | M26: =RIGHT(RTD("cqg.rtd",,"ContractData",ZQE!U37, "LongDescription"),15) -> Jun 23, Jul 23 | N26: =RIGHT(RTD("cqg.rtd",,"ContractData",ZQE!U38, "LongDescription"),15) -> Jul 23, Aug 23 | O26: =RIGHT(RTD("cqg.rtd",,"ContractData",ZQE!U39, "LongDescription"),15) -> Aug 23, Sep 23 | P26: =RIGHT(RTD("cqg.rtd",,"ContractData",ZQE!U40, "LongDescription"),15) -> Sep 23, Oct 23 | Q26: =RIGHT(RTD("cqg.rtd",,"ContractData",ZQE!U41, "LongDescription"),15) -> Oct 23, Nov 23 | R26: =RIGHT(RTD("cqg.rtd",,"ContractData",ZQE!U42, "LongDescription"),15) -> Nov 23, Dec 23 | S26: =RIGHT(RTD("cqg.rtd",,"ContractData",ZQE!U43, "LongDescription"),15) -> Dec 23, Jan 24 | T26: =RIGHT(RTD("cqg.rtd",,"ContractData",ZQE!U44, "LongDescription"),15) -> Jan 24, Feb 24 | U26: =RIGHT(RTD("cqg.rtd",,"ContractData",ZQE!U45, "LongDescription"),15) -> Feb 24, Mar 24 | V26: =RIGHT(RTD("cqg.rtd",,"ContractData",ZQE!U46, "LongDescription"),15) -> Mar 24, Apr 24 | W26: =RIGHT(RTD("cqg.rtd",,"ContractData",ZQE!U47, "LongDescription"),15) -> Apr 24, May 24 | X26: =RIGHT(RTD("cqg.rtd",,"ContractData",ZQE!U48, "LongDescription"),15) -> May 24, Jun 24 | Y26: =RIGHT(RTD("cqg.rtd",,"ContractData",ZQE!U49, "LongDescription"),15) -> Jun 24, Jul 24 | Z26: =RIGHT(RTD("cqg.rtd",,"ContractData",ZQE!U50, "LongDescription"),15) -> Jul 24, Aug 24 | AA26: =RIGHT(RTD("cqg.rtd",,"ContractData",ZQE!U51, "LongDescription"),15) -> Aug 24, Sep 24 | AB26: =IF(LEFT(RTD("cqg.rtd", ,"ContractData", ZQE!U52,"LongDescription",,"T"),3)="768","",RIGHT(RTD("cqg.rtd",,"ContractData",ZQE!U52, "LongDescription"),15)) -> Sep 24, Oct 24 | AC26: =IF(LEFT(RTD("cqg.rtd", ,"ContractData", ZQE!U53,"LongDescription",,"T"),3)="768","",RIGHT(RTD("cqg.rtd",,"ContractData",ZQE!U53, "LongDescription"),15)) -> Oct 24, Nov 24 | AD26: =IF(LEFT(RTD("cqg.rtd", ,"ContractData", ZQE!U54,"LongDescription",,"T"),3)="768","",RIGHT(RTD("cqg.rtd",,"ContractData",ZQE!U54, "LongDescription"),15)) -> Nov 24, Dec 24
K27: =IF(RTD("cqg.rtd",,"ContractData",ZQE!U35, "Ask")="","",TEXT(RTD("cqg.rtd",,"ContractData",ZQE!U35, "Ask"),"#.000")&" "&"A") -> .085 A | L27: =IF(RTD("cqg.rtd",,"ContractData",ZQE!U36,"Ask")="","",TEXT(RTD("cqg.rtd",,"ContractData",ZQE!U36,"Ask"),"#.000")&" "&"A") -> -.070 A | M27: =IF(RTD("cqg.rtd",,"ContractData",ZQE!U37,"Ask")="","",TEXT(RTD("cqg.rtd",,"ContractData",ZQE!U37,"Ask"),"#.000")&" "&"A") -> -.120 A | N27: =IF(RTD("cqg.rtd",,"ContractData",ZQE!U38,"Ask")="","",TEXT(RTD("cqg.rtd",,"ContractData",ZQE!U38,"Ask"),"#.000")&" "&"A") -> -.230 A | O27: =IF(RTD("cqg.rtd",,"ContractData",ZQE!U39,"Ask")="","",TEXT(RTD("cqg.rtd",,"ContractData",ZQE!U39,"Ask"),"#.000")&" "&"A") -> -.065 A | P27: =IF(RTD("cqg.rtd",,"ContractData",ZQE!U40,"Ask")="","",TEXT(RTD("cqg.rtd",,"ContractData",ZQE!U40,"Ask"),"#.000")&" "&"A") -> -.115 A | Q27: =IF(RTD("cqg.rtd",,"ContractData",ZQE!U41,"Ask")="","",TEXT(RTD("cqg.rtd",,"ContractData",ZQE!U41,"Ask"),"#.000")&" "&"A") -> -.135 A | R27: =IF(RTD("cqg.rtd",,"ContractData",ZQE!U42,"Ask")="","",TEXT(RTD("cqg.rtd",,"ContractData",ZQE!U42,"Ask"),"#.000")&" "&"A") -> -.050 A | S27: =IF(RTD("cqg.rtd",,"ContractData",ZQE!U43,"Ask")="","",TEXT(RTD("cqg.rtd",,"ContractData",ZQE!U43,"Ask"),"#.000")&" "&"A") -> -.050 A | T27: =IF(RTD("cqg.rtd",,"ContractData",ZQE!U44,"Ask")="","",TEXT(RTD("cqg.rtd",,"ContractData",ZQE!U44,"Ask"),"#.000")&" "&"A") -> -.090 A | U27: =IF(RTD("cqg.rtd",,"ContractData",ZQE!U45,"Ask")="","",TEXT(RTD("cqg.rtd",,"ContractData",ZQE!U45,"Ask"),"#.000")&" "&"A") -> -.040 A | V27: =IF(RTD("cqg.rtd",,"ContractData",ZQE!U46,"Ask")="","",TEXT(RTD("cqg.rtd",,"ContractData",ZQE!U46,"Ask"),"#.000")&" "&"A") -> -.080 A | W27: =IF(RTD("cqg.rtd",,"ContractData",ZQE!U47,"Ask")="","",TEXT(RTD("cqg.rtd",,"ContractData",ZQE!U47,"Ask"),"#.000")&" "&"A") -> -.145 A | X27: =IF(RTD("cqg.rtd",,"ContractData",ZQE!U48,"Ask")="","",TEXT(RTD("cqg.rtd",,"ContractData",ZQE!U48,"Ask"),"#.000")&" "&"A") -> -.075 A | Y27: =IF(RTD("cqg.rtd",,"ContractData",ZQE!U49,"Ask")="","",TEXT(RTD("cqg.rtd",,"ContractData",ZQE!U49,"Ask"),"#.000")&" "&"A") -> -.055 A | Z27: =IF(RTD("cqg.rtd",,"ContractData",ZQE!U50,"Ask")="","",TEXT(RTD("cqg.rtd",,"ContractData",ZQE!U50,"Ask"),"#.000")&" "&"A") -> -.165 A | AA27: =IF(RTD("cqg.rtd",,"ContractData",ZQE!U51,"Ask")="","",TEXT(RTD("cqg.rtd",,"ContractData",ZQE!U51,"Ask"),"#.000")&" "&"A") ->  | AB27: =IF(RTD("cqg.rtd",,"ContractData",ZQE!U52,"Ask")="","",TEXT(RTD("cqg.rtd",,"ContractData",ZQE!U52,"Ask"),"#.000")&" "&"A") ->  | AC27: =IF(LEFT(RTD("cqg.rtd",,"ContractData",ZQE!U53,"Ask"),3)="768","",IF(RTD("cqg.rtd",,"ContractData",ZQE!U53,"Ask")="","",TEXT(RTD("cqg.rtd",,"ContractData",ZQE!U53,"Ask"),"#.000")&" "&"A")) ->  | AD27: =IF(LEFT(RTD("cqg.rtd",,"ContractData",ZQE!U54,"Ask"),3)="768","",IF(RTD("cqg.rtd",,"ContractData",ZQE!U54,"Ask")="","",TEXT(RTD("cqg.rtd",,"ContractData",ZQE!U54,"Ask"),"#.000")&" "&"A")) -> -.010 A
B28: Symbols | C28: Open | D28: High | E28: Low | F28: Last | G28: Net | H28: Net | I28: Volume | K28: =IF(RTD("cqg.rtd",,"ContractData",ZQE!U35, "Bid")="","",TEXT(RTD("cqg.rtd",,"ContractData",ZQE!U35, "Bid"),"#.000")&" "&"B") -> .080 B | L28: =IF(RTD("cqg.rtd",,"ContractData",ZQE!U36,"Bid")="","",TEXT(RTD("cqg.rtd",,"ContractData",ZQE!U36,"Bid"),"#.000")&" "&"B") -> -.075 B | M28: =IF(RTD("cqg.rtd",,"ContractData",ZQE!U37,"Bid")="","",TEXT(RTD("cqg.rtd",,"ContractData",ZQE!U37,"Bid"),"#.000")&" "&"B") -> -.130 B | N28: =IF(RTD("cqg.rtd",,"ContractData",ZQE!U38,"Bid")="","",TEXT(RTD("cqg.rtd",,"ContractData",ZQE!U38,"Bid"),"#.000")&" "&"B") -> -.240 B | O28: =IF(RTD("cqg.rtd",,"ContractData",ZQE!U39,"Bid")="","",TEXT(RTD("cqg.rtd",,"ContractData",ZQE!U39,"Bid"),"#.000")&" "&"B") -> -.070 B | P28: =IF(RTD("cqg.rtd",,"ContractData",ZQE!U40,"Bid")="","",TEXT(RTD("cqg.rtd",,"ContractData",ZQE!U40,"Bid"),"#.000")&" "&"B") -> -.125 B | Q28: =IF(RTD("cqg.rtd",,"ContractData",ZQE!U41,"Bid")="","",TEXT(RTD("cqg.rtd",,"ContractData",ZQE!U41,"Bid"),"#.000")&" "&"B") -> -.145 B | R28: =IF(RTD("cqg.rtd",,"ContractData",ZQE!U42,"Bid")="","",TEXT(RTD("cqg.rtd",,"ContractData",ZQE!U42,"Bid"),"#.000")&" "&"B") -> -.060 B | S28: =IF(RTD("cqg.rtd",,"ContractData",ZQE!U43,"Bid")="","",TEXT(RTD("cqg.rtd",,"ContractData",ZQE!U43,"Bid"),"#.000")&" "&"B") -> -.055 B | T28: =IF(RTD("cqg.rtd",,"ContractData",ZQE!U44,"Bid")="","",TEXT(RTD("cqg.rtd",,"ContractData",ZQE!U44,"Bid"),"#.000")&" "&"B") -> -.095 B | U28: =IF(RTD("cqg.rtd",,"ContractData",ZQE!U45,"Bid")="","",TEXT(RTD("cqg.rtd",,"ContractData",ZQE!U45,"Bid"),"#.000")&" "&"B") -> -.045 B | V28: =IF(RTD("cqg.rtd",,"ContractData",ZQE!U46,"Bid")="","",TEXT(RTD("cqg.rtd",,"ContractData",ZQE!U46,"Bid"),"#.000")&" "&"B") -> -.090 B | W28: =IF(RTD("cqg.rtd",,"ContractData",ZQE!U47,"Bid")="","",TEXT(RTD("cqg.rtd",,"ContractData",ZQE!U47,"Bid"),"#.000")&" "&"B") -> -.150 B | X28: =IF(RTD("cqg.rtd",,"ContractData",ZQE!U48,"Bid")="","",TEXT(RTD("cqg.rtd",,"ContractData",ZQE!U48,"Bid"),"#.000")&" "&"B") -> -.090 B | Y28: =IF(RTD("cqg.rtd",,"ContractData",ZQE!U49,"Bid")="","",TEXT(RTD("cqg.rtd",,"ContractData",ZQE!U49,"Bid"),"#.000")&" "&"B") -> -.065 B | Z28: =IF(RTD("cqg.rtd",,"ContractData",ZQE!U50,"Bid")="","",TEXT(RTD("cqg.rtd",,"ContractData",ZQE!U50,"Bid"),"#.000")&" "&"B") -> -.175 B | AA28: =IF(RTD("cqg.rtd",,"ContractData",ZQE!U51,"Bid")="","",TEXT(RTD("cqg.rtd",,"ContractData",ZQE!U51,"Bid"),"#.000")&" "&"B") -> -.100 B | AB28: =IF(RTD("cqg.rtd",,"ContractData",ZQE!U52,"Bid")="","",TEXT(RTD("cqg.rtd",,"ContractData",ZQE!U52,"Bid"),"#.000")&" "&"B") ->  | AC28: =IF(LEFT(RTD("cqg.rtd",,"ContractData",ZQE!U53,"Bid"),3)="768","",IF(RTD("cqg.rtd",,"ContractData",ZQE!U53,"Bid")="","",TEXT(RTD("cqg.rtd",,"ContractData",ZQE!U53,"Bid"),"#.000")&" "&"B")) -> -.330 B | AD28: =IF(LEFT(RTD("cqg.rtd",,"ContractData",ZQE!U54,"Bid"),3)="768","",IF(RTD("cqg.rtd",,"ContractData",ZQE!U54,"Bid")="","",TEXT(RTD("cqg.rtd",,"ContractData",ZQE!U54,"Bid"),"#.000")&" "&"B")) -> -.340 B
A29: =ZQE!U35 -> ZQES1?2 | B29: =RIGHT(RTD("cqg.rtd",,"ContractData",A29, "LongDescription"),15) -> Apr 23, May 23 | C29: =RTD("cqg.rtd", ,"ContractData",A29, "Open",,"T") -> 0.135 | D29: =RTD("cqg.rtd", ,"ContractData",A29, "High",,"T") -> 0.165 | E29: =RTD("cqg.rtd", ,"ContractData",A29, "Low",,"T") -> 0.07 | F29: =RTD("cqg.rtd", ,"ContractData",A29, "LastTradeorSettle",,"T") -> 0.08 | G29: =RTD("cqg.rtd",,"ContractData",A29,"NetLastTradeToday",,"T") -> -0.065 | H29: =RTD("cqg.rtd",,"ContractData",A29,"NetLastTradeToday",,"T") -> -0.065 | I29: =RTD("cqg.rtd", ,"ContractData",A29, "T_CVol") -> 26283 | K29: =IF(RTD("cqg.rtd", ,"ContractData",ZQE!U35,"LastTradeorSettle",,"T")="","",TEXT(RTD("cqg.rtd", ,"ContractData",ZQE!U35,"LastTradeorSettle",,"T"),"#.000")&" "&"L") -> .080 L | L29: =IF(RTD("cqg.rtd", ,"ContractData",ZQE!U36,"LastTradeorSettle",,"T")="","",TEXT(RTD("cqg.rtd", ,"ContractData",ZQE!U36,"LastTradeorSettle",,"T"),"#.000")&" "&"L") -> -.075 L | M29: =IF(RTD("cqg.rtd", ,"ContractData",ZQE!U37,"LastTradeorSettle",,"T")="","",TEXT(RTD("cqg.rtd", ,"ContractData",ZQE!U37,"LastTradeorSettle",,"T"),"#.000")&" "&"L") -> -.125 L | N29: =IF(RTD("cqg.rtd", ,"ContractData",ZQE!U38,"LastTradeorSettle",,"T")="","",TEXT(RTD("cqg.rtd", ,"ContractData",ZQE!U38,"LastTradeorSettle",,"T"),"#.000")&" "&"L") -> -.235 L | O29: =IF(RTD("cqg.rtd", ,"ContractData",ZQE!U39,"LastTradeorSettle",,"T")="","",TEXT(RTD("cqg.rtd", ,"ContractData",ZQE!U39,"LastTradeorSettle",,"T"),"#.000")&" "&"L") -> -.070 L | P29: =IF(RTD("cqg.rtd", ,"ContractData",ZQE!U40,"LastTradeorSettle",,"T")="","",TEXT(RTD("cqg.rtd", ,"ContractData",ZQE!U40,"LastTradeorSettle",,"T"),"#.000")&" "&"L") -> -.120 L | Q29: =IF(RTD("cqg.rtd", ,"ContractData",ZQE!U41,"LastTradeorSettle",,"T")="","",TEXT(RTD("cqg.rtd", ,"ContractData",ZQE!U41,"LastTradeorSettle",,"T"),"#.000")&" "&"L") -> -.140 L | R29: =IF(RTD("cqg.rtd", ,"ContractData",ZQE!U42,"LastTradeorSettle",,"T")="","",TEXT(RTD("cqg.rtd", ,"ContractData",ZQE!U42,"LastTradeorSettle",,"T"),"#.000")&" "&"L") -> -.055 L | S29: =IF(RTD("cqg.rtd", ,"ContractData",ZQE!U43,"LastTradeorSettle",,"T")="","",TEXT(RTD("cqg.rtd", ,"ContractData",ZQE!U43,"LastTradeorSettle",,"T"),"#.000")&" "&"L") -> -.055 L | T29: =IF(RTD("cqg.rtd", ,"ContractData",ZQE!U44,"LastTradeorSettle",,"T")="","",TEXT(RTD("cqg.rtd", ,"ContractData",ZQE!U44,"LastTradeorSettle",,"T"),"#.000")&" "&"L") -> -.090 L | U29: =IF(RTD("cqg.rtd", ,"ContractData",ZQE!U45,"LastTradeorSettle",,"T")="","",TEXT(RTD("cqg.rtd", ,"ContractData",ZQE!U45,"LastTradeorSettle",,"T"),"#.000")&" "&"L") -> -.035 L | V29: =IF(RTD("cqg.rtd", ,"ContractData",ZQE!U46,"LastTradeorSettle",,"T")="","",TEXT(RTD("cqg.rtd", ,"ContractData",ZQE!U46,"LastTradeorSettle",,"T"),"#.000")&" "&"L") -> -.080 L | W29: =IF(RTD("cqg.rtd", ,"ContractData",ZQE!U47,"LastTradeorSettle",,"T")="","",TEXT(RTD("cqg.rtd", ,"ContractData",ZQE!U47,"LastTradeorSettle",,"T"),"#.000")&" "&"L") -> -.145 L | X29: =IF(RTD("cqg.rtd", ,"ContractData",ZQE!U48,"LastTradeorSettle",,"T")="","",TEXT(RTD("cqg.rtd", ,"ContractData",ZQE!U48,"LastTradeorSettle",,"T"),"#.000")&" "&"L") ->  | Y29: =IF(RTD("cqg.rtd", ,"ContractData",ZQE!U49,"LastTradeorSettle",,"T")="","",TEXT(RTD("cqg.rtd", ,"ContractData",ZQE!U49,"LastTradeorSettle",,"T"),"#.000")&" "&"L") ->  | Z29: =IF(RTD("cqg.rtd", ,"ContractData",ZQE!U50,"LastTradeorSettle",,"T")="","",TEXT(RTD("cqg.rtd", ,"ContractData",ZQE!U50,"LastTradeorSettle",,"T"),"#.000")&" "&"L") -> -.165 L | AA29: =IF(RTD("cqg.rtd", ,"ContractData",ZQE!U51,"LastTradeorSettle",,"T")="","",TEXT(RTD("cqg.rtd", ,"ContractData",ZQE!U51,"LastTradeorSettle",,"T"),"#.000")&" "&"L") ->  | AB29: =IF(LEFT(RTD("cqg.rtd",,"ContractData",ZQE!U52,"LastTradeorSettle"),3)="768","",IF(RTD("cqg.rtd",,"ContractData",ZQE!U52,"LastTradeorSettle")="","",TEXT(RTD("cqg.rtd",,"ContractData",ZQE!U52,"LastTradeorSettle"),"#.000")&" "&"L")) ->  | AC29: =IF(LEFT(RTD("cqg.rtd",,"ContractData",ZQE!U53,"LastTradeorSettle"),3)="768","",IF(RTD("cqg.rtd",,"ContractData",ZQE!U53,"LastTradeorSettle")="","",TEXT(RTD("cqg.rtd",,"ContractData",ZQE!U53,"LastTradeorSettle"),"#.000")&" "&"L")) ->  | AD29: =IF(LEFT(RTD("cqg.rtd",,"ContractData",ZQE!U54,"LastTradeorSettle"),3)="768","",IF(RTD("cqg.rtd",,"ContractData",ZQE!U54,"LastTradeorSettle")="","",TEXT(RTD("cqg.rtd",,"ContractData",ZQE!U54,"LastTradeorSettle"),"#.000")&" "&"L")) -> 
A30: =ZQE!U36 -> ZQES1?3 | B30: =RIGHT(RTD("cqg.rtd",,"ContractData",A30, "LongDescription"),15) -> May 23, Jun 23 | C30: =RTD("cqg.rtd", ,"ContractData",A30, "Open",,"T") -> -0.025 | D30: =RTD("cqg.rtd", ,"ContractData",A30, "High",,"T") -> -0.015 | E30: =RTD("cqg.rtd", ,"ContractData",A30, "Low",,"T") -> -0.08 | F30: =RTD("cqg.rtd", ,"ContractData",A30, "LastTradeorSettle",,"T") -> -0.075 | G30: =RTD("cqg.rtd",,"ContractData",A30,"NetLastTradeToday",,"T") -> -0.045 | H30: =RTD("cqg.rtd",,"ContractData",A30,"NetLastTradeToday",,"T") -> -0.045 | I30: =RTD("cqg.rtd", ,"ContractData",A30, "T_CVol") -> 3372
A31: =ZQE!U37 -> ZQES1?4 | B31: =RIGHT(RTD("cqg.rtd",,"ContractData",A31, "LongDescription"),15) -> Jun 23, Jul 23 | C31: =RTD("cqg.rtd", ,"ContractData",A31, "Open",,"T") -> -0.1 | D31: =RTD("cqg.rtd", ,"ContractData",A31, "High",,"T") -> -0.08 | E31: =RTD("cqg.rtd", ,"ContractData",A31, "Low",,"T") -> -0.14 | F31: =RTD("cqg.rtd", ,"ContractData",A31, "LastTradeorSettle",,"T") -> -0.125 | G31: =RTD("cqg.rtd",,"ContractData",A31,"NetLastTradeToday",,"T") -> -0.035 | H31: =RTD("cqg.rtd",,"ContractData",A31,"NetLastTradeToday",,"T") -> -0.035 | I31: =RTD("cqg.rtd", ,"ContractData",A31, "T_CVol") -> 2207
A32: =ZQE!U38 -> ZQES1?5 | B32: =RIGHT(RTD("cqg.rtd",,"ContractData",A32, "LongDescription"),15) -> Jul 23, Aug 23 | C32: =RTD("cqg.rtd", ,"ContractData",A32, "Open",,"T") -> -0.205 | D32: =RTD("cqg.rtd", ,"ContractData",A32, "High",,"T") -> -0.175 | E32: =RTD("cqg.rtd", ,"ContractData",A32, "Low",,"T") -> -0.255 | F32: =RTD("cqg.rtd", ,"ContractData",A32, "LastTradeorSettle",,"T") -> -0.235 | G32: =RTD("cqg.rtd",,"ContractData",A32,"NetLastTradeToday",,"T") -> -0.03 | H32: =RTD("cqg.rtd",,"ContractData",A32,"NetLastTradeToday",,"T") -> -0.03 | I32: =RTD("cqg.rtd", ,"ContractData",A32, "T_CVol") -> 14229
A33: =ZQE!U39 -> ZQES1?6 | B33: =RIGHT(RTD("cqg.rtd",,"ContractData",A33, "LongDescription"),15) -> Aug 23, Sep 23 | C33: =RTD("cqg.rtd", ,"ContractData",A33, "Open",,"T") -> -0.055 | D33: =RTD("cqg.rtd", ,"ContractData",A33, "High",,"T") -> -0.05 | E33: =RTD("cqg.rtd", ,"ContractData",A33, "Low",,"T") -> -0.07 | F33: =RTD("cqg.rtd", ,"ContractData",A33, "LastTradeorSettle",,"T") -> -0.07 | G33: =RTD("cqg.rtd",,"ContractData",A33,"NetLastTradeToday",,"T") -> 0 | H33: =RTD("cqg.rtd",,"ContractData",A33,"NetLastTradeToday",,"T") -> 0 | I33: =RTD("cqg.rtd", ,"ContractData",A33, "T_CVol") -> 962
A34: =ZQE!U40 -> ZQES1?7 | B34: =RIGHT(RTD("cqg.rtd",,"ContractData",A34, "LongDescription"),15) -> Sep 23, Oct 23 | C34: =RTD("cqg.rtd", ,"ContractData",A34, "Open",,"T") -> -0.095 | D34: =RTD("cqg.rtd", ,"ContractData",A34, "High",,"T") -> -0.095 | E34: =RTD("cqg.rtd", ,"ContractData",A34, "Low",,"T") -> -0.13 | F34: =RTD("cqg.rtd", ,"ContractData",A34, "LastTradeorSettle",,"T") -> -0.12 | G34: =RTD("cqg.rtd",,"ContractData",A34,"NetLastTradeToday",,"T") -> 0 | H34: =RTD("cqg.rtd",,"ContractData",A34,"NetLastTradeToday",,"T") -> 0 | I34: =RTD("cqg.rtd", ,"ContractData",A34, "T_CVol") -> 937
A35: =ZQE!U41 -> ZQES1?8 | B35: =RIGHT(RTD("cqg.rtd",,"ContractData",A35, "LongDescription"),15) -> Oct 23, Nov 23 | C35: =RTD("cqg.rtd", ,"ContractData",A35, "Open",,"T") -> -0.125 | D35: =RTD("cqg.rtd", ,"ContractData",A35, "High",,"T") -> -0.115 | E35: =RTD("cqg.rtd", ,"ContractData",A35, "Low",,"T") -> -0.15 | F35: =RTD("cqg.rtd", ,"ContractData",A35, "LastTradeorSettle",,"T") -> -0.14 | G35: =RTD("cqg.rtd",,"ContractData",A35,"NetLastTradeToday",,"T") -> -0.005 | H35: =RTD("cqg.rtd",,"ContractData",A35,"NetLastTradeToday",,"T") -> -0.005 | I35: =RTD("cqg.rtd", ,"ContractData",A35, "T_CVol") -> 1096
A36: =ZQE!U42 -> ZQES1?9 | B36: =RIGHT(RTD("cqg.rtd",,"ContractData",A36, "LongDescription"),15) -> Nov 23, Dec 23 | C36: =RTD("cqg.rtd", ,"ContractData",A36, "Open",,"T") -> -0.05 | D36: =RTD("cqg.rtd", ,"ContractData",A36, "High",,"T") -> -0.05 | E36: =RTD("cqg.rtd", ,"ContractData",A36, "Low",,"T") -> -0.06 | F36: =RTD("cqg.rtd", ,"ContractData",A36, "LastTradeorSettle",,"T") -> -0.055 | G36: =RTD("cqg.rtd",,"ContractData",A36,"NetLastTradeToday",,"T") -> -0.005 | H36: =RTD("cqg.rtd",,"ContractData",A36,"NetLastTradeToday",,"T") -> -0.005 | I36: =RTD("cqg.rtd", ,"ContractData",A36, "T_CVol") -> 84
A37: =ZQE!U43 -> ZQES1?10 | B37: =RIGHT(RTD("cqg.rtd",,"ContractData",A37, "LongDescription"),15) -> Dec 23, Jan 24 | C37: =RTD("cqg.rtd", ,"ContractData",A37, "Open",,"T") -> -0.05 | D37: =RTD("cqg.rtd", ,"ContractData",A37, "High",,"T") -> -0.04 | E37: =RTD("cqg.rtd", ,"ContractData",A37, "Low",,"T") -> -0.06 | F37: =RTD("cqg.rtd", ,"ContractData",A37, "LastTradeorSettle",,"T") -> -0.055 | G37: =RTD("cqg.rtd",,"ContractData",A37,"NetLastTradeToday",,"T") -> 0 | H37: =RTD("cqg.rtd",,"ContractData",A37,"NetLastTradeToday",,"T") -> 0 | I37: =RTD("cqg.rtd", ,"ContractData",A37, "T_CVol") -> 627
A38: =ZQE!U44 -> ZQES1?11 | B38: =RIGHT(RTD("cqg.rtd",,"ContractData",A38, "LongDescription"),15) -> Jan 24, Feb 24 | C38: =RTD("cqg.rtd", ,"ContractData",A38, "Open",,"T") -> -0.095 | D38: =RTD("cqg.rtd", ,"ContractData",A38, "High",,"T") -> -0.075 | E38: =RTD("cqg.rtd", ,"ContractData",A38, "Low",,"T") -> -0.11 | F38: =RTD("cqg.rtd", ,"ContractData",A38, "LastTradeorSettle",,"T") -> -0.09 | G38: =RTD("cqg.rtd",,"ContractData",A38,"NetLastTradeToday",,"T") -> 0.015 | H38: =RTD("cqg.rtd",,"ContractData",A38,"NetLastTradeToday",,"T") -> 0.015 | I38: =RTD("cqg.rtd", ,"ContractData",A38, "T_CVol") -> 1403
A39: =ZQE!U45 -> ZQES1?12 | B39: =RIGHT(RTD("cqg.rtd",,"ContractData",A39, "LongDescription"),15) -> Feb 24, Mar 24 | C39: =RTD("cqg.rtd", ,"ContractData",A39, "Open",,"T") -> -0.035 | D39: =RTD("cqg.rtd", ,"ContractData",A39, "High",,"T") -> -0.035 | E39: =RTD("cqg.rtd", ,"ContractData",A39, "Low",,"T") -> -0.05 | F39: =RTD("cqg.rtd", ,"ContractData",A39, "LastTradeorSettle",,"T") -> -0.035 | G39: =RTD("cqg.rtd",,"ContractData",A39,"NetLastTradeToday",,"T") -> 0.005 | H39: =RTD("cqg.rtd",,"ContractData",A39,"NetLastTradeToday",,"T") -> 0.005 | I39: =RTD("cqg.rtd", ,"ContractData",A39, "T_CVol") -> 22
A40: =ZQE!U46 -> ZQES1?13 | B40: =RIGHT(RTD("cqg.rtd",,"ContractData",A40, "LongDescription"),15) -> Mar 24, Apr 24 | C40: =RTD("cqg.rtd", ,"ContractData",A40, "Open",,"T") -> -0.075 | D40: =RTD("cqg.rtd", ,"ContractData",A40, "High",,"T") -> -0.07 | E40: =RTD("cqg.rtd", ,"ContractData",A40, "Low",,"T") -> -0.08 | F40: =RTD("cqg.rtd", ,"ContractData",A40, "LastTradeorSettle",,"T") -> -0.08 | G40: =RTD("cqg.rtd",,"ContractData",A40,"NetLastTradeToday",,"T") -> 0.01 | H40: =RTD("cqg.rtd",,"ContractData",A40,"NetLastTradeToday",,"T") -> 0.01 | I40: =RTD("cqg.rtd", ,"ContractData",A40, "T_CVol") -> 7
B41: Calendar Spread: | D41: 2-Month | G41: =ZQE!AF28 -> 0.4 | H41: =ZQE!AG28 -> -0.5
B42: =D41&" Calendar Spreads" -> 2-Month Calendar Spreads | K42: =RIGHT(RTD("cqg.rtd",,"ContractData",ZQE!AF35, "LongDescription"),15) -> Apr 23, Jun 23 | L42: =RIGHT(RTD("cqg.rtd",,"ContractData",ZQE!AF36, "LongDescription"),15) -> May 23, Jul 23 | M42: =RIGHT(RTD("cqg.rtd",,"ContractData",ZQE!AF37, "LongDescription"),15) -> Jun 23, Aug 23 | N42: =RIGHT(RTD("cqg.rtd",,"ContractData",ZQE!AF38, "LongDescription"),15) -> Jul 23, Sep 23 | O42: =RIGHT(RTD("cqg.rtd",,"ContractData",ZQE!AF39, "LongDescription"),15) -> Aug 23, Oct 23 | P42: =RIGHT(RTD("cqg.rtd",,"ContractData",ZQE!AF40, "LongDescription"),15) -> Sep 23, Nov 23 | Q42: =RIGHT(RTD("cqg.rtd",,"ContractData",ZQE!AF41, "LongDescription"),15) -> Oct 23, Dec 23 | R42: =RIGHT(RTD("cqg.rtd",,"ContractData",ZQE!AF42, "LongDescription"),15) -> Nov 23, Jan 24 | S42: =RIGHT(RTD("cqg.rtd",,"ContractData",ZQE!AF43, "LongDescription"),15) -> Dec 23, Feb 24 | T42: =RIGHT(RTD("cqg.rtd",,"ContractData",ZQE!AF44, "LongDescription"),15) -> Jan 24, Mar 24 | U42: =RIGHT(RTD("cqg.rtd",,"ContractData",ZQE!AF45, "LongDescription"),15) -> Feb 24, Apr 24 | V42: =RIGHT(RTD("cqg.rtd",,"ContractData",ZQE!AF46, "LongDescription"),15) -> Mar 24, May 24 | W42: =RIGHT(RTD("cqg.rtd",,"ContractData",ZQE!AF47, "LongDescription"),15) -> Apr 24, Jun 24 | X42: =RIGHT(RTD("cqg.rtd",,"ContractData",ZQE!AF48, "LongDescription"),15) -> May 24, Jul 24 | Y42: =RIGHT(RTD("cqg.rtd",,"ContractData",ZQE!AF49, "LongDescription"),15) -> Jun 24, Aug 24 | Z42: =RIGHT(RTD("cqg.rtd",,"ContractData",ZQE!AF50, "LongDescription"),15) -> Jul 24, Sep 24 | AA42: =RIGHT(RTD("cqg.rtd",,"ContractData",ZQE!AF51, "LongDescription"),15) -> Aug 24, Oct 24 | AB42: =RIGHT(RTD("cqg.rtd",,"ContractData",ZQE!AF52, "LongDescription"),15) -> Sep 24, Nov 24 | AC42: =IF(LEFT(RTD("cqg.rtd", ,"ContractData", ZQE!AF53,"LongDescription",,"T"),3)="768","",RIGHT(RTD("cqg.rtd",,"ContractData",ZQE!AF53, "LongDescription"),15)) -> Oct 24, Dec 24 | AD42: =IF(LEFT(RTD("cqg.rtd", ,"ContractData", ZQE!AF54,"LongDescription",,"T"),3)="768","",RIGHT(RTD("cqg.rtd",,"ContractData",ZQE!AF54, "LongDescription"),15)) -> Nov 24, Jan 25
K43: =IF(RTD("cqg.rtd",,"ContractData",ZQE!AF35, "Ask")="","",TEXT(RTD("cqg.rtd",,"ContractData",ZQE!AF35, "Ask"),"#.000")&" "&"A") -> .010 A | L43: =IF(RTD("cqg.rtd",,"ContractData",ZQE!AF36, "Ask")="","",TEXT(RTD("cqg.rtd",,"ContractData",ZQE!AF36, "Ask"),"#.000")&" "&"A") -> -.195 A | M43: =IF(RTD("cqg.rtd",,"ContractData",ZQE!AF37, "Ask")="","",TEXT(RTD("cqg.rtd",,"ContractData",ZQE!AF37, "Ask"),"#.000")&" "&"A") -> -.360 A | N43: =IF(RTD("cqg.rtd",,"ContractData",ZQE!AF38, "Ask")="","",TEXT(RTD("cqg.rtd",,"ContractData",ZQE!AF38, "Ask"),"#.000")&" "&"A") -> -.295 A | O43: =IF(RTD("cqg.rtd",,"ContractData",ZQE!AF39, "Ask")="","",TEXT(RTD("cqg.rtd",,"ContractData",ZQE!AF39, "Ask"),"#.000")&" "&"A") -> -.185 A | P43: =IF(RTD("cqg.rtd",,"ContractData",ZQE!AF40, "Ask")="","",TEXT(RTD("cqg.rtd",,"ContractData",ZQE!AF40, "Ask"),"#.000")&" "&"A") -> -.255 A | Q43: =IF(RTD("cqg.rtd",,"ContractData",ZQE!AF41, "Ask")="","",TEXT(RTD("cqg.rtd",,"ContractData",ZQE!AF41, "Ask"),"#.000")&" "&"A") -> -.190 A | R43: =IF(RTD("cqg.rtd",,"ContractData",ZQE!AF42, "Ask")="","",TEXT(RTD("cqg.rtd",,"ContractData",ZQE!AF42, "Ask"),"#.000")&" "&"A") -> -.105 A | S43: =IF(RTD("cqg.rtd",,"ContractData",ZQE!AF43, "Ask")="","",TEXT(RTD("cqg.rtd",,"ContractData",ZQE!AF43, "Ask"),"#.000")&" "&"A") -> -.140 A | T43: =IF(RTD("cqg.rtd",,"ContractData",ZQE!AF44, "Ask")="","",TEXT(RTD("cqg.rtd",,"ContractData",ZQE!AF44, "Ask"),"#.000")&" "&"A") -> -.130 A | U43: =IF(RTD("cqg.rtd",,"ContractData",ZQE!AF45, "Ask")="","",TEXT(RTD("cqg.rtd",,"ContractData",ZQE!AF45, "Ask"),"#.000")&" "&"A") -> -.120 A | V43: =IF(RTD("cqg.rtd",,"ContractData",ZQE!AF46, "Ask")="","",TEXT(RTD("cqg.rtd",,"ContractData",ZQE!AF46, "Ask"),"#.000")&" "&"A") -> -.225 A | W43: =IF(RTD("cqg.rtd",,"ContractData",ZQE!AF47, "Ask")="","",TEXT(RTD("cqg.rtd",,"ContractData",ZQE!AF47, "Ask"),"#.000")&" "&"A") -> -.225 A | X43: =IF(RTD("cqg.rtd",,"ContractData",ZQE!AF48, "Ask")="","",TEXT(RTD("cqg.rtd",,"ContractData",ZQE!AF48, "Ask"),"#.000")&" "&"A") -> -.135 A | Y43: =IF(RTD("cqg.rtd",,"ContractData",ZQE!AF49, "Ask")="","",TEXT(RTD("cqg.rtd",,"ContractData",ZQE!AF49, "Ask"),"#.000")&" "&"A") ->  | Z43: =IF(RTD("cqg.rtd",,"ContractData",ZQE!AF50, "Ask")="","",TEXT(RTD("cqg.rtd",,"ContractData",ZQE!AF50, "Ask"),"#.000")&" "&"A") -> .400 A | AA43: =IF(RTD("cqg.rtd",,"ContractData",ZQE!AF51, "Ask")="","",TEXT(RTD("cqg.rtd",,"ContractData",ZQE!AF51, "Ask"),"#.000")&" "&"A") -> .200 A | AB43: =IF(RTD("cqg.rtd",,"ContractData",ZQE!AF52, "Ask")="","",TEXT(RTD("cqg.rtd",,"ContractData",ZQE!AF52, "Ask"),"#.000")&" "&"A") -> .400 A | AC43: =IF(LEFT(RTD("cqg.rtd",,"ContractData",ZQE!AF53,"Ask"),3)="768","",IF(RTD("cqg.rtd",,"ContractData",ZQE!AF53,"Ask")="","",TEXT(RTD("cqg.rtd",,"ContractData",ZQE!AF53,"Ask"),"#.000")&" "&"A")) ->  | AD43: =IF(LEFT(RTD("cqg.rtd",,"ContractData",ZQE!AF54,"Ask"),3)="768","",IF(RTD("cqg.rtd",,"ContractData",ZQE!AF54,"Ask")="","",TEXT(RTD("cqg.rtd",,"ContractData",ZQE!AF54,"Ask"),"#.000")&" "&"A")) -> 
B44: Symbols | C44: Open | D44: High | E44: Low | F44: Last | G44: Net | H44: Net | I44: Volume | K44: =IF(RTD("cqg.rtd",,"ContractData",ZQE!AF35, "Bid")="","",TEXT(RTD("cqg.rtd",,"ContractData",ZQE!AF35, "Bid"),"#.000")&" "&"B") -> .005 B | L44: =IF(RTD("cqg.rtd",,"ContractData",ZQE!AF36, "Bid")="","",TEXT(RTD("cqg.rtd",,"ContractData",ZQE!AF36, "Bid"),"#.000")&" "&"B") -> -.205 B | M44: =IF(RTD("cqg.rtd",,"ContractData",ZQE!AF37, "Bid")="","",TEXT(RTD("cqg.rtd",,"ContractData",ZQE!AF37, "Bid"),"#.000")&" "&"B") -> -.365 B | N44: =IF(RTD("cqg.rtd",,"ContractData",ZQE!AF38, "Bid")="","",TEXT(RTD("cqg.rtd",,"ContractData",ZQE!AF38, "Bid"),"#.000")&" "&"B") -> -.305 B | O44: =IF(RTD("cqg.rtd",,"ContractData",ZQE!AF39, "Bid")="","",TEXT(RTD("cqg.rtd",,"ContractData",ZQE!AF39, "Bid"),"#.000")&" "&"B") -> -.190 B | P44: =IF(RTD("cqg.rtd",,"ContractData",ZQE!AF40, "Bid")="","",TEXT(RTD("cqg.rtd",,"ContractData",ZQE!AF40, "Bid"),"#.000")&" "&"B") -> -.265 B | Q44: =IF(RTD("cqg.rtd",,"ContractData",ZQE!AF41, "Bid")="","",TEXT(RTD("cqg.rtd",,"ContractData",ZQE!AF41, "Bid"),"#.000")&" "&"B") -> -.200 B | R44: =IF(RTD("cqg.rtd",,"ContractData",ZQE!AF42, "Bid")="","",TEXT(RTD("cqg.rtd",,"ContractData",ZQE!AF42, "Bid"),"#.000")&" "&"B") -> -.115 B | S44: =IF(RTD("cqg.rtd",,"ContractData",ZQE!AF43, "Bid")="","",TEXT(RTD("cqg.rtd",,"ContractData",ZQE!AF43, "Bid"),"#.000")&" "&"B") -> -.150 B | T44: =IF(RTD("cqg.rtd",,"ContractData",ZQE!AF44, "Bid")="","",TEXT(RTD("cqg.rtd",,"ContractData",ZQE!AF44, "Bid"),"#.000")&" "&"B") -> -.140 B | U44: =IF(RTD("cqg.rtd",,"ContractData",ZQE!AF45, "Bid")="","",TEXT(RTD("cqg.rtd",,"ContractData",ZQE!AF45, "Bid"),"#.000")&" "&"B") -> -.130 B | V44: =IF(RTD("cqg.rtd",,"ContractData",ZQE!AF46, "Bid")="","",TEXT(RTD("cqg.rtd",,"ContractData",ZQE!AF46, "Bid"),"#.000")&" "&"B") -> -.245 B | W44: =IF(RTD("cqg.rtd",,"ContractData",ZQE!AF47, "Bid")="","",TEXT(RTD("cqg.rtd",,"ContractData",ZQE!AF47, "Bid"),"#.000")&" "&"B") -> -.245 B | X44: =IF(RTD("cqg.rtd",,"ContractData",ZQE!AF48, "Bid")="","",TEXT(RTD("cqg.rtd",,"ContractData",ZQE!AF48, "Bid"),"#.000")&" "&"B") -> -.145 B | Y44: =IF(RTD("cqg.rtd",,"ContractData",ZQE!AF49, "Bid")="","",TEXT(RTD("cqg.rtd",,"ContractData",ZQE!AF49, "Bid"),"#.000")&" "&"B") ->  | Z44: =IF(RTD("cqg.rtd",,"ContractData",ZQE!AF50, "Bid")="","",TEXT(RTD("cqg.rtd",,"ContractData",ZQE!AF50, "Bid"),"#.000")&" "&"B") -> -.405 B | AA44: =IF(RTD("cqg.rtd",,"ContractData",ZQE!AF51, "Bid")="","",TEXT(RTD("cqg.rtd",,"ContractData",ZQE!AF51, "Bid"),"#.000")&" "&"B") -> -.550 B | AB44: =IF(RTD("cqg.rtd",,"ContractData",ZQE!AF52, "Bid")="","",TEXT(RTD("cqg.rtd",,"ContractData",ZQE!AF52, "Bid"),"#.000")&" "&"B") ->  | AC44: =IF(LEFT(RTD("cqg.rtd",,"ContractData",ZQE!AF53,"Bid"),3)="768","",IF(RTD("cqg.rtd",,"ContractData",ZQE!AF53,"Bid")="","",TEXT(RTD("cqg.rtd",,"ContractData",ZQE!AF53,"Bid"),"#.000")&" "&"B")) -> -.655 B | AD44: =IF(LEFT(RTD("cqg.rtd",,"ContractData",ZQE!AF54,"Bid"),3)="768","",IF(RTD("cqg.rtd",,"ContractData",ZQE!AF54,"Bid")="","",TEXT(RTD("cqg.rtd",,"ContractData",ZQE!AF54,"Bid"),"#.000")&" "&"B")) -> -.900 B
A45: =RTD("cqg.rtd",,"ContractData",ZQE!AF35, "Symbol") -> ZQES2J23 | B45: =RIGHT(RTD("cqg.rtd",,"ContractData",A45, "LongDescription"),15) -> Apr 23, Jun 23 | C45: =RTD("cqg.rtd", ,"ContractData",A45, "Open",,"T") -> 0.115 | D45: =RTD("cqg.rtd", ,"ContractData",A45, "High",,"T") -> 0.14 | E45: =RTD("cqg.rtd", ,"ContractData",A45, "Low",,"T") -> -0.005 | F45: =RTD("cqg.rtd", ,"ContractData",A45, "LastTradeorSettle",,"T") -> 0.005 | G45: =RTD("cqg.rtd",,"ContractData",A45,"NetLastTradeToday",,"T") -> -0.11 | H45: =RTD("cqg.rtd",,"ContractData",A45,"NetLastTradeToday",,"T") -> -0.11 | I45: =RTD("cqg.rtd", ,"ContractData",A45, "T_CVol") -> 968 | K45: =IF(RTD("cqg.rtd", ,"ContractData",ZQE!AF35,"LastTradeorSettle",,"T")="","",TEXT(RTD("cqg.rtd", ,"ContractData",ZQE!AF35,"LastTradeorSettle",,"T"),"#.000")&" "&"L") -> .005 L | L45: =IF(RTD("cqg.rtd", ,"ContractData",ZQE!AF36,"LastTradeorSettle",,"T")="","",TEXT(RTD("cqg.rtd", ,"ContractData",ZQE!AF36,"LastTradeorSettle",,"T"),"#.000")&" "&"L") -> -.200 L | M45: =IF(RTD("cqg.rtd", ,"ContractData",ZQE!AF37,"LastTradeorSettle",,"T")="","",TEXT(RTD("cqg.rtd", ,"ContractData",ZQE!AF37,"LastTradeorSettle",,"T"),"#.000")&" "&"L") -> -.360 L | N45: =IF(RTD("cqg.rtd", ,"ContractData",ZQE!AF38,"LastTradeorSettle",,"T")="","",TEXT(RTD("cqg.rtd", ,"ContractData",ZQE!AF38,"LastTradeorSettle",,"T"),"#.000")&" "&"L") -> -.305 L | O45: =IF(RTD("cqg.rtd", ,"ContractData",ZQE!AF39,"LastTradeorSettle",,"T")="","",TEXT(RTD("cqg.rtd", ,"ContractData",ZQE!AF39,"LastTradeorSettle",,"T"),"#.000")&" "&"L") -> -.190 L | P45: =IF(RTD("cqg.rtd", ,"ContractData",ZQE!AF40,"LastTradeorSettle",,"T")="","",TEXT(RTD("cqg.rtd", ,"ContractData",ZQE!AF40,"LastTradeorSettle",,"T"),"#.000")&" "&"L") -> -.270 L | Q45: =IF(RTD("cqg.rtd", ,"ContractData",ZQE!AF41,"LastTradeorSettle",,"T")="","",TEXT(RTD("cqg.rtd", ,"ContractData",ZQE!AF41,"LastTradeorSettle",,"T"),"#.000")&" "&"L") -> -.195 L | R45: =IF(RTD("cqg.rtd", ,"ContractData",ZQE!AF42,"LastTradeorSettle",,"T")="","",TEXT(RTD("cqg.rtd", ,"ContractData",ZQE!AF42,"LastTradeorSettle",,"T"),"#.000")&" "&"L") -> -.110 L | S45: =IF(RTD("cqg.rtd", ,"ContractData",ZQE!AF43,"LastTradeorSettle",,"T")="","",TEXT(RTD("cqg.rtd", ,"ContractData",ZQE!AF43,"LastTradeorSettle",,"T"),"#.000")&" "&"L") -> -.135 L | T45: =IF(RTD("cqg.rtd", ,"ContractData",ZQE!AF44,"LastTradeorSettle",,"T")="","",TEXT(RTD("cqg.rtd", ,"ContractData",ZQE!AF44,"LastTradeorSettle",,"T"),"#.000")&" "&"L") -> -.115 L | U45: =IF(RTD("cqg.rtd", ,"ContractData",ZQE!AF45,"LastTradeorSettle",,"T")="","",TEXT(RTD("cqg.rtd", ,"ContractData",ZQE!AF45,"LastTradeorSettle",,"T"),"#.000")&" "&"L") -> -.125 L | V45: =IF(RTD("cqg.rtd", ,"ContractData",ZQE!AF46,"LastTradeorSettle",,"T")="","",TEXT(RTD("cqg.rtd", ,"ContractData",ZQE!AF46,"LastTradeorSettle",,"T"),"#.000")&" "&"L") -> -.215 L | W45: =IF(RTD("cqg.rtd", ,"ContractData",ZQE!AF47,"LastTradeorSettle",,"T")="","",TEXT(RTD("cqg.rtd", ,"ContractData",ZQE!AF47,"LastTradeorSettle",,"T"),"#.000")&" "&"L") ->  | X45: =IF(RTD("cqg.rtd", ,"ContractData",ZQE!AF48,"LastTradeorSettle",,"T")="","",TEXT(RTD("cqg.rtd", ,"ContractData",ZQE!AF48,"LastTradeorSettle",,"T"),"#.000")&" "&"L") -> -.140 L | Y45: =IF(RTD("cqg.rtd", ,"ContractData",ZQE!AF49,"LastTradeorSettle",,"T")="","",TEXT(RTD("cqg.rtd", ,"ContractData",ZQE!AF49,"LastTradeorSettle",,"T"),"#.000")&" "&"L") ->  | Z45: =IF(RTD("cqg.rtd", ,"ContractData",ZQE!AF50,"LastTradeorSettle",,"T")="","",TEXT(RTD("cqg.rtd", ,"ContractData",ZQE!AF50,"LastTradeorSettle",,"T"),"#.000")&" "&"L") ->  | AA45: =IF(RTD("cqg.rtd", ,"ContractData",ZQE!AF51,"LastTradeorSettle",,"T")="","",TEXT(RTD("cqg.rtd", ,"ContractData",ZQE!AF51,"LastTradeorSettle",,"T"),"#.000")&" "&"L") ->  | AB45: =IF(LEFT(RTD("cqg.rtd",,"ContractData",ZQE!AF52,"LastTradeorSettle"),3)="768","",IF(RTD("cqg.rtd",,"ContractData",ZQE!AF52,"LastTradeorSettle")="","",TEXT(RTD("cqg.rtd",,"ContractData",ZQE!AF52,"LastTradeorSettle"),"#.000")&" "&"L")) ->  | AC45: =IF(LEFT(RTD("cqg.rtd",,"ContractData",ZQE!AF53,"LastTradeorSettle"),3)="768","",IF(RTD("cqg.rtd",,"ContractData",ZQE!AF53,"LastTradeorSettle")="","",TEXT(RTD("cqg.rtd",,"ContractData",ZQE!AF53,"LastTradeorSettle"),"#.000")&" "&"L")) ->  | AD45: =IF(LEFT(RTD("cqg.rtd",,"ContractData",ZQE!AF53,"LastTradeorSettle"),3)="768","",IF(RTD("cqg.rtd",,"ContractData",ZQE!AF53,"LastTradeorSettle")="","",TEXT(RTD("cqg.rtd",,"ContractData",ZQE!AF53,"LastTradeorSettle"),"#.000")&" "&"L")) -> 
A46: =RTD("cqg.rtd",,"ContractData",ZQE!AF36, "Symbol") -> ZQES2K23 | B46: =RIGHT(RTD("cqg.rtd",,"ContractData",A46, "LongDescription"),15) -> May 23, Jul 23 | C46: =RTD("cqg.rtd", ,"ContractData",A46, "Open",,"T") -> -0.13 | D46: =RTD("cqg.rtd", ,"ContractData",A46, "High",,"T") -> -0.095 | E46: =RTD("cqg.rtd", ,"ContractData",A46, "Low",,"T") -> -0.22 | F46: =RTD("cqg.rtd", ,"ContractData",A46, "LastTradeorSettle",,"T") -> -0.2 | G46: =RTD("cqg.rtd",,"ContractData",A46,"NetLastTradeToday",,"T") -> -0.08 | H46: =RTD("cqg.rtd",,"ContractData",A46,"NetLastTradeToday",,"T") -> -0.08 | I46: =RTD("cqg.rtd", ,"ContractData",A46, "T_CVol") -> 15060
A47: =RTD("cqg.rtd",,"ContractData",ZQE!AF37, "Symbol") -> ZQES2M23 | B47: =RIGHT(RTD("cqg.rtd",,"ContractData",A47, "LongDescription"),15) -> Jun 23, Aug 23 | C47: =RTD("cqg.rtd", ,"ContractData",A47, "Open",,"T") -> -0.29 | D47: =RTD("cqg.rtd", ,"ContractData",A47, "High",,"T") -> -0.28 | E47: =RTD("cqg.rtd", ,"ContractData",A47, "Low",,"T") -> -0.39 | F47: =RTD("cqg.rtd", ,"ContractData",A47, "LastTradeorSettle",,"T") -> -0.36 | G47: =RTD("cqg.rtd",,"ContractData",A47,"NetLastTradeToday",,"T") -> -0.065 | H47: =RTD("cqg.rtd",,"ContractData",A47,"NetLastTradeToday",,"T") -> -0.065 | I47: =RTD("cqg.rtd", ,"ContractData",A47, "T_CVol") -> 1012
A48: =RTD("cqg.rtd",,"ContractData",ZQE!AF38, "Symbol") -> ZQES2N23 | B48: =RIGHT(RTD("cqg.rtd",,"ContractData",A48, "LongDescription"),15) -> Jul 23, Sep 23 | C48: =RTD("cqg.rtd", ,"ContractData",A48, "Open",,"T") -> -0.235 | D48: =RTD("cqg.rtd", ,"ContractData",A48, "High",,"T") -> -0.235 | E48: =RTD("cqg.rtd", ,"ContractData",A48, "Low",,"T") -> -0.32 | F48: =RTD("cqg.rtd", ,"ContractData",A48, "LastTradeorSettle",,"T") -> -0.305 | G48: =RTD("cqg.rtd",,"ContractData",A48,"NetLastTradeToday",,"T") -> -0.03 | H48: =RTD("cqg.rtd",,"ContractData",A48,"NetLastTradeToday",,"T") -> -0.03 | I48: =RTD("cqg.rtd", ,"ContractData",A48, "T_CVol") -> 78
A49: =RTD("cqg.rtd",,"ContractData",ZQE!AF39, "Symbol") -> ZQES2Q23 | B49: =RIGHT(RTD("cqg.rtd",,"ContractData",A49, "LongDescription"),15) -> Aug 23, Oct 23 | C49: =RTD("cqg.rtd", ,"ContractData",A49, "Open",,"T") -> -0.155 | D49: =RTD("cqg.rtd", ,"ContractData",A49, "High",,"T") -> -0.15 | E49: =RTD("cqg.rtd", ,"ContractData",A49, "Low",,"T") -> -0.205 | F49: =RTD("cqg.rtd", ,"ContractData",A49, "LastTradeorSettle",,"T") -> -0.19 | G49: =RTD("cqg.rtd",,"ContractData",A49,"NetLastTradeToday",,"T") -> 0 | H49: =RTD("cqg.rtd",,"ContractData",A49,"NetLastTradeToday",,"T") -> 0 | I49: =RTD("cqg.rtd", ,"ContractData",A49, "T_CVol") -> 4727
A50: =RTD("cqg.rtd",,"ContractData",ZQE!AF40, "Symbol") -> ZQES2U23 | B50: =RIGHT(RTD("cqg.rtd",,"ContractData",A50, "LongDescription"),15) -> Sep 23, Nov 23 | C50: =RTD("cqg.rtd", ,"ContractData",A50, "Open",,"T") -> -0.26 | D50: =RTD("cqg.rtd", ,"ContractData",A50, "High",,"T") -> -0.26 | E50: =RTD("cqg.rtd", ,"ContractData",A50, "Low",,"T") -> -0.275 | F50: =RTD("cqg.rtd", ,"ContractData",A50, "LastTradeorSettle",,"T") -> -0.27 | G50: =RTD("cqg.rtd",,"ContractData",A50,"NetLastTradeToday",,"T") -> -0.015 | H50: =RTD("cqg.rtd",,"ContractData",A50,"NetLastTradeToday",,"T") -> -0.015 | I50: =RTD("cqg.rtd", ,"ContractData",A50, "T_CVol") -> 10
A51: =RTD("cqg.rtd",,"ContractData",ZQE!AF41, "Symbol") -> ZQES2V23 | B51: =RIGHT(RTD("cqg.rtd",,"ContractData",A51, "LongDescription"),15) -> Oct 23, Dec 23 | C51: =RTD("cqg.rtd", ,"ContractData",A51, "Open",,"T") -> -0.18 | D51: =RTD("cqg.rtd", ,"ContractData",A51, "High",,"T") -> -0.18 | E51: =RTD("cqg.rtd", ,"ContractData",A51, "Low",,"T") -> -0.195 | F51: =RTD("cqg.rtd", ,"ContractData",A51, "LastTradeorSettle",,"T") -> -0.195 | G51: =RTD("cqg.rtd",,"ContractData",A51,"NetLastTradeToday",,"T") -> -0.01 | H51: =RTD("cqg.rtd",,"ContractData",A51,"NetLastTradeToday",,"T") -> -0.01 | I51: =RTD("cqg.rtd", ,"ContractData",A51, "T_CVol") -> 22
A52: =RTD("cqg.rtd",,"ContractData",ZQE!AF42, "Symbol") -> ZQES2X23 | B52: =RIGHT(RTD("cqg.rtd",,"ContractData",A52, "LongDescription"),15) -> Nov 23, Jan 24 | C52: =RTD("cqg.rtd", ,"ContractData",A52, "Open",,"T") -> -0.095 | D52: =RTD("cqg.rtd", ,"ContractData",A52, "High",,"T") -> -0.085 | E52: =RTD("cqg.rtd", ,"ContractData",A52, "Low",,"T") -> -0.115 | F52: =RTD("cqg.rtd", ,"ContractData",A52, "LastTradeorSettle",,"T") -> -0.11 | G52: =RTD("cqg.rtd",,"ContractData",A52,"NetLastTradeToday",,"T") -> -0.005 | H52: =RTD("cqg.rtd",,"ContractData",A52,"NetLastTradeToday",,"T") -> -0.005 | I52: =RTD("cqg.rtd", ,"ContractData",A52, "T_CVol") -> 1286
A53: =RTD("cqg.rtd",,"ContractData",ZQE!AF43, "Symbol") -> ZQES2Z23 | B53: =RIGHT(RTD("cqg.rtd",,"ContractData",A53, "LongDescription"),15) -> Dec 23, Feb 24 | C53: =RTD("cqg.rtd", ,"ContractData",A53, "Open",,"T") -> -0.155 | D53: =RTD("cqg.rtd", ,"ContractData",A53, "High",,"T") -> -0.135 | E53: =RTD("cqg.rtd", ,"ContractData",A53, "Low",,"T") -> -0.16 | F53: =RTD("cqg.rtd", ,"ContractData",A53, "LastTradeorSettle",,"T") -> -0.135 | G53: =RTD("cqg.rtd",,"ContractData",A53,"NetLastTradeToday",,"T") -> 0.025 | H53: =RTD("cqg.rtd",,"ContractData",A53,"NetLastTradeToday",,"T") -> 0.025 | I53: =RTD("cqg.rtd", ,"ContractData",A53, "T_CVol") -> 20
A54: =RTD("cqg.rtd",,"ContractData",ZQE!AF44, "Symbol") -> ZQES2F24 | B54: =RIGHT(RTD("cqg.rtd",,"ContractData",A54, "LongDescription"),15) -> Jan 24, Mar 24 | C54: =RTD("cqg.rtd", ,"ContractData",A54, "Open",,"T") -> -0.115 | D54: =RTD("cqg.rtd", ,"ContractData",A54, "High",,"T") -> -0.115 | E54: =RTD("cqg.rtd", ,"ContractData",A54, "Low",,"T") -> -0.12 | F54: =RTD("cqg.rtd", ,"ContractData",A54, "LastTradeorSettle",,"T") -> -0.115 | G54: =RTD("cqg.rtd",,"ContractData",A54,"NetLastTradeToday",,"T") -> 0.03 | H54: =RTD("cqg.rtd",,"ContractData",A54,"NetLastTradeToday",,"T") -> 0.03 | I54: =RTD("cqg.rtd", ,"ContractData",A54, "T_CVol") -> 17
A55: =RTD("cqg.rtd",,"ContractData",ZQE!AF45, "Symbol") -> ZQES2G24 | B55: =RIGHT(RTD("cqg.rtd",,"ContractData",A55, "LongDescription"),15) -> Feb 24, Apr 24 | C55: =RTD("cqg.rtd", ,"ContractData",A55, "Open",,"T") -> -0.11 | D55: =RTD("cqg.rtd", ,"ContractData",A55, "High",,"T") -> -0.105 | E55: =RTD("cqg.rtd", ,"ContractData",A55, "Low",,"T") -> -0.135 | F55: =RTD("cqg.rtd", ,"ContractData",A55, "LastTradeorSettle",,"T") -> -0.125 | G55: =RTD("cqg.rtd",,"ContractData",A55,"NetLastTradeToday",,"T") -> 0.005 | H55: =RTD("cqg.rtd",,"ContractData",A55,"NetLastTradeToday",,"T") -> 0.005 | I55: =RTD("cqg.rtd", ,"ContractData",A55, "T_CVol") -> 350
A56: =RTD("cqg.rtd",,"ContractData",ZQE!AF46, "Symbol") -> ZQES2H24 | B56: =RIGHT(RTD("cqg.rtd",,"ContractData",A56, "LongDescription"),15) -> Mar 24, May 24 | C56: =RTD("cqg.rtd", ,"ContractData",A56, "Open",,"T") -> -0.215 | D56: =RTD("cqg.rtd", ,"ContractData",A56, "High",,"T") -> -0.215 | E56: =RTD("cqg.rtd", ,"ContractData",A56, "Low",,"T") -> -0.215 | F56: =RTD("cqg.rtd", ,"ContractData",A56, "LastTradeorSettle",,"T") -> -0.215 | G56: =RTD("cqg.rtd",,"ContractData",A56,"NetLastTradeToday",,"T") -> 0.02 | H56: =RTD("cqg.rtd",,"ContractData",A56,"NetLastTradeToday",,"T") -> 0.02 | I56: =RTD("cqg.rtd", ,"ContractData",A56, "T_CVol") -> 2
B57: CQG, Inc. Copyright © 2023 | E57: Designed by Thom Hartle

Sheet ZQE (hidden)
C1: S | D1: 1 | N1: =UPPER(FedFunds_Master!E11) -> ZQEJ23 | Q1: ZQEH23 | R1: LastTradeorSettle | S1: Bid | T1: Ask | U1: NetLastQuoteToday
A2: =Q2 -> ZQEJ23 | B2: =RTD("cqg.rtd", ,"ContractData",A2, "ContractMonth") -> APR | C2: =IF(B2="Jan","F",IF(B2="Feb","G",IF(B2="Mar","H",IF(B2="Apr","J",IF(B2="May","K",IF(B2="JUN","M",IF(B2="Jul","N",IF(B2="Aug","Q",IF(B2="Sep","U",IF(B2="Oct","V",IF(B2="Nov","X",IF(B2="Dec","Z")))))))))))) -> J | D2: =$Q$1&$C$1&$D$1&$C2 -> ZQEH23S1J | N2: =VLOOKUP(N1,Q35:R38,2,FALSE) -> 2 | P2: =LEFT(RIGHT(Q2,2),1) -> 2 | Q2: =N1 -> ZQEJ23 | R2: =IF(RTD("cqg.rtd", ,"ContractData", Q2, $R$1,,"T")="",NA(),RTD("cqg.rtd", ,"ContractData", Q2, $R$1,,"T")) -> 95.245 | S2: =RTD("cqg.rtd", ,"ContractData", Q2,$S$1,,"T") -> 95.245 | T2: =RTD("cqg.rtd", ,"ContractData", Q2,$T$1,,"T") -> 95.25 | U2: =RTD("cqg.rtd", ,"ContractData", "F."&$Q$1&"?1", $U$1,,"T") -> 0.0025 | Y2: 1-Month | AB2: 1-Month | AE2: =LEN(Y2) -> 7
A3: =Q3 -> ZQEK23 | B3: =RTD("cqg.rtd", ,"ContractData",A3, "ContractMonth") -> MAY | C3: =IF(B3="Jan","F",IF(B3="Feb","G",IF(B3="Mar","H",IF(B3="Apr","J",IF(B3="May","K",IF(B3="JUN","M",IF(B3="Jul","N",IF(B3="Aug","Q",IF(B3="Sep","U",IF(B3="Oct","V",IF(B3="Nov","X",IF(B3="Dec","Z")))))))))))) -> K | D3: =$Q$1&$C$1&$D$1&$C3 -> ZQEH23S1K | N3: =N2+1 -> 3 | P3: =LEFT(RIGHT(Q3,2),1) -> 2 | Q3: =RTD("cqg.rtd", ,"ContractData", $Q$1&"?"&N3, "Symbol") -> ZQEK23 | R3: =IF(RTD("cqg.rtd", ,"ContractData", Q3, $R$1,,"T")="",NA(),RTD("cqg.rtd", ,"ContractData", Q3, $R$1,,"T")) -> 95.165 | S3: =RTD("cqg.rtd", ,"ContractData", Q3,$S$1,,"T") -> 95.16 | T3: =RTD("cqg.rtd", ,"ContractData", Q3,$T$1,,"T") -> 95.165 | U3: =RTD("cqg.rtd", ,"ContractData", "F."&$Q$1&"?2", $U$1,,"T") -> 0.02 | Y3: 2-Month | AB3: 2-Month | AE3: =LEN(Y3) -> 7
A4: ZQEM23 | B4: =RTD("cqg.rtd", ,"ContractData",A4, "ContractMonth") -> JUN | C4: M | D4: ZQEH23S1M | N4: =N3+1 -> 4 | P4: 2 | Q4: =RTD("cqg.rtd", ,"ContractData", $Q$1&"?"&N4, "Symbol") -> ZQEM23 | R4: =IF(RTD("cqg.rtd", ,"ContractData", Q4, $R$1,,"T")="",NA(),RTD("cqg.rtd", ,"ContractData", Q4, $R$1,,"T")) -> 95.24 | S4: =RTD("cqg.rtd", ,"ContractData", Q4,$S$1,,"T") -> 95.235 | T4: =RTD("cqg.rtd", ,"ContractData", Q4,$T$1,,"T") -> 95.24 | U4: =RTD("cqg.rtd", ,"ContractData", "F."&$Q$1&"?3", $U$1,,"T") -> 0.08 | Y4: 3-Month | AB4: 3-Month | AE4: 7
A5: ZQEN23 | B5: =RTD("cqg.rtd", ,"ContractData",A5, "ContractMonth") -> JUL | C5: N | D5: ZQEH23S1N | N5: 5 | P5: 2 | Q5: =RTD("cqg.rtd", ,"ContractData", $Q$1&"?"&N5, "Symbol") -> ZQEN23 | R5: =IF(RTD("cqg.rtd", ,"ContractData", Q5, $R$1,,"T")="",NA(),RTD("cqg.rtd", ,"ContractData", Q5, $R$1,,"T")) -> 95.365 | S5: =RTD("cqg.rtd", ,"ContractData", Q5,$S$1,,"T") -> 95.36 | T5: =RTD("cqg.rtd", ,"ContractData", Q5,$T$1,,"T") -> 95.37 | U5: =RTD("cqg.rtd", ,"ContractData", "F."&$Q$1&"?4", $U$1,,"T") -> 0.125 | Y5: 4-Month | AB5: 4-Month | AE5: 7
A6: ZQEQ23 | B6: =RTD("cqg.rtd", ,"ContractData",A6, "ContractMonth") -> AUG | C6: Q | D6: ZQEH23S1Q | N6: 6 | P6: 2 | Q6: =RTD("cqg.rtd", ,"ContractData", $Q$1&"?"&N6, "Symbol") -> ZQEQ23 | R6: =IF(RTD("cqg.rtd", ,"ContractData", Q6, $R$1,,"T")="",NA(),RTD("cqg.rtd", ,"ContractData", Q6, $R$1,,"T")) -> 95.6 | S6: =RTD("cqg.rtd", ,"ContractData", Q6,$S$1,,"T") -> 95.6 | T6: =RTD("cqg.rtd", ,"ContractData", Q6,$T$1,,"T") -> 95.605 | U6: =RTD("cqg.rtd", ,"ContractData", "F."&$Q$1&"?5", $U$1,,"T") -> 0.155 | Y6: 5-Month | AB6: 5-Month | AE6: 7
A7: ZQEU23 | B7: =RTD("cqg.rtd", ,"ContractData",A7, "ContractMonth") -> SEP | C7: U | D7: ZQEH23S1U | N7: 7 | P7: 2 | Q7: =RTD("cqg.rtd", ,"ContractData", $Q$1&"?"&N7, "Symbol") -> ZQEU23 | R7: =IF(RTD("cqg.rtd", ,"ContractData", Q7, $R$1,,"T")="",NA(),RTD("cqg.rtd", ,"ContractData", Q7, $R$1,,"T")) -> 95.665 | S7: =RTD("cqg.rtd", ,"ContractData", Q7,$S$1,,"T") -> 95.665 | T7: =RTD("cqg.rtd", ,"ContractData", Q7,$T$1,,"T") -> 95.67 | U7: =RTD("cqg.rtd", ,"ContractData", "F."&$Q$1&"?6", $U$1,,"T") -> 0.19 | Y7: 6-Month | AB7: 6-Month | AE7: 7
A8: ZQEV23 | B8: =RTD("cqg.rtd", ,"ContractData",A8, "ContractMonth") -> OCT | C8: V | D8: ZQEH23S1V | N8: 8 | P8: 2 | Q8: =RTD("cqg.rtd", ,"ContractData", $Q$1&"?"&N8, "Symbol") -> ZQEV23 | R8: =IF(RTD("cqg.rtd", ,"ContractData", Q8, $R$1,,"T")="",NA(),RTD("cqg.rtd", ,"ContractData", Q8, $R$1,,"T")) -> 95.785 | S8: =RTD("cqg.rtd", ,"ContractData", Q8,$S$1,,"T") -> 95.785 | T8: =RTD("cqg.rtd", ,"ContractData", Q8,$T$1,,"T") -> 95.79 | U8: =RTD("cqg.rtd", ,"ContractData", "F."&$Q$1&"?7", $U$1,,"T") -> 0.185 | Y8: 7-Month | AB8: 7-Month | AE8: 7
A9: ZQEX23 | B9: =RTD("cqg.rtd", ,"ContractData",A9, "ContractMonth") -> NOV | C9: X | D9: ZQEH23S1X | N9: 9 | P9: 2 | Q9: =RTD("cqg.rtd", ,"ContractData", $Q$1&"?"&N9, "Symbol") -> ZQEX23 | R9: =IF(RTD("cqg.rtd", ,"ContractData", Q9, $R$1,,"T")="",NA(),RTD("cqg.rtd", ,"ContractData", Q9, $R$1,,"T")) -> 95.925 | S9: =RTD("cqg.rtd", ,"ContractData", Q9,$S$1,,"T") -> 95.925 | T9: =RTD("cqg.rtd", ,"ContractData", Q9,$T$1,,"T") -> 95.93 | U9: =RTD("cqg.rtd", ,"ContractData", "F."&$Q$1&"?8", $U$1,,"T") -> 0.185 | Y9: 8-Month | AB9: 8-Month | AE9: 7
A10: ZQEZ23 | B10: =RTD("cqg.rtd", ,"ContractData",A10, "ContractMonth") -> DEC | C10: Z | D10: ZQEH23S1Z | N10: 10 | P10: 2 | Q10: =RTD("cqg.rtd", ,"ContractData", $Q$1&"?"&N10, "Symbol") -> ZQEZ23 | R10: =IF(RTD("cqg.rtd", ,"ContractData", Q10, $R$1,,"T")="",NA(),RTD("cqg.rtd", ,"ContractData", Q10, $R$1,,"T")) -> 95.98 | S10: =RTD("cqg.rtd", ,"ContractData", Q10,$S$1,,"T") -> 95.98 | T10: =RTD("cqg.rtd", ,"ContractData", Q10,$T$1,,"T") -> 95.985 | U10: =RTD("cqg.rtd", ,"ContractData", "F."&$Q$1&"?9", $U$1,,"T") -> 0.19 | Y10: 9-Month | AB10: 9-Month | AE10: 7
A11: ZQEF24 | B11: =RTD("cqg.rtd", ,"ContractData",A11, "ContractMonth") -> JAN | C11: F | D11: ZQEH23S1F | N11: 11 | P11: 2 | Q11: =RTD("cqg.rtd", ,"ContractData", $Q$1&"?"&N11, "Symbol") -> ZQEF24 | R11: =IF(RTD("cqg.rtd", ,"ContractData", Q11, $R$1,,"T")="",NA(),RTD("cqg.rtd", ,"ContractData", Q11, $R$1,,"T")) -> 96.035 | S11: =RTD("cqg.rtd", ,"ContractData", Q11,$S$1,,"T") -> 96.035 | T11: =RTD("cqg.rtd", ,"ContractData", Q11,$T$1,,"T") -> 96.04 | U11: =RTD("cqg.rtd", ,"ContractData", "F."&$Q$1&"?10", $U$1,,"T") -> 0.195 | Y11: 10-Month | AB11: 10-Month | AE11: 8
A12: ZQEG24 | B12: =RTD("cqg.rtd", ,"ContractData",A12, "ContractMonth") -> FEB | C12: G | D12: ZQEH23S1G | N12: 12 | P12: 2 | Q12: =RTD("cqg.rtd", ,"ContractData", $Q$1&"?"&N12, "Symbol") -> ZQEG24 | R12: =IF(RTD("cqg.rtd", ,"ContractData", Q12, $R$1,,"T")="",NA(),RTD("cqg.rtd", ,"ContractData", Q12, $R$1,,"T")) -> 96.13 | S12: =RTD("cqg.rtd", ,"ContractData", Q12,$S$1,,"T") -> 96.125 | T12: =RTD("cqg.rtd", ,"ContractData", Q12,$T$1,,"T") -> 96.135 | U12: =RTD("cqg.rtd", ,"ContractData", "F."&$Q$1&"?11",$U$1,,"T") -> 0.195 | Y12: 11-Month | AB12: 11-Month | AE12: 8
A13: ZQEH24 | B13: =RTD("cqg.rtd", ,"ContractData",A13, "ContractMonth") -> MAR | C13: H | D13: ZQEH23S1H | N13: 13 | P13: 2 | Q13: =RTD("cqg.rtd", ,"ContractData", $Q$1&"?"&N13, "Symbol") -> ZQEH24 | R13: =IF(RTD("cqg.rtd", ,"ContractData", Q13, $R$1,,"T")="",NA(),RTD("cqg.rtd", ,"ContractData", Q13, $R$1,,"T")) -> 96.18 | S13: =RTD("cqg.rtd", ,"ContractData", Q13,$S$1,,"T") -> 96.165 | T13: =RTD("cqg.rtd", ,"ContractData", Q13,$T$1,,"T") -> 96.175 | U13: =RTD("cqg.rtd", ,"ContractData", "F."&$Q$1&"?12",$U$1,,"T") -> 0.19 | Y13: 12-Month | AB13: 12-Month | AE13: 8
N14: 14 | P14: 2 | Q14: =RTD("cqg.rtd", ,"ContractData", $Q$1&"?"&N14, "Symbol") -> ZQEJ24 | R14: =IF(RTD("cqg.rtd", ,"ContractData", Q14, $R$1,,"T")="",NA(),RTD("cqg.rtd", ,"ContractData", Q14, $R$1,,"T")) -> 96.25 | S14: =RTD("cqg.rtd", ,"ContractData", Q14,$S$1,,"T") -> 96.25 | T14: =RTD("cqg.rtd", ,"ContractData", Q14,$T$1,,"T") -> 96.26 | U14: =RTD("cqg.rtd", ,"ContractData", "F."&$Q$1&"?12",$U$1,,"T") -> 0.19 | Y14: =FedFunds_Master!D25 -> 1-Month | AB14: =FedFunds_Master!D41 -> 2-Month | AE14: 7
N15: 15 | P15: 2 | Q15: =RTD("cqg.rtd", ,"ContractData", $Q$1&"?"&N15, "Symbol") -> ZQEK24 | R15: =IF(RTD("cqg.rtd", ,"ContractData", Q15, $R$1,,"T")="",NA(),RTD("cqg.rtd", ,"ContractData", Q15, $R$1,,"T")) -> 96.43 | S15: =RTD("cqg.rtd", ,"ContractData", Q15,$S$1,,"T") -> 96.4 | T15: =RTD("cqg.rtd", ,"ContractData", Q15,$T$1,,"T") -> 96.41 | U15: =RTD("cqg.rtd", ,"ContractData", "F."&$Q$1&"?12",$U$1,,"T") -> 0.19 | Y15: =IF(LEN(Y14)=7,LEFT(Y14,1),LEFT(Y14,2)) -> 1 | AB15: =IF(LEN(AB14)=7,LEFT(AB14,1),LEFT(AB14,2)) -> 2 | AE15: 1
N16: 16 | P16: 2 | Q16: =RTD("cqg.rtd", ,"ContractData", $Q$1&"?"&N16, "Symbol") -> ZQEM24 | R16: =IF(RTD("cqg.rtd", ,"ContractData", Q16, $R$1,,"T")="",NA(),RTD("cqg.rtd", ,"ContractData", Q16, $R$1,,"T")) -> 96.48 | S16: =RTD("cqg.rtd", ,"ContractData", Q16,$S$1,,"T") -> 96.48 | T16: =RTD("cqg.rtd", ,"ContractData", Q16,$T$1,,"T") -> 96.5 | U16: =RTD("cqg.rtd", ,"ContractData", "F."&$Q$1&"?12",$U$1,,"T") -> 0.19
N17: 17 | P17: 2 | Q17: =RTD("cqg.rtd", ,"ContractData", $Q$1&"?"&N17, "Symbol") -> ZQEN24 | R17: =IF(RTD("cqg.rtd", ,"ContractData", Q17, $R$1,,"T")="",NA(),RTD("cqg.rtd", ,"ContractData", Q17, $R$1,,"T")) -> 96.425 | S17: =RTD("cqg.rtd", ,"ContractData", Q17,$S$1,,"T") -> 96.535 | T17: =RTD("cqg.rtd", ,"ContractData", Q17,$T$1,,"T") -> 96.56 | U17: =RTD("cqg.rtd", ,"ContractData", "F."&$Q$1&"?12",$U$1,,"T") -> 0.19
D18: =ROUNDUP(D21,0) -> 97 | N18: 18 | P18: 2 | Q18: =RTD("cqg.rtd", ,"ContractData", $Q$1&"?"&N18, "Symbol") -> ZQEQ24 | R18: =IF(RTD("cqg.rtd", ,"ContractData", Q18, $R$1,,"T")="",NA(),RTD("cqg.rtd", ,"ContractData", Q18, $R$1,,"T")) ->  | S18: =RTD("cqg.rtd", ,"ContractData", Q18,$S$1,,"T") -> 96.51 | T18: =RTD("cqg.rtd", ,"ContractData", Q18,$T$1,,"T") -> 96.905 | U18: =RTD("cqg.rtd", ,"ContractData", "F."&$Q$1&"?12",$U$1,,"T") -> 0.19
N19: 19 | P19: 2 | Q19: =RTD("cqg.rtd", ,"ContractData", $Q$1&"?"&N19, "Symbol") -> ZQEU24 | R19: =IF(RTD("cqg.rtd", ,"ContractData", Q19, $R$1,,"T")="",NA(),RTD("cqg.rtd", ,"ContractData", Q19, $R$1,,"T")) ->  | S19: =RTD("cqg.rtd", ,"ContractData", Q19,$S$1,,"T") -> 96.33 | T19: =RTD("cqg.rtd", ,"ContractData", Q19,$T$1,,"T") -> 96.75 | U19: =RTD("cqg.rtd", ,"ContractData", "F."&$Q$1&"?12",$U$1,,"T") -> 0.19
N20: 20 | P20: 2 | Q20: =RTD("cqg.rtd", ,"ContractData", $Q$1&"?"&N20, "Symbol") -> ZQEV24 | R20: =IF(RTD("cqg.rtd", ,"ContractData", Q20, $R$1,,"T")="",NA(),RTD("cqg.rtd", ,"ContractData", Q20, $R$1,,"T")) ->  | S20: =RTD("cqg.rtd", ,"ContractData", Q20,$S$1,,"T") -> 96.495 | T20: =RTD("cqg.rtd", ,"ContractData", Q20,$T$1,,"T") -> 97.075 | U20: =RTD("cqg.rtd", ,"ContractData", "F."&$Q$1&"?12",$U$1,,"T") -> 0.19
C21: MAX | D21: =ROUNDUP(MAX(C22:C23),0) -> 97 | E21: =ROUNDDOWN(MIN(E22:E23),0) -> 94 | N21: 21 | P21: 2 | Q21: =RTD("cqg.rtd", ,"ContractData", $Q$1&"?"&N21, "Symbol") -> ZQEX24 | R21: =IF(RTD("cqg.rtd", ,"ContractData", Q21, $R$1,,"T")="",NA(),RTD("cqg.rtd", ,"ContractData", Q21, $R$1,,"T")) ->  | S21: =RTD("cqg.rtd", ,"ContractData", Q21,$S$1,,"T") -> 96.515 | T21: =RTD("cqg.rtd", ,"ContractData", Q21,$T$1,,"T") -> 97.24 | U21: =RTD("cqg.rtd", ,"ContractData", "F."&$Q$1&"?12",$U$1,,"T") -> 0.19
C22: =_xlfn.AGGREGATE(4,6,B26:D45) -> 96.715 | E22: =_xlfn.AGGREGATE(5,6,B26:D45) -> 94.73 | N22: 22 | P22: 2 | Q22: =RTD("cqg.rtd", ,"ContractData", $Q$1&"?"&N22, "Symbol") -> ZQEZ24 | R22: =IF(RTD("cqg.rtd", ,"ContractData", Q22, $R$1,,"T")="",NA(),RTD("cqg.rtd", ,"ContractData", Q22, $R$1,,"T")) -> 97.375 | S22: =RTD("cqg.rtd", ,"ContractData", Q22,$S$1,,"T") -> 96.855 | T22: =RTD("cqg.rtd", ,"ContractData", Q22,$T$1,,"T") -> 97.24 | U22: =RTD("cqg.rtd", ,"ContractData", "F."&$Q$1&"?12",$U$1,,"T") -> 0.19 | W22: =RTD("cqg.rtd", ,"ContractData", U35,"LastTradeorSettle",,"T") -> 0.08
C23: =_xlfn.AGGREGATE(4,6,R2:R21) -> 96.48 | E23: =_xlfn.AGGREGATE(5,6,R2:R21) -> 95.165 | N23: 23 | P23: 2 | Q23: =RTD("cqg.rtd", ,"ContractData", $Q$1&"?"&N23, "Symbol") -> ZQEF25 | R23: =IF(RTD("cqg.rtd", ,"ContractData", Q23, $R$1,,"T")="",NA(),RTD("cqg.rtd", ,"ContractData", Q23, $R$1,,"T")) -> 97.25 | S23: =RTD("cqg.rtd", ,"ContractData", Q23,$S$1,,"T") -> 96.865 | T23: =RTD("cqg.rtd", ,"ContractData", Q23,$T$1,,"T") -> 97.25 | U23: =RTD("cqg.rtd", ,"ContractData", "F."&$Q$1&"?12",$U$1,,"T") -> 0.19
B25: Yesterday | C25: 5-days | D25: 20-days | E25: Yesterday | F25: 5-days | G25: 20-days
B26: =RTD("cqg.rtd",,"StudyData",Q2, "Bar",, "Close","D","-1","All",,,,"T") -> 95.23 | C26: =RTD("cqg.rtd",,"StudyData",Q2, "Bar",, "Close","D","-5","All",,,,"T") -> 95.1 | D26: =RTD("cqg.rtd",,"StudyData",Q2, "Bar",, "Close","D","-20","All",,,,"T") -> 95.145 | E26: =R2-B26 -> 0.015 | F26: =R2-C26 -> 0.145 | G26: =R2-D26 -> 0.1 | W26: =RTD("cqg.rtd",,"ContractData",U36,"Last",, "T") -> -0.075
B27: =RTD("cqg.rtd",,"StudyData",Q3, "Bar",, "Close","D","-1","All",,,,"T") -> 95.085 | C27: =RTD("cqg.rtd",,"StudyData",Q3, "Bar",, "Close","D","-5","All",,,,"T") -> 94.855 | D27: =RTD("cqg.rtd",,"StudyData",Q3, "Bar",, "Close","D","-20","All",,,,"T") -> 94.96 | E27: =R3-B27 -> 0.08 | F27: =R3-C27 -> 0.31 | G27: =R3-D27 -> 0.205
B28: =RTD("cqg.rtd",,"StudyData",Q4, "Bar",, "Close","D","-1","All",,,,"T") -> 95.115 | C28: =RTD("cqg.rtd",,"StudyData",Q4, "Bar",, "Close","D","-5","All",,,,"T") -> 94.775 | D28: =RTD("cqg.rtd",,"StudyData",Q4, "Bar",, "Close","D","-20","All",,,,"T") -> 94.87 | E28: 0.125 | F28: 0.465 | G28: 0.37 | U28: =ROUNDUP(U30,1) -> 0.3 | V28: =ROUNDUP(ABS(V30),1)*-1 -> -0.3 | AF28: =ROUNDUP(AF30,1) -> 0.4 | AG28: =ROUNDUP(ABS(AG30),1)*-1 -> -0.5
B29: =RTD("cqg.rtd",,"StudyData",Q5, "Bar",, "Close","D","-1","All",,,,"T") -> 95.205 | C29: =RTD("cqg.rtd",,"StudyData",Q5, "Bar",, "Close","D","-5","All",,,,"T") -> 94.73 | D29: =RTD("cqg.rtd",,"StudyData",Q5, "Bar",, "Close","D","-20","All",,,,"T") -> 94.8 | E29: 0.16 | F29: 0.635 | G29: 0.565 | U29: MAX | V29: MIN | AF29: MAX | AG29: MIN
B30: =RTD("cqg.rtd",,"StudyData",Q6, "Bar",, "Close","D","-1","All",,,,"T") -> 95.41 | C30: =RTD("cqg.rtd",,"StudyData",Q6, "Bar",, "Close","D","-5","All",,,,"T") -> 94.75 | D30: =RTD("cqg.rtd",,"StudyData",Q6, "Bar",, "Close","D","-20","All",,,,"T") -> 94.77 | E30: 0.19 | F30: 0.85 | G30: 0.83 | U30: =MAX(U31:U32) -> 0.245 | V30: =MAX(V31:V32) -> 0.255 | AF30: =MAX(AF31:AF32) -> 0.325 | AG30: =MAX(AG31:AG32) -> 0.455 | AH30: =RTD("cqg.rtd",,"ContractData",AF35,"LongDescription",, "T") -> Fed Funds 30 Day Calendar Spread 2, Apr 23, Jun 23
B31: =RTD("cqg.rtd",,"StudyData",Q7, "Bar",, "Close","D","-1","All",,,,"T") -> 95.48 | C31: =RTD("cqg.rtd",,"StudyData",Q7, "Bar",, "Close","D","-5","All",,,,"T") -> 94.78 | D31: =RTD("cqg.rtd",,"StudyData",Q7, "Bar",, "Close","D","-20","All",,,,"T") -> 94.78 | E31: 0.185 | F31: 0.885 | G31: 0.885 | U31: =_xlfn.AGGREGATE(4,6,V35:V54) -> 0.08 | V31: =ABS(_xlfn.AGGREGATE(5,6,V35:V54)) -> 0.235 | W31: =RTD("cqg.rtd",,"ContractData",U35,"LongDescription",, "T") -> Fed Funds 30 Day Calendar Spread 1, Apr 23, May 23 | AF31: =_xlfn.AGGREGATE(4,6,AG35:AG54) -> 0.005 | AG31: =ABS(_xlfn.AGGREGATE(5,6,AG35:AG54)) -> 0.36 | AH31: =RTD("cqg.rtd",,"ContractData",AF54,"LongDescription",, "T") -> Fed Funds 30 Day Calendar Spread 2, Nov 24, Jan 25
B32: =RTD("cqg.rtd",,"StudyData",Q8, "Bar",, "Close","D","-1","All",,,,"T") -> 95.6 | C32: =RTD("cqg.rtd",,"StudyData",Q8, "Bar",, "Close","D","-5","All",,,,"T") -> 94.835 | D32: =RTD("cqg.rtd",,"StudyData",Q8, "Bar",, "Close","D","-20","All",,,,"T") -> 94.795 | E32: 0.185 | F32: 0.95 | G32: 0.99 | U32: =_xlfn.AGGREGATE(4,6,X35:Z54) -> 0.245 | V32: =ABS(_xlfn.AGGREGATE(5,6,X35:Z54)) -> 0.255 | W32: =RTD("cqg.rtd",,"ContractData",U36,"LongDescription",, "T") -> Fed Funds 30 Day Calendar Spread 1, May 23, Jun 23 | X32: =IF(LEFT(RTD("cqg.rtd",,"StudyData",U35, "Bar",, "Close","D","-1","All",,,,"T"),3)="768",NA(),IF(RTD("cqg.rtd",,"StudyData",U35, "Bar",, "Close","D","-1","All",,,,"T")="",NA(),RTD("cqg.rtd",,"StudyData",U35, "Bar",, "Close","D","-1","All",,,,"T"))) -> 0.145 | AF32: =_xlfn.AGGREGATE(4,6,AI35:AK54) -> 0.325 | AG32: =ABS(_xlfn.AGGREGATE(5,6,AI35:AK54)) -> 0.455
B33: =RTD("cqg.rtd",,"StudyData",Q9, "Bar",, "Close","D","-1","All",,,,"T") -> 95.735 | C33: =RTD("cqg.rtd",,"StudyData",Q9, "Bar",, "Close","D","-5","All",,,,"T") -> 94.97 | D33: =RTD("cqg.rtd",,"StudyData",Q9, "Bar",, "Close","D","-20","All",,,,"T") -> 94.86 | E33: 0.19 | F33: 0.955 | G33: 1.065
B34: =RTD("cqg.rtd",,"StudyData",Q10, "Bar",, "Close","D","-1","All",,,,"T") -> 95.785 | C34: =RTD("cqg.rtd",,"StudyData",Q10, "Bar",, "Close","D","-5","All",,,,"T") -> 95.06 | D34: =RTD("cqg.rtd",,"StudyData",Q10, "Bar",, "Close","D","-20","All",,,,"T") -> 94.93 | E34: 0.195 | F34: 0.92 | G34: 1.05 | R34: Symbol Check | X34: Yesterday | Y34: 5-days | Z34: 20-days | AA34: Yesterday | AB34: 5-days | AC34: 20-days | AI34: Yesterday | AJ34: 5-days | AK34: 20-days | AL34: Yesterday | AM34: 5-days | AN34: 20-days
B35: =RTD("cqg.rtd",,"StudyData",Q11, "Bar",, "Close","D","-1","All",,,,"T") -> 95.84 | C35: =RTD("cqg.rtd",,"StudyData",Q11, "Bar",, "Close","D","-5","All",,,,"T") -> 95.13 | D35: =RTD("cqg.rtd",,"StudyData",Q11, "Bar",, "Close","D","-20","All",,,,"T") -> 94.98 | E35: 0.195 | F35: 0.905 | G35: 1.055 | Q35: =RTD("cqg.rtd",,"ContractData",Q1&"?1", "Symbol") -> ZQEH23 | R35: 1 | S35: =RTD("cqg.rtd",,"ContractData",Q1&"?1", "Symbol") -> ZQEH23 | T35: =N2 -> 2 | U35: ="ZQES"&$Y$15&"?"&""&T35 -> ZQES1?2 | V35: =IF(LEFT(RTD("cqg.rtd", ,"ContractData", U35,"LastTradeorSettle",,"T"),3)="768",NA(),IF(RTD("cqg.rtd", ,"ContractData", U35,"LastTradeorSettle",,"T")="",NA(),RTD("cqg.rtd", ,"ContractData", U35,"LastTradeorSettle",,"T"))) -> 0.08 | X35: =IF(LEFT(RTD("cqg.rtd",,"StudyData",U35, "Bar",, "Close","D","-1","All",,,,"T"),3)="777",NA(),IF(RTD("cqg.rtd",,"StudyData",U35, "Bar",, "Close","D","-1","All",,,,"T")="",NA(),RTD("cqg.rtd",,"StudyData",U35, "Bar",, "Close","D","-1","All",,,,"T"))) -> 0.145 | Y35: =IF(LEFT(RTD("cqg.rtd",,"StudyData",U35, "Bar",, "Close","D","-5","All",,,,"T"),3)="777",NA(),IF(RTD("cqg.rtd",,"StudyData",U35, "Bar",, "Close","D","-5","All",,,,"T")="",NA(),RTD("cqg.rtd",,"StudyData",U35, "Bar",, "Close","D","-5","All",,,,"T"))) -> 0.245 | Z35: =IF(LEFT(RTD("cqg.rtd",,"StudyData",U35, "Bar",, "Close","D","-20","All",,,,"T"),3)="777",NA(),IF(RTD("cqg.rtd",,"StudyData",U35, "Bar",, "Close","D","-20","All",,,,"T")="",NA(),RTD("cqg.rtd",,"StudyData",U35, "Bar",, "Close","D","-20","All",,,,"T"))) -> 0.185 | AA35: =IFERROR($V35-X35,NA()) -> -0.065 | AB35: =IFERROR($V35-Y35,NA()) -> -0.165 | AC35: =IFERROR($V35-Z35,NA()) -> -0.105 | AE35: =N2 -> 2 | AF35: ="ZQES"&$AB$15&"?"&""&AE35 -> ZQES2?2 | AG35: =IF(LEFT(RTD("cqg.rtd", ,"ContractData", AF35,"LastTradeorSettle",,"T"),3)="768",NA(),IF(RTD("cqg.rtd", ,"ContractData", AF35,"LastTradeorSettle",,"T")="",NA(),RTD("cqg.rtd", ,"ContractData", AF35,"LastTradeorSettle",,"T"))) -> 0.005 | AI35: =IF(LEFT(RTD("cqg.rtd",,"StudyData",AF35, "Bar",, "Close","D","-1","All",,,,"T"),3)="777",NA(),IF(RTD("cqg.rtd",,"StudyData",AF35, "Bar",, "Close","D","-1","All",,,,"T")="",NA(),RTD("cqg.rtd",,"StudyData",AF35, "Bar",, "Close","D","-1","All",,,,"T"))) -> 0.115 | AJ35: =IF(LEFT(RTD("cqg.rtd",,"StudyData",AF35, "Bar",, "Close","D","-5","All",,,,"T"),3)="777",NA(),IF(RTD("cqg.rtd",,"StudyData",AF35, "Bar",, "Close","D","-5","All",,,,"T")="",NA(),RTD("cqg.rtd",,"StudyData",AF35, "Bar",, "Close","D","-5","All",,,,"T"))) -> 0.325 | AK35: =IF(LEFT(RTD("cqg.rtd",,"StudyData",AF35, "Bar",, "Close","D","-20","All",,,,"T"),3)="777",NA(),IF(RTD("cqg.rtd",,"StudyData",AF35, "Bar",, "Close","D","-20","All",,,,"T")="",NA(),RTD("cqg.rtd",,"StudyData",AF35, "Bar",, "Close","D","-20","All",,,,"T"))) -> 0.275 | AL35: =$AG35-$AI35 -> -0.11 | AM35: =$AG35-$AJ35 -> -0.32 | AN35: =$AG35-$AK35 -> -0.27
B36: =RTD("cqg.rtd",,"StudyData",Q12, "Bar",, "Close","D","-1","All",,,,"T") -> 95.945 | C36: =RTD("cqg.rtd",,"StudyData",Q12, "Bar",, "Close","D","-5","All",,,,"T") -> 95.3 | D36: =RTD("cqg.rtd",,"StudyData",Q12, "Bar",, "Close","D","-20","All",,,,"T") -> 95.135 | E36: 0.185 | F36: 0.83 | G36: 0.995 | Q36: =RTD("cqg.rtd",,"ContractData",Q1&"?2", "Symbol") -> ZQEJ23 | R36: =R35+1 -> 2 | S36: =RTD("cqg.rtd",,"ContractData",Q1&"?2", "Symbol") -> ZQEJ23 | T36: =N3 -> 3 | U36: ="ZQES"&$Y$15&"?"&""&T36 -> ZQES1?3 | V36: =IF(LEFT(RTD("cqg.rtd", ,"ContractData", U36,"LastTradeorSettle",,"T"),3)="768",NA(),IF(RTD("cqg.rtd", ,"ContractData", U36,"LastTradeorSettle",,"T")="",NA(),RTD("cqg.rtd", ,"ContractData", U36,"LastTradeorSettle",,"T"))) -> -0.075 | X36: =IF(LEFT(RTD("cqg.rtd",,"StudyData",U36, "Bar",, "Close","D","-1","All",,,,"T"),3)="777",NA(),IF(RTD("cqg.rtd",,"StudyData",U36, "Bar",, "Close","D","-1","All",,,,"T")="",NA(),RTD("cqg.rtd",,"StudyData",U36, "Bar",, "Close","D","-1","All",,,,"T"))) -> -0.03 | Y36: =IF(LEFT(RTD("cqg.rtd",,"StudyData",U36, "Bar",, "Close","D","-5","All",,,,"T"),3)="777",NA(),IF(RTD("cqg.rtd",,"StudyData",U36, "Bar",, "Close","D","-5","All",,,,"T")="",NA(),RTD("cqg.rtd",,"StudyData",U36, "Bar",, "Close","D","-5","All",,,,"T"))) -> 0.08 | Z36: =IF(LEFT(RTD("cqg.rtd",,"StudyData",U36, "Bar",, "Close","D","-20","All",,,,"T"),3)="777",NA(),IF(RTD("cqg.rtd",,"StudyData",U36, "Bar",, "Close","D","-20","All",,,,"T")="",NA(),RTD("cqg.rtd",,"StudyData",U36, "Bar",, "Close","D","-20","All",,,,"T"))) -> 0.09 | AA36: =IFERROR($V36-X36,NA()) -> -0.045 | AB36: =IFERROR($V36-Y36,NA()) -> -0.155 | AC36: =IFERROR($V36-Z36,NA()) -> -0.165 | AE36: =AE35+1 -> 3 | AF36: ="ZQES"&$AB$15&"?"&""&AE36 -> ZQES2?3 | AG36: =IF(LEFT(RTD("cqg.rtd", ,"ContractData", AF36,"LastTradeorSettle",,"T"),3)="768",NA(),IF(RTD("cqg.rtd", ,"ContractData", AF36,"LastTradeorSettle",,"T")="",NA(),RTD("cqg.rtd", ,"ContractData", AF36,"LastTradeorSettle",,"T"))) -> -0.2 | AI36: =IF(LEFT(RTD("cqg.rtd",,"StudyData",AF36, "Bar",, "Close","D","-1","All",,,,"T"),3)="777",NA(),IF(RTD("cqg.rtd",,"StudyData",AF36, "Bar",, "Close","D","-1","All",,,,"T")="",NA(),RTD("cqg.rtd",,"StudyData",AF36, "Bar",, "Close","D","-1","All",,,,"T"))) -> -0.12 | AJ36: =IF(LEFT(RTD("cqg.rtd",,"StudyData",AF36, "Bar",, "Close","D","-5","All",,,,"T"),3)="777",NA(),IF(RTD("cqg.rtd",,"StudyData",AF36, "Bar",, "Close","D","-5","All",,,,"T")="",NA(),RTD("cqg.rtd",,"StudyData",AF36, "Bar",, "Close","D","-5","All",,,,"T"))) -> 0.125 | AK36: =IF(LEFT(RTD("cqg.rtd",,"StudyData",AF36, "Bar",, "Close","D","-20","All",,,,"T"),3)="777",NA(),IF(RTD("cqg.rtd",,"StudyData",AF36, "Bar",, "Close","D","-20","All",,,,"T")="",NA(),RTD("cqg.rtd",,"StudyData",AF36, "Bar",, "Close","D","-20","All",,,,"T"))) -> 0.16 | AL36: =$AG36-$AI36 -> -0.08 | AM36: =$AG36-$AJ36 -> -0.325 | AN36: =$AG36-$AK36 -> -0.36
B37: =RTD("cqg.rtd",,"StudyData",Q13, "Bar",, "Close","D","-1","All",,,,"T") -> 95.985 | C37: =RTD("cqg.rtd",,"StudyData",Q13, "Bar",, "Close","D","-5","All",,,,"T") -> 95.365 | D37: =RTD("cqg.rtd",,"StudyData",Q13, "Bar",, "Close","D","-20","All",,,,"T") -> 95.205 | E37: 0.195 | F37: 0.815 | G37: 0.975 | Q37: =RTD("cqg.rtd",,"ContractData",Q1&"?3", "Symbol") -> ZQEK23 | R37: =R36+1 -> 3 | S37: =RTD("cqg.rtd",,"ContractData",Q1&"?3", "Symbol") -> ZQEK23 | T37: 4 | U37: ZQES1?4 | V37: =IF(LEFT(RTD("cqg.rtd", ,"ContractData", U37,"LastTradeorSettle",,"T"),3)="768",NA(),IF(RTD("cqg.rtd", ,"ContractData", U37,"LastTradeorSettle",,"T")="",NA(),RTD("cqg.rtd", ,"ContractData", U37,"LastTradeorSettle",,"T"))) -> -0.125 | X37: =IF(LEFT(RTD("cqg.rtd",,"StudyData",U37, "Bar",, "Close","D","-1","All",,,,"T"),3)="777",NA(),IF(RTD("cqg.rtd",,"StudyData",U37, "Bar",, "Close","D","-1","All",,,,"T")="",NA(),RTD("cqg.rtd",,"StudyData",U37, "Bar",, "Close","D","-1","All",,,,"T"))) -> -0.09 | Y37: =IF(LEFT(RTD("cqg.rtd",,"StudyData",U37, "Bar",, "Close","D","-5","All",,,,"T"),3)="777",NA(),IF(RTD("cqg.rtd",,"StudyData",U37, "Bar",, "Close","D","-5","All",,,,"T")="",NA(),RTD("cqg.rtd",,"StudyData",U37, "Bar",, "Close","D","-5","All",,,,"T"))) -> 0.045 | Z37: =IF(LEFT(RTD("cqg.rtd",,"StudyData",U37, "Bar",, "Close","D","-20","All",,,,"T"),3)="777",NA(),IF(RTD("cqg.rtd",,"StudyData",U37, "Bar",, "Close","D","-20","All",,,,"T")="",NA(),RTD("cqg.rtd",,"StudyData",U37, "Bar",, "Close","D","-20","All",,,,"T"))) -> 0.07 | AA37: -0.035 | AB37: -0.17 | AC37: -0.195 | AE37: =AE36+1 -> 4 | AF37: ZQES2?4 | AG37: =IF(LEFT(RTD("cqg.rtd", ,"ContractData", AF37,"LastTradeorSettle",,"T"),3)="768",NA(),IF(RTD("cqg.rtd", ,"ContractData", AF37,"LastTradeorSettle",,"T")="",NA(),RTD("cqg.rtd", ,"ContractData", AF37,"LastTradeorSettle",,"T"))) -> -0.36 | AI37: =IF(LEFT(RTD("cqg.rtd",,"StudyData",AF37, "Bar",, "Close","D","-1","All",,,,"T"),3)="777",NA(),IF(RTD("cqg.rtd",,"StudyData",AF37, "Bar",, "Close","D","-1","All",,,,"T")="",NA(),RTD("cqg.rtd",,"StudyData",AF37, "Bar",, "Close","D","-1","All",,,,"T"))) -> -0.295 | AJ37: =IF(LEFT(RTD("cqg.rtd",,"StudyData",AF37, "Bar",, "Close","D","-5","All",,,,"T"),3)="777",NA(),IF(RTD("cqg.rtd",,"StudyData",AF37, "Bar",, "Close","D","-5","All",,,,"T")="",NA(),RTD("cqg.rtd",,"StudyData",AF37, "Bar",, "Close","D","-5","All",,,,"T"))) -> 0.025 | AK37: =IF(LEFT(RTD("cqg.rtd",,"StudyData",AF37, "Bar",, "Close","D","-20","All",,,,"T"),3)="777",NA(),IF(RTD("cqg.rtd",,"StudyData",AF37, "Bar",, "Close","D","-20","All",,,,"T")="",NA(),RTD("cqg.rtd",,"StudyData",AF37, "Bar",, "Close","D","-20","All",,,,"T"))) -> 0.1 | AL37: -0.065 | AM37: -0.385 | AN37: -0.46
B38: =RTD("cqg.rtd",,"StudyData",Q14, "Bar",, "Close","D","-1","All",,,,"T") -> 96.075 | C38: =RTD("cqg.rtd",,"StudyData",Q14, "Bar",, "Close","D","-5","All",,,,"T") -> 95.485 | D38: =RTD("cqg.rtd",,"StudyData",Q14, "Bar",, "Close","D","-20","All",,,,"T") -> 95.33 | E38: 0.175 | F38: 0.765 | G38: 0.92 | Q38: =RTD("cqg.rtd",,"ContractData",Q1&"?4", "Symbol") -> ZQEM23 | R38: 4 | S38: =RTD("cqg.rtd",,"ContractData",Q1&"?4", "Symbol") -> ZQEM23 | T38: 5 | U38: ZQES1?5 | V38: =IF(LEFT(RTD("cqg.rtd", ,"ContractData", U38,"LastTradeorSettle",,"T"),3)="768",NA(),IF(RTD("cqg.rtd", ,"ContractData", U38,"LastTradeorSettle",,"T")="",NA(),RTD("cqg.rtd", ,"ContractData", U38,"LastTradeorSettle",,"T"))) -> -0.235 | X38: =IF(LEFT(RTD("cqg.rtd",,"StudyData",U38, "Bar",, "Close","D","-1","All",,,,"T"),3)="777",NA(),IF(RTD("cqg.rtd",,"StudyData",U38, "Bar",, "Close","D","-1","All",,,,"T")="",NA(),RTD("cqg.rtd",,"StudyData",U38, "Bar",, "Close","D","-1","All",,,,"T"))) -> -0.205 | Y38: =IF(LEFT(RTD("cqg.rtd",,"StudyData",U38, "Bar",, "Close","D","-5","All",,,,"T"),3)="777",NA(),IF(RTD("cqg.rtd",,"StudyData",U38, "Bar",, "Close","D","-5","All",,,,"T")="",NA(),RTD("cqg.rtd",,"StudyData",U38, "Bar",, "Close","D","-5","All",,,,"T"))) -> -0.02 | Z38: =IF(LEFT(RTD("cqg.rtd",,"StudyData",U38, "Bar",, "Close","D","-20","All",,,,"T"),3)="777",NA(),IF(RTD("cqg.rtd",,"StudyData",U38, "Bar",, "Close","D","-20","All",,,,"T")="",NA(),RTD("cqg.rtd",,"StudyData",U38, "Bar",, "Close","D","-20","All",,,,"T"))) -> 0.03 | AA38: -0.03 | AB38: -0.215 | AC38: -0.265 | AE38: 5 | AF38: ZQES2?5 | AG38: =IF(LEFT(RTD("cqg.rtd", ,"ContractData", AF38,"LastTradeorSettle",,"T"),3)="768",NA(),IF(RTD("cqg.rtd", ,"ContractData", AF38,"LastTradeorSettle",,"T")="",NA(),RTD("cqg.rtd", ,"ContractData", AF38,"LastTradeorSettle",,"T"))) -> -0.305 | AI38: =IF(LEFT(RTD("cqg.rtd",,"StudyData",AF38, "Bar",, "Close","D","-1","All",,,,"T"),3)="777",NA(),IF(RTD("cqg.rtd",,"StudyData",AF38, "Bar",, "Close","D","-1","All",,,,"T")="",NA(),RTD("cqg.rtd",,"StudyData",AF38, "Bar",, "Close","D","-1","All",,,,"T"))) -> -0.275 | AJ38: =IF(LEFT(RTD("cqg.rtd",,"StudyData",AF38, "Bar",, "Close","D","-5","All",,,,"T"),3)="777",NA(),IF(RTD("cqg.rtd",,"StudyData",AF38, "Bar",, "Close","D","-5","All",,,,"T")="",NA(),RTD("cqg.rtd",,"StudyData",AF38, "Bar",, "Close","D","-5","All",,,,"T"))) -> -0.05 | AK38: =IF(LEFT(RTD("cqg.rtd",,"StudyData",AF38, "Bar",, "Close","D","-20","All",,,,"T"),3)="777",NA(),IF(RTD("cqg.rtd",,"StudyData",AF38, "Bar",, "Close","D","-20","All",,,,"T")="",NA(),RTD("cqg.rtd",,"StudyData",AF38, "Bar",, "Close","D","-20","All",,,,"T"))) -> 0.02 | AL38: -0.03 | AM38: -0.255 | AN38: -0.325
B39: =RTD("cqg.rtd",,"StudyData",Q15, "Bar",, "Close","D","-1","All",,,,"T") -> 96.22 | C39: =RTD("cqg.rtd",,"StudyData",Q15, "Bar",, "Close","D","-5","All",,,,"T") -> 95.68 | D39: =RTD("cqg.rtd",,"StudyData",Q15, "Bar",, "Close","D","-20","All",,,,"T") -> 95.53 | E39: 0.21 | F39: 0.75 | G39: 0.9 | R39: 5 | T39: 6 | U39: ZQES1?6 | V39: =IF(LEFT(RTD("cqg.rtd", ,"ContractData", U39,"LastTradeorSettle",,"T"),3)="768",NA(),IF(RTD("cqg.rtd", ,"ContractData", U39,"LastTradeorSettle",,"T")="",NA(),RTD("cqg.rtd", ,"ContractData", U39,"LastTradeorSettle",,"T"))) -> -0.07 | X39: =IF(LEFT(RTD("cqg.rtd",,"StudyData",U39, "Bar",, "Close","D","-1","All",,,,"T"),3)="777",NA(),IF(RTD("cqg.rtd",,"StudyData",U39, "Bar",, "Close","D","-1","All",,,,"T")="",NA(),RTD("cqg.rtd",,"StudyData",U39, "Bar",, "Close","D","-1","All",,,,"T"))) -> -0.07 | Y39: =IF(LEFT(RTD("cqg.rtd",,"StudyData",U39, "Bar",, "Close","D","-5","All",,,,"T"),3)="777",NA(),IF(RTD("cqg.rtd",,"StudyData",U39, "Bar",, "Close","D","-5","All",,,,"T")="",NA(),RTD("cqg.rtd",,"StudyData",U39, "Bar",, "Close","D","-5","All",,,,"T"))) -> -0.03 | Z39: =IF(LEFT(RTD("cqg.rtd",,"StudyData",U39, "Bar",, "Close","D","-20","All",,,,"T"),3)="777",NA(),IF(RTD("cqg.rtd",,"StudyData",U39, "Bar",, "Close","D","-20","All",,,,"T")="",NA(),RTD("cqg.rtd",,"StudyData",U39, "Bar",, "Close","D","-20","All",,,,"T"))) -> -0.01 | AA39: 0 | AB39: -0.04 | AC39: -0.06 | AE39: 6 | AF39: ZQES2?6 | AG39: =IF(LEFT(RTD("cqg.rtd", ,"ContractData", AF39,"LastTradeorSettle",,"T"),3)="768",NA(),IF(RTD("cqg.rtd", ,"ContractData", AF39,"LastTradeorSettle",,"T")="",NA(),RTD("cqg.rtd", ,"ContractData", AF39,"LastTradeorSettle",,"T"))) -> -0.19 | AI39: =IF(LEFT(RTD("cqg.rtd",,"StudyData",AF39, "Bar",, "Close","D","-1","All",,,,"T"),3)="777",NA(),IF(RTD("cqg.rtd",,"StudyData",AF39, "Bar",, "Close","D","-1","All",,,,"T")="",NA(),RTD("cqg.rtd",,"StudyData",AF39, "Bar",, "Close","D","-1","All",,,,"T"))) -> -0.19 | AJ39: =IF(LEFT(RTD("cqg.rtd",,"StudyData",AF39, "Bar",, "Close","D","-5","All",,,,"T"),3)="777",NA(),IF(RTD("cqg.rtd",,"StudyData",AF39, "Bar",, "Close","D","-5","All",,,,"T")="",NA(),RTD("cqg.rtd",,"StudyData",AF39, "Bar",, "Close","D","-5","All",,,,"T"))) -> -0.085 | AK39: =IF(LEFT(RTD("cqg.rtd",,"StudyData",AF39, "Bar",, "Close","D","-20","All",,,,"T"),3)="777",NA(),IF(RTD("cqg.rtd",,"StudyData",AF39, "Bar",, "Close","D","-20","All",,,,"T")="",NA(),RTD("cqg.rtd",,"StudyData",AF39, "Bar",, "Close","D","-20","All",,,,"T"))) -> -0.025 | AL39: 0 | AM39: -0.105 | AN39: -0.165
B40: =RTD("cqg.rtd",,"StudyData",Q16, "Bar",, "Close","D","-1","All",,,,"T") -> 96.285 | C40: =RTD("cqg.rtd",,"StudyData",Q16, "Bar",, "Close","D","-5","All",,,,"T") -> 95.8 | D40: =RTD("cqg.rtd",,"StudyData",Q16, "Bar",, "Close","D","-20","All",,,,"T") -> 95.665 | E40: 0.195 | F40: 0.68 | G40: 0.815 | R40: 6 | T40: 7 | U40: ZQES1?7 | V40: =IF(LEFT(RTD("cqg.rtd", ,"ContractData", U40,"LastTradeorSettle",,"T"),3)="768",NA(),IF(RTD("cqg.rtd", ,"ContractData", U40,"LastTradeorSettle",,"T")="",NA(),RTD("cqg.rtd", ,"ContractData", U40,"LastTradeorSettle",,"T"))) -> -0.12 | X40: =IF(LEFT(RTD("cqg.rtd",,"StudyData",U40, "Bar",, "Close","D","-1","All",,,,"T"),3)="777",NA(),IF(RTD("cqg.rtd",,"StudyData",U40, "Bar",, "Close","D","-1","All",,,,"T")="",NA(),RTD("cqg.rtd",,"StudyData",U40, "Bar",, "Close","D","-1","All",,,,"T"))) -> -0.12 | Y40: =IF(LEFT(RTD("cqg.rtd",,"StudyData",U40, "Bar",, "Close","D","-5","All",,,,"T"),3)="777",NA(),IF(RTD("cqg.rtd",,"StudyData",U40, "Bar",, "Close","D","-5","All",,,,"T")="",NA(),RTD("cqg.rtd",,"StudyData",U40, "Bar",, "Close","D","-5","All",,,,"T"))) -> -0.055 | Z40: =IF(LEFT(RTD("cqg.rtd",,"StudyData",U40, "Bar",, "Close","D","-20","All",,,,"T"),3)="777",NA(),IF(RTD("cqg.rtd",,"StudyData",U40, "Bar",, "Close","D","-20","All",,,,"T")="",NA(),RTD("cqg.rtd",,"StudyData",U40, "Bar",, "Close","D","-20","All",,,,"T"))) -> -0.015 | AA40: 0 | AB40: -0.065 | AC40: -0.105 | AE40: 7 | AF40: ZQES2?7 | AG40: =IF(LEFT(RTD("cqg.rtd", ,"ContractData", AF40,"LastTradeorSettle",,"T"),3)="768",NA(),IF(RTD("cqg.rtd", ,"ContractData", AF40,"LastTradeorSettle",,"T")="",NA(),RTD("cqg.rtd", ,"ContractData", AF40,"LastTradeorSettle",,"T"))) -> -0.27 | AI40: =IF(LEFT(RTD("cqg.rtd",,"StudyData",AF40, "Bar",, "Close","D","-1","All",,,,"T"),3)="777",NA(),IF(RTD("cqg.rtd",,"StudyData",AF40, "Bar",, "Close","D","-1","All",,,,"T")="",NA(),RTD("cqg.rtd",,"StudyData",AF40, "Bar",, "Close","D","-1","All",,,,"T"))) -> -0.255 | AJ40: =IF(LEFT(RTD("cqg.rtd",,"StudyData",AF40, "Bar",, "Close","D","-5","All",,,,"T"),3)="777",NA(),IF(RTD("cqg.rtd",,"StudyData",AF40, "Bar",, "Close","D","-5","All",,,,"T")="",NA(),RTD("cqg.rtd",,"StudyData",AF40, "Bar",, "Close","D","-5","All",,,,"T"))) -> -0.19 | AK40: =IF(LEFT(RTD("cqg.rtd",,"StudyData",AF40, "Bar",, "Close","D","-20","All",,,,"T"),3)="777",NA(),IF(RTD("cqg.rtd",,"StudyData",AF40, "Bar",, "Close","D","-20","All",,,,"T")="",NA(),RTD("cqg.rtd",,"StudyData",AF40, "Bar",, "Close","D","-20","All",,,,"T"))) -> -0.08 | AL40: -0.015 | AM40: -0.08 | AN40: -0.19
B41: =RTD("cqg.rtd",,"StudyData",Q17, "Bar",, "Close","D","-1","All",,,,"T") -> 96.33 | C41: =RTD("cqg.rtd",,"StudyData",Q17, "Bar",, "Close","D","-5","All",,,,"T") -> 95.885 | D41: =RTD("cqg.rtd",,"StudyData",Q17, "Bar",, "Close","D","-20","All",,,,"T") -> 95.76 | E41: 0.095 | F41: 0.54 | G41: 0.665 | R41: 7 | T41: 8 | U41: ZQES1?8 | V41: =IF(LEFT(RTD("cqg.rtd", ,"ContractData", U41,"LastTradeorSettle",,"T"),3)="768",NA(),IF(RTD("cqg.rtd", ,"ContractData", U41,"LastTradeorSettle",,"T")="",NA(),RTD("cqg.rtd", ,"ContractData", U41,"LastTradeorSettle",,"T"))) -> -0.14 | X41: =IF(LEFT(RTD("cqg.rtd",,"StudyData",U41, "Bar",, "Close","D","-1","All",,,,"T"),3)="777",NA(),IF(RTD("cqg.rtd",,"StudyData",U41, "Bar",, "Close","D","-1","All",,,,"T")="",NA(),RTD("cqg.rtd",,"StudyData",U41, "Bar",, "Close","D","-1","All",,,,"T"))) -> -0.135 | Y41: =IF(LEFT(RTD("cqg.rtd",,"StudyData",U41, "Bar",, "Close","D","-5","All",,,,"T"),3)="777",NA(),IF(RTD("cqg.rtd",,"StudyData",U41, "Bar",, "Close","D","-5","All",,,,"T")="",NA(),RTD("cqg.rtd",,"StudyData",U41, "Bar",, "Close","D","-5","All",,,,"T"))) -> -0.135 | Z41: =IF(LEFT(RTD("cqg.rtd",,"StudyData",U41, "Bar",, "Close","D","-20","All",,,,"T"),3)="777",NA(),IF(RTD("cqg.rtd",,"StudyData",U41, "Bar",, "Close","D","-20","All",,,,"T")="",NA(),RTD("cqg.rtd",,"StudyData",U41, "Bar",, "Close","D","-20","All",,,,"T"))) -> -0.065 | AA41: -0.005 | AB41: -0.005 | AC41: -0.075 | AE41: 8 | AF41: ZQES2?8 | AG41: =IF(LEFT(RTD("cqg.rtd", ,"ContractData", AF41,"LastTradeorSettle",,"T"),3)="768",NA(),IF(RTD("cqg.rtd", ,"ContractData", AF41,"LastTradeorSettle",,"T")="",NA(),RTD("cqg.rtd", ,"ContractData", AF41,"LastTradeorSettle",,"T"))) -> -0.195 | AI41: =IF(LEFT(RTD("cqg.rtd",,"StudyData",AF41, "Bar",, "Close","D","-1","All",,,,"T"),3)="777",NA(),IF(RTD("cqg.rtd",,"StudyData",AF41, "Bar",, "Close","D","-1","All",,,,"T")="",NA(),RTD("cqg.rtd",,"StudyData",AF41, "Bar",, "Close","D","-1","All",,,,"T"))) -> -0.185 | AJ41: =IF(LEFT(RTD("cqg.rtd",,"StudyData",AF41, "Bar",, "Close","D","-5","All",,,,"T"),3)="777",NA(),IF(RTD("cqg.rtd",,"StudyData",AF41, "Bar",, "Close","D","-5","All",,,,"T")="",NA(),RTD("cqg.rtd",,"StudyData",AF41, "Bar",, "Close","D","-5","All",,,,"T"))) -> -0.225 | AK41: =IF(LEFT(RTD("cqg.rtd",,"StudyData",AF41, "Bar",, "Close","D","-20","All",,,,"T"),3)="777",NA(),IF(RTD("cqg.rtd",,"StudyData",AF41, "Bar",, "Close","D","-20","All",,,,"T")="",NA(),RTD("cqg.rtd",,"StudyData",AF41, "Bar",, "Close","D","-20","All",,,,"T"))) -> -0.135 | AL41: -0.01 | AM41: 0.03 | AN41: -0.06
B42: =RTD("cqg.rtd",,"StudyData",Q18, "Bar",, "Close","D","-1","All",,,,"T") -> 96.48 | C42: =RTD("cqg.rtd",,"StudyData",Q18, "Bar",, "Close","D","-5","All",,,,"T") -> 96.095 | D42: =RTD("cqg.rtd",,"StudyData",Q18, "Bar",, "Close","D","-20","All",,,,"T") -> 95.97 | R42: 8 | T42: 9 | U42: ZQES1?9 | V42: =IF(LEFT(RTD("cqg.rtd", ,"ContractData", U42,"LastTradeorSettle",,"T"),3)="768",NA(),IF(RTD("cqg.rtd", ,"ContractData", U42,"LastTradeorSettle",,"T")="",NA(),RTD("cqg.rtd", ,"ContractData", U42,"LastTradeorSettle",,"T"))) -> -0.055 | X42: =IF(LEFT(RTD("cqg.rtd",,"StudyData",U42, "Bar",, "Close","D","-1","All",,,,"T"),3)="777",NA(),IF(RTD("cqg.rtd",,"StudyData",U42, "Bar",, "Close","D","-1","All",,,,"T")="",NA(),RTD("cqg.rtd",,"StudyData",U42, "Bar",, "Close","D","-1","All",,,,"T"))) -> -0.05 | Y42: =IF(LEFT(RTD("cqg.rtd",,"StudyData",U42, "Bar",, "Close","D","-5","All",,,,"T"),3)="777",NA(),IF(RTD("cqg.rtd",,"StudyData",U42, "Bar",, "Close","D","-5","All",,,,"T")="",NA(),RTD("cqg.rtd",,"StudyData",U42, "Bar",, "Close","D","-5","All",,,,"T"))) -> -0.09 | Z42: =IF(LEFT(RTD("cqg.rtd",,"StudyData",U42, "Bar",, "Close","D","-20","All",,,,"T"),3)="777",NA(),IF(RTD("cqg.rtd",,"StudyData",U42, "Bar",, "Close","D","-20","All",,,,"T")="",NA(),RTD("cqg.rtd",,"StudyData",U42, "Bar",, "Close","D","-20","All",,,,"T"))) -> -0.07 | AA42: -0.005 | AB42: 0.035 | AC42: 0.015 | AE42: 9 | AF42: ZQES2?9 | AG42: =IF(LEFT(RTD("cqg.rtd", ,"ContractData", AF42,"LastTradeorSettle",,"T"),3)="768",NA(),IF(RTD("cqg.rtd", ,"ContractData", AF42,"LastTradeorSettle",,"T")="",NA(),RTD("cqg.rtd", ,"ContractData", AF42,"LastTradeorSettle",,"T"))) -> -0.11 | AI42: =IF(LEFT(RTD("cqg.rtd",,"StudyData",AF42, "Bar",, "Close","D","-1","All",,,,"T"),3)="777",NA(),IF(RTD("cqg.rtd",,"StudyData",AF42, "Bar",, "Close","D","-1","All",,,,"T")="",NA(),RTD("cqg.rtd",,"StudyData",AF42, "Bar",, "Close","D","-1","All",,,,"T"))) -> -0.105 | AJ42: =IF(LEFT(RTD("cqg.rtd",,"StudyData",AF42, "Bar",, "Close","D","-5","All",,,,"T"),3)="777",NA(),IF(RTD("cqg.rtd",,"StudyData",AF42, "Bar",, "Close","D","-5","All",,,,"T")="",NA(),RTD("cqg.rtd",,"StudyData",AF42, "Bar",, "Close","D","-5","All",,,,"T"))) -> -0.16 | AK42: =IF(LEFT(RTD("cqg.rtd",,"StudyData",AF42, "Bar",, "Close","D","-20","All",,,,"T"),3)="777",NA(),IF(RTD("cqg.rtd",,"StudyData",AF42, "Bar",, "Close","D","-20","All",,,,"T")="",NA(),RTD("cqg.rtd",,"StudyData",AF42, "Bar",, "Close","D","-20","All",,,,"T"))) -> -0.12 | AL42: -0.005 | AM42: 0.05 | AN42: 0.01
B43: =RTD("cqg.rtd",,"StudyData",Q19, "Bar",, "Close","D","-1","All",,,,"T") -> 96.505 | C43: =RTD("cqg.rtd",,"StudyData",Q19, "Bar",, "Close","D","-5","All",,,,"T") -> 96.14 | D43: =RTD("cqg.rtd",,"StudyData",Q19, "Bar",, "Close","D","-20","All",,,,"T") -> 96.005 | R43: 9 | T43: 10 | U43: ZQES1?10 | V43: =IF(LEFT(RTD("cqg.rtd", ,"ContractData", U43,"LastTradeorSettle",,"T"),3)="768",NA(),IF(RTD("cqg.rtd", ,"ContractData", U43,"LastTradeorSettle",,"T")="",NA(),RTD("cqg.rtd", ,"ContractData", U43,"LastTradeorSettle",,"T"))) -> -0.055 | X43: =IF(LEFT(RTD("cqg.rtd",,"StudyData",U43, "Bar",, "Close","D","-1","All",,,,"T"),3)="777",NA(),IF(RTD("cqg.rtd",,"StudyData",U43, "Bar",, "Close","D","-1","All",,,,"T")="",NA(),RTD("cqg.rtd",,"StudyData",U43, "Bar",, "Close","D","-1","All",,,,"T"))) -> -0.055 | Y43: =IF(LEFT(RTD("cqg.rtd",,"StudyData",U43, "Bar",, "Close","D","-5","All",,,,"T"),3)="777",NA(),IF(RTD("cqg.rtd",,"StudyData",U43, "Bar",, "Close","D","-5","All",,,,"T")="",NA(),RTD("cqg.rtd",,"StudyData",U43, "Bar",, "Close","D","-5","All",,,,"T"))) -> -0.07 | Z43: =IF(LEFT(RTD("cqg.rtd",,"StudyData",U43, "Bar",, "Close","D","-20","All",,,,"T"),3)="777",NA(),IF(RTD("cqg.rtd",,"StudyData",U43, "Bar",, "Close","D","-20","All",,,,"T")="",NA(),RTD("cqg.rtd",,"StudyData",U43, "Bar",, "Close","D","-20","All",,,,"T"))) -> -0.05 | AA43: 0 | AB43: 0.015 | AC43: -0.005 | AE43: 10 | AF43: ZQES2?10 | AG43: =IF(LEFT(RTD("cqg.rtd", ,"ContractData", AF43,"LastTradeorSettle",,"T"),3)="768",NA(),IF(RTD("cqg.rtd", ,"ContractData", AF43,"LastTradeorSettle",,"T")="",NA(),RTD("cqg.rtd", ,"ContractData", AF43,"LastTradeorSettle",,"T"))) -> -0.135 | AI43: =IF(LEFT(RTD("cqg.rtd",,"StudyData",AF43, "Bar",, "Close","D","-1","All",,,,"T"),3)="777",NA(),IF(RTD("cqg.rtd",,"StudyData",AF43, "Bar",, "Close","D","-1","All",,,,"T")="",NA(),RTD("cqg.rtd",,"StudyData",AF43, "Bar",, "Close","D","-1","All",,,,"T"))) -> -0.16 | AJ43: =IF(LEFT(RTD("cqg.rtd",,"StudyData",AF43, "Bar",, "Close","D","-5","All",,,,"T"),3)="777",NA(),IF(RTD("cqg.rtd",,"StudyData",AF43, "Bar",, "Close","D","-5","All",,,,"T")="",NA(),RTD("cqg.rtd",,"StudyData",AF43, "Bar",, "Close","D","-5","All",,,,"T"))) -> -0.24 | AK43: =IF(LEFT(RTD("cqg.rtd",,"StudyData",AF43, "Bar",, "Close","D","-20","All",,,,"T"),3)="777",NA(),IF(RTD("cqg.rtd",,"StudyData",AF43, "Bar",, "Close","D","-20","All",,,,"T")="",NA(),RTD("cqg.rtd",,"StudyData",AF43, "Bar",, "Close","D","-20","All",,,,"T"))) -> -0.205 | AL43: 0.025 | AM43: 0.105 | AN43: 0.07
B44: =IFERROR( RTD("cqg.rtd",,"StudyData",Q20, "Bar",, "Close","D","-1","All",,,,"T"),NA()) -> 96.61 | C44: =IF(RTD("cqg.rtd",,"StudyData",Q20, "Bar",, "Close","D","-5","All",,,,"T")="",NA(),RTD("cqg.rtd",,"StudyData",Q20, "Bar",, "Close","D","-5","All",,,,"T")) -> 96.26 | D44: =IF(RTD("cqg.rtd",,"StudyData",Q20, "Bar",, "Close","D","-20","All",,,,"T")="",NA(),RTD("cqg.rtd",,"StudyData",Q20, "Bar",, "Close","D","-20","All",,,,"T")) -> 96.11 | E44: =IFERROR( R20-B44,NA()) ->  | F44: =IFERROR( R20-C44,NA()) ->  | G44: =IFERROR( R20-D44,NA()) ->  | R44: 10 | T44: 11 | U44: ZQES1?11 | V44: =IF(LEFT(RTD("cqg.rtd", ,"ContractData", U44,"LastTradeorSettle",,"T"),3)="768",NA(),IF(RTD("cqg.rtd", ,"ContractData", U44,"LastTradeorSettle",,"T")="",NA(),RTD("cqg.rtd", ,"ContractData", U44,"LastTradeorSettle",,"T"))) -> -0.09 | X44: =IF(LEFT(RTD("cqg.rtd",,"StudyData",U44, "Bar",, "Close","D","-1","All",,,,"T"),3)="777",NA(),IF(RTD("cqg.rtd",,"StudyData",U44, "Bar",, "Close","D","-1","All",,,,"T")="",NA(),RTD("cqg.rtd",,"StudyData",U44, "Bar",, "Close","D","-1","All",,,,"T"))) -> -0.105 | Y44: =IF(LEFT(RTD("cqg.rtd",,"StudyData",U44, "Bar",, "Close","D","-5","All",,,,"T"),3)="777",NA(),IF(RTD("cqg.rtd",,"StudyData",U44, "Bar",, "Close","D","-5","All",,,,"T")="",NA(),RTD("cqg.rtd",,"StudyData",U44, "Bar",, "Close","D","-5","All",,,,"T"))) -> -0.17 | Z44: =IF(LEFT(RTD("cqg.rtd",,"StudyData",U44, "Bar",, "Close","D","-20","All",,,,"T"),3)="777",NA(),IF(RTD("cqg.rtd",,"StudyData",U44, "Bar",, "Close","D","-20","All",,,,"T")="",NA(),RTD("cqg.rtd",,"StudyData",U44, "Bar",, "Close","D","-20","All",,,,"T"))) -> -0.155 | AA44: 0.015 | AB44: 0.08 | AC44: 0.065 | AE44: 11 | AF44: ZQES2?11 | AG44: =IF(LEFT(RTD("cqg.rtd", ,"ContractData", AF44,"LastTradeorSettle",,"T"),3)="768",NA(),IF(RTD("cqg.rtd", ,"ContractData", AF44,"LastTradeorSettle",,"T")="",NA(),RTD("cqg.rtd", ,"ContractData", AF44,"LastTradeorSettle",,"T"))) -> -0.115 | AI44: =IF(LEFT(RTD("cqg.rtd",,"StudyData",AF44, "Bar",, "Close","D","-1","All",,,,"T"),3)="777",NA(),IF(RTD("cqg.rtd",,"StudyData",AF44, "Bar",, "Close","D","-1","All",,,,"T")="",NA(),RTD("cqg.rtd",,"StudyData",AF44, "Bar",, "Close","D","-1","All",,,,"T"))) -> -0.145 | AJ44: =IF(LEFT(RTD("cqg.rtd",,"StudyData",AF44, "Bar",, "Close","D","-5","All",,,,"T"),3)="777",NA(),IF(RTD("cqg.rtd",,"StudyData",AF44, "Bar",, "Close","D","-5","All",,,,"T")="",NA(),RTD("cqg.rtd",,"StudyData",AF44, "Bar",, "Close","D","-5","All",,,,"T"))) -> -0.235 | AK44: =IF(LEFT(RTD("cqg.rtd",,"StudyData",AF44, "Bar",, "Close","D","-20","All",,,,"T"),3)="777",NA(),IF(RTD("cqg.rtd",,"StudyData",AF44, "Bar",, "Close","D","-20","All",,,,"T")="",NA(),RTD("cqg.rtd",,"StudyData",AF44, "Bar",, "Close","D","-20","All",,,,"T"))) -> -0.225 | AL44: 0.03 | AM44: 0.12 | AN44: 0.11
B45: =IFERROR( RTD("cqg.rtd",,"StudyData",Q21, "Bar",, "Close","D","-1","All",,,,"T"),"") -> 96.715 | C45: =IF(RTD("cqg.rtd",,"StudyData",Q21, "Bar",, "Close","D","-5","All",,,,"T")="",NA(),RTD("cqg.rtd",,"StudyData",Q21, "Bar",, "Close","D","-5","All",,,,"T")) -> 96.365 | D45: =IF(RTD("cqg.rtd",,"StudyData",Q21, "Bar",, "Close","D","-20","All",,,,"T")="",NA(),RTD("cqg.rtd",,"StudyData",Q21, "Bar",, "Close","D","-20","All",,,,"T")) -> 96.215 | E45: =IFERROR( R21-B45,NA()) ->  | F45: =IFERROR( R21-C45,NA()) ->  | G45: =IFERROR( R21-D45,NA()) ->  | R45: 11 | T45: 12 | U45: ZQES1?12 | V45: =IF(LEFT(RTD("cqg.rtd", ,"ContractData", U45,"LastTradeorSettle",,"T"),3)="768",NA(),IF(RTD("cqg.rtd", ,"ContractData", U45,"LastTradeorSettle",,"T")="",NA(),RTD("cqg.rtd", ,"ContractData", U45,"LastTradeorSettle",,"T"))) -> -0.035 | X45: =IF(LEFT(RTD("cqg.rtd",,"StudyData",U45, "Bar",, "Close","D","-1","All",,,,"T"),3)="777",NA(),IF(RTD("cqg.rtd",,"StudyData",U45, "Bar",, "Close","D","-1","All",,,,"T")="",NA(),RTD("cqg.rtd",,"StudyData",U45, "Bar",, "Close","D","-1","All",,,,"T"))) -> -0.04 | Y45: =IF(LEFT(RTD("cqg.rtd",,"StudyData",U45, "Bar",, "Close","D","-5","All",,,,"T"),3)="777",NA(),IF(RTD("cqg.rtd",,"StudyData",U45, "Bar",, "Close","D","-5","All",,,,"T")="",NA(),RTD("cqg.rtd",,"StudyData",U45, "Bar",, "Close","D","-5","All",,,,"T"))) -> -0.065 | Z45: =IF(LEFT(RTD("cqg.rtd",,"StudyData",U45, "Bar",, "Close","D","-20","All",,,,"T"),3)="777",NA(),IF(RTD("cqg.rtd",,"StudyData",U45, "Bar",, "Close","D","-20","All",,,,"T")="",NA(),RTD("cqg.rtd",,"StudyData",U45, "Bar",, "Close","D","-20","All",,,,"T"))) -> -0.07 | AA45: 0.005 | AB45: 0.03 | AC45: 0.035 | AE45: 12 | AF45: ZQES2?12 | AG45: =IF(LEFT(RTD("cqg.rtd", ,"ContractData", AF45,"LastTradeorSettle",,"T"),3)="768",NA(),IF(RTD("cqg.rtd", ,"ContractData", AF45,"LastTradeorSettle",,"T")="",NA(),RTD("cqg.rtd", ,"ContractData", AF45,"LastTradeorSettle",,"T"))) -> -0.125 | AI45: =IF(LEFT(RTD("cqg.rtd",,"StudyData",AF45, "Bar",, "Close","D","-1","All",,,,"T"),3)="777",NA(),IF(RTD("cqg.rtd",,"StudyData",AF45, "Bar",, "Close","D","-1","All",,,,"T")="",NA(),RTD("cqg.rtd",,"StudyData",AF45, "Bar",, "Close","D","-1","All",,,,"T"))) -> -0.13 | AJ45: =IF(LEFT(RTD("cqg.rtd",,"StudyData",AF45, "Bar",, "Close","D","-5","All",,,,"T"),3)="777",NA(),IF(RTD("cqg.rtd",,"StudyData",AF45, "Bar",, "Close","D","-5","All",,,,"T")="",NA(),RTD("cqg.rtd",,"StudyData",AF45, "Bar",, "Close","D","-5","All",,,,"T"))) -> -0.185 | AK45: =IF(LEFT(RTD("cqg.rtd",,"StudyData",AF45, "Bar",, "Close","D","-20","All",,,,"T"),3)="777",NA(),IF(RTD("cqg.rtd",,"StudyData",AF45, "Bar",, "Close","D","-20","All",,,,"T")="",NA(),RTD("cqg.rtd",,"StudyData",AF45, "Bar",, "Close","D","-20","All",,,,"T"))) -> -0.195 | AL45: 0.005 | AM45: 0.06 | AN45: 0.07
R46: 12 | T46: 13 | U46: ZQES1?13 | V46: =IF(LEFT(RTD("cqg.rtd", ,"ContractData", U46,"LastTradeorSettle",,"T"),3)="768",NA(),IF(RTD("cqg.rtd", ,"ContractData", U46,"LastTradeorSettle",,"T")="",NA(),RTD("cqg.rtd", ,"ContractData", U46,"LastTradeorSettle",,"T"))) -> -0.08 | X46: =IF(LEFT(RTD("cqg.rtd",,"StudyData",U46, "Bar",, "Close","D","-1","All",,,,"T"),3)="777",NA(),IF(RTD("cqg.rtd",,"StudyData",U46, "Bar",, "Close","D","-1","All",,,,"T")="",NA(),RTD("cqg.rtd",,"StudyData",U46, "Bar",, "Close","D","-1","All",,,,"T"))) -> -0.09 | Y46: =IF(LEFT(RTD("cqg.rtd",,"StudyData",U46, "Bar",, "Close","D","-5","All",,,,"T"),3)="777",NA(),IF(RTD("cqg.rtd",,"StudyData",U46, "Bar",, "Close","D","-5","All",,,,"T")="",NA(),RTD("cqg.rtd",,"StudyData",U46, "Bar",, "Close","D","-5","All",,,,"T"))) -> -0.12 | Z46: =IF(LEFT(RTD("cqg.rtd",,"StudyData",U46, "Bar",, "Close","D","-20","All",,,,"T"),3)="777",NA(),IF(RTD("cqg.rtd",,"StudyData",U46, "Bar",, "Close","D","-20","All",,,,"T")="",NA(),RTD("cqg.rtd",,"StudyData",U46, "Bar",, "Close","D","-20","All",,,,"T"))) -> -0.125 | AA46: 0.01 | AB46: 0.04 | AC46: 0.045 | AE46: 13 | AF46: ZQES2?13 | AG46: =IF(LEFT(RTD("cqg.rtd", ,"ContractData", AF46,"LastTradeorSettle",,"T"),3)="768",NA(),IF(RTD("cqg.rtd", ,"ContractData", AF46,"LastTradeorSettle",,"T")="",NA(),RTD("cqg.rtd", ,"ContractData", AF46,"LastTradeorSettle",,"T"))) -> -0.215 | AI46: =IF(LEFT(RTD("cqg.rtd",,"StudyData",AF46, "Bar",, "Close","D","-1","All",,,,"T"),3)="777",NA(),IF(RTD("cqg.rtd",,"StudyData",AF46, "Bar",, "Close","D","-1","All",,,,"T")="",NA(),RTD("cqg.rtd",,"StudyData",AF46, "Bar",, "Close","D","-1","All",,,,"T"))) -> -0.235 | AJ46: =IF(LEFT(RTD("cqg.rtd",,"StudyData",AF46, "Bar",, "Close","D","-5","All",,,,"T"),3)="777",NA(),IF(RTD("cqg.rtd",,"StudyData",AF46, "Bar",, "Close","D","-5","All",,,,"T")="",NA(),RTD("cqg.rtd",,"StudyData",AF46, "Bar",, "Close","D","-5","All",,,,"T"))) -> -0.315 | AK46: =IF(LEFT(RTD("cqg.rtd",,"StudyData",AF46, "Bar",, "Close","D","-20","All",,,,"T"),3)="777",NA(),IF(RTD("cqg.rtd",,"StudyData",AF46, "Bar",, "Close","D","-20","All",,,,"T")="",NA(),RTD("cqg.rtd",,"StudyData",AF46, "Bar",, "Close","D","-20","All",,,,"T"))) -> -0.325 | AL46: 0.02 | AM46: 0.1 | AN46: 0.11
R47: 13 | T47: 14 | U47: ZQES1?14 | V47: =IF(LEFT(RTD("cqg.rtd", ,"ContractData", U47,"LastTradeorSettle",,"T"),3)="768",NA(),IF(RTD("cqg.rtd", ,"ContractData", U47,"LastTradeorSettle",,"T")="",NA(),RTD("cqg.rtd", ,"ContractData", U47,"LastTradeorSettle",,"T"))) -> -0.145 | X47: =IF(LEFT(RTD("cqg.rtd",,"StudyData",U47, "Bar",, "Close","D","-1","All",,,,"T"),3)="777",NA(),IF(RTD("cqg.rtd",,"StudyData",U47, "Bar",, "Close","D","-1","All",,,,"T")="",NA(),RTD("cqg.rtd",,"StudyData",U47, "Bar",, "Close","D","-1","All",,,,"T"))) -> -0.145 | Y47: =IF(LEFT(RTD("cqg.rtd",,"StudyData",U47, "Bar",, "Close","D","-5","All",,,,"T"),3)="777",NA(),IF(RTD("cqg.rtd",,"StudyData",U47, "Bar",, "Close","D","-5","All",,,,"T")="",NA(),RTD("cqg.rtd",,"StudyData",U47, "Bar",, "Close","D","-5","All",,,,"T"))) -> -0.195 | Z47: =IF(LEFT(RTD("cqg.rtd",,"StudyData",U47, "Bar",, "Close","D","-20","All",,,,"T"),3)="777",NA(),IF(RTD("cqg.rtd",,"StudyData",U47, "Bar",, "Close","D","-20","All",,,,"T")="",NA(),RTD("cqg.rtd",,"StudyData",U47, "Bar",, "Close","D","-20","All",,,,"T"))) -> -0.2 | AA47: 0 | AB47: 0.05 | AC47: 0.055 | AE47: 14 | AF47: ZQES2?14 | AG47: =IF(LEFT(RTD("cqg.rtd", ,"ContractData", AF47,"LastTradeorSettle",,"T"),3)="768",NA(),IF(RTD("cqg.rtd", ,"ContractData", AF47,"LastTradeorSettle",,"T")="",NA(),RTD("cqg.rtd", ,"ContractData", AF47,"LastTradeorSettle",,"T"))) ->  | AI47: =IF(LEFT(RTD("cqg.rtd",,"StudyData",AF47, "Bar",, "Close","D","-1","All",,,,"T"),3)="777",NA(),IF(RTD("cqg.rtd",,"StudyData",AF47, "Bar",, "Close","D","-1","All",,,,"T")="",NA(),RTD("cqg.rtd",,"StudyData",AF47, "Bar",, "Close","D","-1","All",,,,"T"))) -> -0.21 | AJ47: =IF(LEFT(RTD("cqg.rtd",,"StudyData",AF47, "Bar",, "Close","D","-5","All",,,,"T"),3)="777",NA(),IF(RTD("cqg.rtd",,"StudyData",AF47, "Bar",, "Close","D","-5","All",,,,"T")="",NA(),RTD("cqg.rtd",,"StudyData",AF47, "Bar",, "Close","D","-5","All",,,,"T"))) -> -0.315 | AK47: =IF(LEFT(RTD("cqg.rtd",,"StudyData",AF47, "Bar",, "Close","D","-20","All",,,,"T"),3)="777",NA(),IF(RTD("cqg.rtd",,"StudyData",AF47, "Bar",, "Close","D","-20","All",,,,"T")="",NA(),RTD("cqg.rtd",,"StudyData",AF47, "Bar",, "Close","D","-20","All",,,,"T"))) -> -0.335
R48: 14 | T48: 15 | U48: ZQES1?15 | V48: =IF(LEFT(RTD("cqg.rtd", ,"ContractData", U48,"LastTradeorSettle",,"T"),3)="768",NA(),IF(RTD("cqg.rtd", ,"ContractData", U48,"LastTradeorSettle",,"T")="",NA(),RTD("cqg.rtd", ,"ContractData", U48,"LastTradeorSettle",,"T"))) ->  | X48: =IF(LEFT(RTD("cqg.rtd",,"StudyData",U48, "Bar",, "Close","D","-1","All",,,,"T"),3)="777",NA(),IF(RTD("cqg.rtd",,"StudyData",U48, "Bar",, "Close","D","-1","All",,,,"T")="",NA(),RTD("cqg.rtd",,"StudyData",U48, "Bar",, "Close","D","-1","All",,,,"T"))) -> -0.065 | Y48: =IF(LEFT(RTD("cqg.rtd",,"StudyData",U48, "Bar",, "Close","D","-5","All",,,,"T"),3)="777",NA(),IF(RTD("cqg.rtd",,"StudyData",U48, "Bar",, "Close","D","-5","All",,,,"T")="",NA(),RTD("cqg.rtd",,"StudyData",U48, "Bar",, "Close","D","-5","All",,,,"T"))) -> -0.12 | Z48: =IF(LEFT(RTD("cqg.rtd",,"StudyData",U48, "Bar",, "Close","D","-20","All",,,,"T"),3)="777",NA(),IF(RTD("cqg.rtd",,"StudyData",U48, "Bar",, "Close","D","-20","All",,,,"T")="",NA(),RTD("cqg.rtd",,"StudyData",U48, "Bar",, "Close","D","-20","All",,,,"T"))) -> -0.135 | AE48: 15 | AF48: ZQES2?15 | AG48: =IF(LEFT(RTD("cqg.rtd", ,"ContractData", AF48,"LastTradeorSettle",,"T"),3)="768",NA(),IF(RTD("cqg.rtd", ,"ContractData", AF48,"LastTradeorSettle",,"T")="",NA(),RTD("cqg.rtd", ,"ContractData", AF48,"LastTradeorSettle",,"T"))) -> -0.14 | AI48: =IF(LEFT(RTD("cqg.rtd",,"StudyData",AF48, "Bar",, "Close","D","-1","All",,,,"T"),3)="777",NA(),IF(RTD("cqg.rtd",,"StudyData",AF48, "Bar",, "Close","D","-1","All",,,,"T")="",NA(),RTD("cqg.rtd",,"StudyData",AF48, "Bar",, "Close","D","-1","All",,,,"T"))) -> -0.11 | AJ48: =IF(LEFT(RTD("cqg.rtd",,"StudyData",AF48, "Bar",, "Close","D","-5","All",,,,"T"),3)="777",NA(),IF(RTD("cqg.rtd",,"StudyData",AF48, "Bar",, "Close","D","-5","All",,,,"T")="",NA(),RTD("cqg.rtd",,"StudyData",AF48, "Bar",, "Close","D","-5","All",,,,"T"))) -> -0.205 | AK48: =IF(LEFT(RTD("cqg.rtd",,"StudyData",AF48, "Bar",, "Close","D","-20","All",,,,"T"),3)="777",NA(),IF(RTD("cqg.rtd",,"StudyData",AF48, "Bar",, "Close","D","-20","All",,,,"T")="",NA(),RTD("cqg.rtd",,"StudyData",AF48, "Bar",, "Close","D","-20","All",,,,"T"))) -> -0.23 | AL48: -0.03 | AM48: 0.065 | AN48: 0.09
R49: 15 | T49: 16 | U49: ZQES1?16 | V49: =IF(LEFT(RTD("cqg.rtd", ,"ContractData", U49,"LastTradeorSettle",,"T"),3)="768",NA(),IF(RTD("cqg.rtd", ,"ContractData", U49,"LastTradeorSettle",,"T")="",NA(),RTD("cqg.rtd", ,"ContractData", U49,"LastTradeorSettle",,"T"))) ->  | X49: =IF(LEFT(RTD("cqg.rtd",,"StudyData",U49, "Bar",, "Close","D","-1","All",,,,"T"),3)="777",NA(),IF(RTD("cqg.rtd",,"StudyData",U49, "Bar",, "Close","D","-1","All",,,,"T")="",NA(),RTD("cqg.rtd",,"StudyData",U49, "Bar",, "Close","D","-1","All",,,,"T"))) -> -0.045 | Y49: =IF(LEFT(RTD("cqg.rtd",,"StudyData",U49, "Bar",, "Close","D","-5","All",,,,"T"),3)="777",NA(),IF(RTD("cqg.rtd",,"StudyData",U49, "Bar",, "Close","D","-5","All",,,,"T")="",NA(),RTD("cqg.rtd",,"StudyData",U49, "Bar",, "Close","D","-5","All",,,,"T"))) -> -0.085 | Z49: =IF(LEFT(RTD("cqg.rtd",,"StudyData",U49, "Bar",, "Close","D","-20","All",,,,"T"),3)="777",NA(),IF(RTD("cqg.rtd",,"StudyData",U49, "Bar",, "Close","D","-20","All",,,,"T")="",NA(),RTD("cqg.rtd",,"StudyData",U49, "Bar",, "Close","D","-20","All",,,,"T"))) -> -0.095 | AE49: 16 | AF49: ZQES2?16 | AG49: =IF(LEFT(RTD("cqg.rtd", ,"ContractData", AF49,"LastTradeorSettle",,"T"),3)="768",NA(),IF(RTD("cqg.rtd", ,"ContractData", AF49,"LastTradeorSettle",,"T")="",NA(),RTD("cqg.rtd", ,"ContractData", AF49,"LastTradeorSettle",,"T"))) ->  | AI49: =IF(LEFT(RTD("cqg.rtd",,"StudyData",AF49, "Bar",, "Close","D","-1","All",,,,"T"),3)="777",NA(),IF(RTD("cqg.rtd",,"StudyData",AF49, "Bar",, "Close","D","-1","All",,,,"T")="",NA(),RTD("cqg.rtd",,"StudyData",AF49, "Bar",, "Close","D","-1","All",,,,"T"))) -> -0.195 | AJ49: =IF(LEFT(RTD("cqg.rtd",,"StudyData",AF49, "Bar",, "Close","D","-5","All",,,,"T"),3)="777",NA(),IF(RTD("cqg.rtd",,"StudyData",AF49, "Bar",, "Close","D","-5","All",,,,"T")="",NA(),RTD("cqg.rtd",,"StudyData",AF49, "Bar",, "Close","D","-5","All",,,,"T"))) -> -0.295 | AK49: =IF(LEFT(RTD("cqg.rtd",,"StudyData",AF49, "Bar",, "Close","D","-20","All",,,,"T"),3)="777",NA(),IF(RTD("cqg.rtd",,"StudyData",AF49, "Bar",, "Close","D","-20","All",,,,"T")="",NA(),RTD("cqg.rtd",,"StudyData",AF49, "Bar",, "Close","D","-20","All",,,,"T"))) -> -0.305
R50: 16 | T50: 17 | U50: ZQES1?17 | V50: =IF(LEFT(RTD("cqg.rtd", ,"ContractData", U50,"LastTradeorSettle",,"T"),3)="768",NA(),IF(RTD("cqg.rtd", ,"ContractData", U50,"LastTradeorSettle",,"T")="",NA(),RTD("cqg.rtd", ,"ContractData", U50,"LastTradeorSettle",,"T"))) -> -0.165 | X50: =IF(LEFT(RTD("cqg.rtd",,"StudyData",U50, "Bar",, "Close","D","-1","All",,,,"T"),3)="777",NA(),IF(RTD("cqg.rtd",,"StudyData",U50, "Bar",, "Close","D","-1","All",,,,"T")="",NA(),RTD("cqg.rtd",,"StudyData",U50, "Bar",, "Close","D","-1","All",,,,"T"))) -> -0.15 | Y50: =IF(LEFT(RTD("cqg.rtd",,"StudyData",U50, "Bar",, "Close","D","-5","All",,,,"T"),3)="777",NA(),IF(RTD("cqg.rtd",,"StudyData",U50, "Bar",, "Close","D","-5","All",,,,"T")="",NA(),RTD("cqg.rtd",,"StudyData",U50, "Bar",, "Close","D","-5","All",,,,"T"))) -> -0.21 | Z50: =IF(LEFT(RTD("cqg.rtd",,"StudyData",U50, "Bar",, "Close","D","-20","All",,,,"T"),3)="777",NA(),IF(RTD("cqg.rtd",,"StudyData",U50, "Bar",, "Close","D","-20","All",,,,"T")="",NA(),RTD("cqg.rtd",,"StudyData",U50, "Bar",, "Close","D","-20","All",,,,"T"))) -> -0.21 | AA50: -0.015 | AB50: 0.045 | AC50: 0.045 | AE50: 17 | AF50: ZQES2?17 | AG50: =IF(LEFT(RTD("cqg.rtd", ,"ContractData", AF50,"LastTradeorSettle",,"T"),3)="768",NA(),IF(RTD("cqg.rtd", ,"ContractData", AF50,"LastTradeorSettle",,"T")="",NA(),RTD("cqg.rtd", ,"ContractData", AF50,"LastTradeorSettle",,"T"))) ->  | AI50: =IF(LEFT(RTD("cqg.rtd",,"StudyData",AF50, "Bar",, "Close","D","-1","All",,,,"T"),3)="777",NA(),IF(RTD("cqg.rtd",,"StudyData",AF50, "Bar",, "Close","D","-1","All",,,,"T")="",NA(),RTD("cqg.rtd",,"StudyData",AF50, "Bar",, "Close","D","-1","All",,,,"T"))) -> -0.175 | AJ50: =IF(LEFT(RTD("cqg.rtd",,"StudyData",AF50, "Bar",, "Close","D","-5","All",,,,"T"),3)="777",NA(),IF(RTD("cqg.rtd",,"StudyData",AF50, "Bar",, "Close","D","-5","All",,,,"T")="",NA(),RTD("cqg.rtd",,"StudyData",AF50, "Bar",, "Close","D","-5","All",,,,"T"))) -> -0.255 | AK50: =IF(LEFT(RTD("cqg.rtd",,"StudyData",AF50, "Bar",, "Close","D","-20","All",,,,"T"),3)="777",NA(),IF(RTD("cqg.rtd",,"StudyData",AF50, "Bar",, "Close","D","-20","All",,,,"T")="",NA(),RTD("cqg.rtd",,"StudyData",AF50, "Bar",, "Close","D","-20","All",,,,"T"))) -> -0.245
R51: 17 | T51: 18 | U51: ZQES1?18 | V51: =IF(LEFT(RTD("cqg.rtd", ,"ContractData", U51,"LastTradeorSettle",,"T"),3)="768",NA(),IF(RTD("cqg.rtd", ,"ContractData", U51,"LastTradeorSettle",,"T")="",NA(),RTD("cqg.rtd", ,"ContractData", U51,"LastTradeorSettle",,"T"))) ->  | X51: =IF(LEFT(RTD("cqg.rtd",,"StudyData",U51, "Bar",, "Close","D","-1","All",,,,"T"),3)="777",NA(),IF(RTD("cqg.rtd",,"StudyData",U51, "Bar",, "Close","D","-1","All",,,,"T")="",NA(),RTD("cqg.rtd",,"StudyData",U51, "Bar",, "Close","D","-1","All",,,,"T"))) -> -0.025 | Y51: =IF(LEFT(RTD("cqg.rtd",,"StudyData",U51, "Bar",, "Close","D","-5","All",,,,"T"),3)="777",NA(),IF(RTD("cqg.rtd",,"StudyData",U51, "Bar",, "Close","D","-5","All",,,,"T")="",NA(),RTD("cqg.rtd",,"StudyData",U51, "Bar",, "Close","D","-5","All",,,,"T"))) -> -0.045 | Z51: =IF(LEFT(RTD("cqg.rtd",,"StudyData",U51, "Bar",, "Close","D","-20","All",,,,"T"),3)="777",NA(),IF(RTD("cqg.rtd",,"StudyData",U51, "Bar",, "Close","D","-20","All",,,,"T")="",NA(),RTD("cqg.rtd",,"StudyData",U51, "Bar",, "Close","D","-20","All",,,,"T"))) -> -0.035 | AE51: 18 | AF51: ZQES2?18 | AG51: =IF(LEFT(RTD("cqg.rtd", ,"ContractData", AF51,"LastTradeorSettle",,"T"),3)="768",NA(),IF(RTD("cqg.rtd", ,"ContractData", AF51,"LastTradeorSettle",,"T")="",NA(),RTD("cqg.rtd", ,"ContractData", AF51,"LastTradeorSettle",,"T"))) ->  | AI51: =IF(LEFT(RTD("cqg.rtd",,"StudyData",AF51, "Bar",, "Close","D","-1","All",,,,"T"),3)="777",NA(),IF(RTD("cqg.rtd",,"StudyData",AF51, "Bar",, "Close","D","-1","All",,,,"T")="",NA(),RTD("cqg.rtd",,"StudyData",AF51, "Bar",, "Close","D","-1","All",,,,"T"))) -> -0.13 | AJ51: =IF(LEFT(RTD("cqg.rtd",,"StudyData",AF51, "Bar",, "Close","D","-5","All",,,,"T"),3)="777",NA(),IF(RTD("cqg.rtd",,"StudyData",AF51, "Bar",, "Close","D","-5","All",,,,"T")="",NA(),RTD("cqg.rtd",,"StudyData",AF51, "Bar",, "Close","D","-5","All",,,,"T"))) -> -0.165 | AK51: =IF(LEFT(RTD("cqg.rtd",,"StudyData",AF51, "Bar",, "Close","D","-20","All",,,,"T"),3)="777",NA(),IF(RTD("cqg.rtd",,"StudyData",AF51, "Bar",, "Close","D","-20","All",,,,"T")="",NA(),RTD("cqg.rtd",,"StudyData",AF51, "Bar",, "Close","D","-20","All",,,,"T"))) -> -0.14
R52: 18 | T52: 19 | U52: ZQES1?19 | V52: =IF(LEFT(RTD("cqg.rtd", ,"ContractData", U52,"LastTradeorSettle",,"T"),3)="768",NA(),IF(RTD("cqg.rtd", ,"ContractData", U52,"LastTradeorSettle",,"T")="",NA(),RTD("cqg.rtd", ,"ContractData", U52,"LastTradeorSettle",,"T"))) ->  | X52: =IF(LEFT(RTD("cqg.rtd",,"StudyData",U52, "Bar",, "Close","D","-1","All",,,,"T"),3)="777",NA(),IF(RTD("cqg.rtd",,"StudyData",U52, "Bar",, "Close","D","-1","All",,,,"T")="",NA(),RTD("cqg.rtd",,"StudyData",U52, "Bar",, "Close","D","-1","All",,,,"T"))) -> -0.105 | Y52: =IF(LEFT(RTD("cqg.rtd",,"StudyData",U52, "Bar",, "Close","D","-5","All",,,,"T"),3)="777",NA(),IF(RTD("cqg.rtd",,"StudyData",U52, "Bar",, "Close","D","-5","All",,,,"T")="",NA(),RTD("cqg.rtd",,"StudyData",U52, "Bar",, "Close","D","-5","All",,,,"T"))) -> -0.12 | Z52: =IF(LEFT(RTD("cqg.rtd",,"StudyData",U52, "Bar",, "Close","D","-20","All",,,,"T"),3)="777",NA(),IF(RTD("cqg.rtd",,"StudyData",U52, "Bar",, "Close","D","-20","All",,,,"T")="",NA(),RTD("cqg.rtd",,"StudyData",U52, "Bar",, "Close","D","-20","All",,,,"T"))) -> -0.105 | AE52: 19 | AF52: ZQES2?19 | AG52: =IF(LEFT(RTD("cqg.rtd", ,"ContractData", AF52,"LastTradeorSettle",,"T"),3)="768",NA(),IF(RTD("cqg.rtd", ,"ContractData", AF52,"LastTradeorSettle",,"T")="",NA(),RTD("cqg.rtd", ,"ContractData", AF52,"LastTradeorSettle",,"T"))) ->  | AI52: =IF(LEFT(RTD("cqg.rtd",,"StudyData",AF52, "Bar",, "Close","D","-1","All",,,,"T"),3)="777",NA(),IF(RTD("cqg.rtd",,"StudyData",AF52, "Bar",, "Close","D","-1","All",,,,"T")="",NA(),RTD("cqg.rtd",,"StudyData",AF52, "Bar",, "Close","D","-1","All",,,,"T"))) -> -0.21 | AJ52: =IF(LEFT(RTD("cqg.rtd",,"StudyData",AF52, "Bar",, "Close","D","-5","All",,,,"T"),3)="777",NA(),IF(RTD("cqg.rtd",,"StudyData",AF52, "Bar",, "Close","D","-5","All",,,,"T")="",NA(),RTD("cqg.rtd",,"StudyData",AF52, "Bar",, "Close","D","-5","All",,,,"T"))) -> -0.225 | AK52: =IF(LEFT(RTD("cqg.rtd",,"StudyData",AF52, "Bar",, "Close","D","-20","All",,,,"T"),3)="777",NA(),IF(RTD("cqg.rtd",,"StudyData",AF52, "Bar",, "Close","D","-20","All",,,,"T")="",NA(),RTD("cqg.rtd",,"StudyData",AF52, "Bar",, "Close","D","-20","All",,,,"T"))) -> -0.21
R53: 19 | T53: 20 | U53: ZQES1?20 | V53: =IF(LEFT(RTD("cqg.rtd", ,"ContractData", U53,"LastTradeorSettle",,"T"),3)="768",NA(),IF(RTD("cqg.rtd", ,"ContractData", U53,"LastTradeorSettle",,"T")="",NA(),RTD("cqg.rtd", ,"ContractData", U53,"LastTradeorSettle",,"T"))) ->  | X53: =IF(LEFT(RTD("cqg.rtd",,"StudyData",U53, "Bar",, "Close","D","-1","All",,,,"T"),3)="777",NA(),IF(RTD("cqg.rtd",,"StudyData",U53, "Bar",, "Close","D","-1","All",,,,"T")="",NA(),RTD("cqg.rtd",,"StudyData",U53, "Bar",, "Close","D","-1","All",,,,"T"))) -> -0.105 | Y53: =IF(LEFT(RTD("cqg.rtd",,"StudyData",U53, "Bar",, "Close","D","-5","All",,,,"T"),3)="777",NA(),IF(RTD("cqg.rtd",,"StudyData",U53, "Bar",, "Close","D","-5","All",,,,"T")="",NA(),RTD("cqg.rtd",,"StudyData",U53, "Bar",, "Close","D","-5","All",,,,"T"))) -> -0.105 | Z53: =IF(LEFT(RTD("cqg.rtd",,"StudyData",U53, "Bar",, "Close","D","-20","All",,,,"T"),3)="777",NA(),IF(RTD("cqg.rtd",,"StudyData",U53, "Bar",, "Close","D","-20","All",,,,"T")="",NA(),RTD("cqg.rtd",,"StudyData",U53, "Bar",, "Close","D","-20","All",,,,"T"))) -> -0.105 | AE53: 20 | AF53: ZQES2?20 | AG53: =IF(LEFT(RTD("cqg.rtd", ,"ContractData", AF53,"LastTradeorSettle",,"T"),3)="768",NA(),IF(RTD("cqg.rtd", ,"ContractData", AF53,"LastTradeorSettle",,"T")="",NA(),RTD("cqg.rtd", ,"ContractData", AF53,"LastTradeorSettle",,"T"))) ->  | AI53: =IF(LEFT(RTD("cqg.rtd",,"StudyData",AF53, "Bar",, "Close","D","-1","All",,,,"T"),3)="777",NA(),IF(RTD("cqg.rtd",,"StudyData",AF53, "Bar",, "Close","D","-1","All",,,,"T")="",NA(),RTD("cqg.rtd",,"StudyData",AF53, "Bar",, "Close","D","-1","All",,,,"T"))) -> -0.36 | AJ53: =IF(LEFT(RTD("cqg.rtd",,"StudyData",AF53, "Bar",, "Close","D","-5","All",,,,"T"),3)="777",NA(),IF(RTD("cqg.rtd",,"StudyData",AF53, "Bar",, "Close","D","-5","All",,,,"T")="",NA(),RTD("cqg.rtd",,"StudyData",AF53, "Bar",, "Close","D","-5","All",,,,"T"))) -> -0.18 | AK53: =IF(LEFT(RTD("cqg.rtd",,"StudyData",AF53, "Bar",, "Close","D","-20","All",,,,"T"),3)="777",NA(),IF(RTD("cqg.rtd",,"StudyData",AF53, "Bar",, "Close","D","-20","All",,,,"T")="",NA(),RTD("cqg.rtd",,"StudyData",AF53, "Bar",, "Close","D","-20","All",,,,"T"))) -> -0.205
R54: 20 | T54: 21 | U54: ZQES1?21 | V54: =IF(LEFT(RTD("cqg.rtd", ,"ContractData", U54,"LastTradeorSettle",,"T"),3)="768",NA(),IF(RTD("cqg.rtd", ,"ContractData", U54,"LastTradeorSettle",,"T")="",NA(),RTD("cqg.rtd", ,"ContractData", U54,"LastTradeorSettle",,"T"))) ->  | X54: =IF(LEFT(RTD("cqg.rtd",,"StudyData",U54, "Bar",, "Close","D","-1","All",,,,"T"),3)="777",NA(),IF(RTD("cqg.rtd",,"StudyData",U54, "Bar",, "Close","D","-1","All",,,,"T")="",NA(),RTD("cqg.rtd",,"StudyData",U54, "Bar",, "Close","D","-1","All",,,,"T"))) -> -0.255 | Y54: =IF(LEFT(RTD("cqg.rtd",,"StudyData",U54, "Bar",, "Close","D","-5","All",,,,"T"),3)="777",NA(),IF(RTD("cqg.rtd",,"StudyData",U54, "Bar",, "Close","D","-5","All",,,,"T")="",NA(),RTD("cqg.rtd",,"StudyData",U54, "Bar",, "Close","D","-5","All",,,,"T"))) -> -0.075 | Z54: =IF(LEFT(RTD("cqg.rtd",,"StudyData",U54, "Bar",, "Close","D","-20","All",,,,"T"),3)="777",NA(),IF(RTD("cqg.rtd",,"StudyData",U54, "Bar",, "Close","D","-20","All",,,,"T")="",NA(),RTD("cqg.rtd",,"StudyData",U54, "Bar",, "Close","D","-20","All",,,,"T"))) -> -0.1 | AE54: 21 | AF54: ZQES2?21 | AG54: =IF(LEFT(RTD("cqg.rtd", ,"ContractData", AF54,"LastTradeorSettle",,"T"),3)="768",NA(),IF(RTD("cqg.rtd", ,"ContractData", AF54,"LastTradeorSettle",,"T")="",NA(),RTD("cqg.rtd", ,"ContractData", AF54,"LastTradeorSettle",,"T"))) ->  | AI54: =IF(LEFT(RTD("cqg.rtd",,"StudyData",AF54, "Bar",, "Close","D","-1","All",,,,"T"),3)="777",NA(),IF(RTD("cqg.rtd",,"StudyData",AF54, "Bar",, "Close","D","-1","All",,,,"T")="",NA(),RTD("cqg.rtd",,"StudyData",AF54, "Bar",, "Close","D","-1","All",,,,"T"))) -> -0.455 | AJ54: =IF(LEFT(RTD("cqg.rtd",,"StudyData",AF54, "Bar",, "Close","D","-5","All",,,,"T"),3)="777",NA(),IF(RTD("cqg.rtd",,"StudyData",AF54, "Bar",, "Close","D","-5","All",,,,"T")="",NA(),RTD("cqg.rtd",,"StudyData",AF54, "Bar",, "Close","D","-5","All",,,,"T"))) -> -0.085 | AK54: =IF(LEFT(RTD("cqg.rtd",,"StudyData",AF54, "Bar",, "Close","D","-20","All",,,,"T"),3)="777",NA(),IF(RTD("cqg.rtd",,"StudyData",AF54, "Bar",, "Close","D","-20","All",,,,"T")="",NA(),RTD("cqg.rtd",,"StudyData",AF54, "Bar",, "Close","D","-20","All",,,,"T"))) -> -0.13
R55: 21
R56: 22
R57: 23
R58: 24
R59: 25
